Workbook

Sheet Read Me
B1: CFP Quantification Tool - Reinforcing Bar & Structural Steel
B3: Colour Codes, Notes & FAQ
B6: Tool Sections :
B7: G : General Information Section | C7: = | D7: General information of the certifying Reinforcing Bar & Structural Steel product(s) that required user input
B8: A : Assessment Section | C8: = | D8: Calculation of the carbon emission for each Reinforcing Bar & Structural Steel product
B9: P : Performance Section | C9: = | D9: Summary of each of the Reinforcing Bar & Structural Steel Carbon emission performance
B11: Colour Code of Cells : | D11: Colour Code of Sheets :
B12: Input cell | D12: Instruction
B13: Calculated value | D13: Calculation Tool
B14: Information ( Title , units, item nos. etc) | D14: Factor for Calculation
B15: Not used | D15: Default Factor References
B16: Click me
A18: Notes to users:
A19: - | B19: Users should refer to the relevant Assessment Guide issued by the Construction Industry Council's (CIC) for the principles, requirements, and guides for the quantification and reporting the carbon footprint of products (CFP) under the CIC Green Product Certification. Any manufacturers applying for the CIC's Green Product Certification should comply with all relevant requirements on CFP quantification stated in the Assessment Guide.
A20: - | B20: The goal of carrying out a CFP quantification is to calculate the potential contribution of a particular product to global warming expressed as CO2e by quantifying all significant GHG emissions and removals over the product’s life cycle.
A21: - | B21: This CFP quantification tool is currently applicable to two product categories according to their individual functions, (i) reinforcing bar; (ii) structural steel as described in the Assessment Guide. The structural steel can be classified in to six sub-categories, including (ii)(i) steel section (incl. universal beam / column, H section, I section, bearing pile.); (ii)(ii) hollow section, (ii)(iii) bar section (incl. flat bar, square bar, round bar, tee bar), (ii)(iv)steel pipe, (ii)(v) steel plate; and (ii) (vi)others (channel, angle, Z section, mesh). The tool is developed with reference to ISO 14067:2018.
A22: - | B22: According to the principles of the LCA methodology provided in ISO 14040:2006 with Amendment 1:2020 and ISO 14044:2006 with Amendment 2:2020, the quantification and reporting of a CFP should be relevant, complete, consistent, accurate and transparent. The assessment of carbon footprint of Reinforcing Bar & Structural Steel under the CIC Green Product Certification shall be based on a “cradle-to-site” approach, covering all GHG emissions and removals arising from raw material acquisition through production, transportation of the raw materials to the plant, manufacturing processes, and transportation of the steel products to the border of Hong Kong.
A23: - | B23: Users are required to complete the worksheet "CFP Quantification" to access the product's carbon footprint. Guides are provided in the "Instruction" worksheet. Please ensure ALL input cells (i.e. empty light green cells) in the "CFP Quantification" are filled out. User shall fill the worksheet from top to bottom.
A24: - | B24: All the units of "t/reporting period" in this tool refers to "tonne/year", where 1 tonne = 1000 kg.
A25: - | B25: If "Default" factor is selected, Applicants shall review the references of the default values to ensure their applicability prior to use. Applicants are encouraged to prioritize the use of specific life cycle data. In cases where such data is not readily accessible, data from national databases, regional databases, or other recognized sources may be utilized.
A26: Frequently Asked Questions:
A27: - | B27: Question: "Why do many self-calculating cells in my worksheet display a calculation error (for example, "#VALUE" displayed)?
B28: Answer: "#VALUE" appears as long as some necessary input cells have not been completed (i.e., some cells have been left blank).
A29: - | B29: Question: "Why do many self-calculating cells in my worksheet display a "Factor error" ?
B30: Answer: "Factor error" appears as the energy commodity / material was not found in the factor sheets.
B32: © 2025 All rights reserved by CIC
B34: Scheme Owned by Construction Industry Council
B35: 38/F, COS Centre, 56 Tsun Yip Street, Kwun Tong, Kowloon, Hong Kong
B37: Operated by Hong Kong Green Building Council
B38: 1/F, Jockey Club Environmental Building, 77 Tat Chee Avenue, Kowloon Tong, Hong Kong
B39: Phone: +852 3994 8888
B40: Email: cicgpc@hkgbc.org.hk

Sheet Instructions
A1: CFP Quantification - Reinforcing Bar & Structural Steel
A2: Product category 1: Reinforcing bar
A3: Product category 2: Structural steel | B3: Date of latest update | I3: 2025-03-24
B4: Reporting period | I4: Please provide corresponding information
B6: G | C6: GENERAL INFORMATION
B8: G1 | C8: G1 General Plant Information | K8: Description
C9: =LEFT($C$8,2)&"." -> G1. | D9: 1 | F9: Plant
C10: G1. | D10: 2 | F10: Company
C11: G1. | D11: 3 | F11: Country / Region
C12: G1. | D12: 4 | F12: Steel product route: (i) BF-BOF; (ii) Scraped-based EAF; (iii) DRI-EAF; (iv) Other [please specify] | K12: Please provide product route for the product(s).
C13: G1. | D13: 5 | F13: Recycling content | K13: Please provide recycling content of the product(s)
C14: G1. | D14: 6 | F14: Product 1 | G14: Please select product category: 1) Product category 1: Reinforcing bar 2) Product category 2: Structural steel | K14: Please provide corresponding product information (name, strength grade, etc.) to be applied under this category. Example: Grade 500B Steel Reinforcing Bar
C15: G1. | D15: 7 | F15: Product 2
C16: G1. | D16: 8 | F16: Product 3
C17: G1. | D17: 9 | F17: Product 4
C18: G1. | D18: 10 | F18: Product 5
C19: G1. | D19: 11 | F19: Product 6
B20: G2 | C20: G2 System Boundary
C21: =LEFT($C$20,2)&"." -> G2. | D21: 1 | F21: Raw Material extraction and upstream production | I21: [yes, no or n.a.] | K21: "Yes" means that the GHG emissions arising from the process are reported. "No" means that the associated data are not reported. Please provide explanation in a note in the cell for why "No" was selected. "n.a." (not applicable) means that emissions are never generated from this source, or the source does not exist at this plant.
C22: =LEFT($C$20,2)&"." -> G2. | D22: 2 | F22: Off-site transportation of raw materials to manufacturing plant | I22: [yes, no or n.a.]
C23: =LEFT($C$20,2)&"." -> G2. | D23: 3 | F23: Product manufacturing - stationary combustion | I23: [yes, no or n.a.]
C24: =LEFT($C$20,2)&"." -> G2. | D24: 4 | F24: Product manufacturing - mobile combustion | I24: [yes, no or n.a.]
C25: =LEFT($C$20,2)&"." -> G2. | D25: 5 | F25: Indirect emission from purchased energy | I25: [yes, no or n.a.]
C26: =LEFT($C$20,2)&"." -> G2. | D26: 6 | F26: Off-site transportation of product to border of HK | I26: [yes, no or n.a.]
C27: G2. | D27: 7 | F27: (add other processes as appropriate) | I27: [yes, no or n.a.]
B28: G3 | C28: G3 Structural Steel & Reinforcing Bar Production | J28: unit | K28: Total | M28: Product 1 | N28: Product 2 | O28: Product 3 | P28: Product 4 | Q28: Product 5 | R28: Product 6
C29: =LEFT($C$28,2)&"." -> G3. | D29: 1 | F29: Structural steel & reinforcing bar production in weight | J29: [t/reporting period] | K29: =IF(SUM(M29:R29)=0,"",SUM(M29:R29)) ->  | M29: Quantity in weight of each product produced. If there are more than six products within any category, feel free to add additional columns as needed. To add more products, simply copy the entire columns of the last category and insert them between the product columns.
C30: =LEFT($C$28,2)&"." -> G3. | D30: 2 | F30: Proportion | J30: % | K30: =IF(SUM(M30:R30)=0,"",SUM(M30:R30)) ->  | M30: =IF(M29="","",M29/$K$29) -> 
B31: G4 | C31: G4 Raw Materials Used to Produce Structural Steel & Reinforcing Bar Products (only purchased materials shall be included) | J31: unit | K31: Total | M31: Product 1 | N31: Product 2 | O31: Product 3 | P31: Product 4 | Q31: Product 5 | R31: Product 6
C32: =LEFT($C$31,2)&"." -> G4. | D32: 1 | F32: Dolomite | J32: [t/reporting period, dry weight] | K32: =IF(SUM(M32:R32)=0,"",SUM(M32:R32)) ->  | M32: Please input the consumption of bought raw materials for the production of each product. On-site produced materials shall be excluded, to avoid double counting.
C33: G4. | D33: 2 | F33: Limestone | J33: [t/reporting period, dry weight] | K33: =IF(SUM(M33:R33)=0,"",SUM(M33:R33)) -> 
C34: G4. | D34: 3 | F34: Iron ore (lump / fine) | J34: [t/reporting period, dry weight]
C35: G4. | D35: 4 | F35: Scrap steel | J35: [t/reporting period, dry weight]
C36: G4. | D36: 5 | F36: Coke | G36: purchased / produced offsite (on-site produced materials are excluded) | J36: [t/reporting period, dry weight]
C37: G4. | D37: 6 | F37: Coal | J37: [t/reporting period, dry weight]
C38: G4. | D38: 7 | F38: Coating material | J38: [t/reporting period, dry weight]
C39: G4. | D39: 8 | F39: Applicant can add raw materials, if applicable. Applicants shall include customized raw materials for calculation purposes in the worksheet titled "Customized Embodied EF" | G39: Others, if applicable | H39: [refer to "Customized Embodied EF"] | J39: [t/reporting period, dry weight]
C40: G4. | D40: 9 | G40: Others, if applicable | H40: [refer to "Customized Embodied EF"] | K40: =IF(SUM(M40:R40)=0,"",SUM(M40:R40)) -> 
C41: G4. | D41: 10 | F41: Energy commodity used in industrial processes
C42: G4. | D42: =D41 -> 10 | E42: .1 | F42: Stationary combustion sources | H42: Energy commodity : | I42: Please select the appropriate type of energy commodity. Applicants are permitted to include customized energy commodities for calculation purposes in the worksheets titled "Customized Embodied EF," "Customized Fuel EF," "Customized Fuel LHV", and "Customized Process Factors". If additional energy commodities need to be included, kindly insert more rows as necessary. | J42: [t/reporting period] | K42: 4360 | M42: =IFERROR(IF($K42="","",$K42*M$30),"") -> 
C43: G4. | D43: =D42 -> 10 | E43: .2 | F43: Stationary combustion sources | H43: Energy commodity : | J43: [t/reporting period]
C44: G4. | D44: =D43 -> 10 | E44: .3 | F44: Stationary combustion sources | H44: Energy commodity : | J44: [t/reporting period]
C45: G4. | D45: 11 | F45: Energy commodity used in stationary combustion and not covered in industrial processes | H45: Energy Commodity usage type : | I45: Proportionally Allocated
C46: G4. | D46: =D45 -> 11 | E46: .1 | F46: Other stationary combustion source NOT covered in industrial processes | H46: Energy commodity : | I46: Please select the appropriate type of energy commodity. Applicants are permitted to include customized energy commodities for calculation purposes in the worksheets titled "Customized Embodied EF," "Customized Fuel EF," and "Customized Fuel LHV." If additional energy commodities need to be included, kindly insert more rows as necessary. | J46: [t/reporting period] | K46: If "Proportionally Allocated" is selected, please enter the total consumption for each of the energy commodity. | L46: =IF(I$45="user input",SUM(M46:R46),"") ->  | M46: =IFERROR(IF($I$45="Proportionally Allocated", $K46*$M30, ""),"") ->  | N46: =IFERROR(IF($I$45="Proportionally Allocated", $K46*$N30, ""),"") ->  | O46: =IFERROR(IF($I$45="Proportionally Allocated", $K46*$O30, ""),"") ->  | P46: =IFERROR(IF($I$45="Proportionally Allocated", $K46*$P30, ""),"") ->  | Q46: =IFERROR(IF($I$45="Proportionally Allocated", $K46*$Q30, ""),"") ->  | R46: =IFERROR(IF($I$45="Proportionally Allocated", $K46*$R30, ""),"") -> 
C47: G4. | D47: =D46 -> 11 | E47: .2 | F47: Other stationary combustion source NOT covered in industrial processes | H47: Energy commodity : | J47: [t/reporting period] | L47: =IF(I$45="user input",SUM(M47:R47),"") ->  | M47: =IFERROR(IF($I$48="Proportionally Allocated", $K50*$M30, ""),"") ->  | N47: =IFERROR(IF($I$48="Proportionally Allocated", $K50*$N30, ""),"") ->  | O47: =IFERROR(IF($I$48="Proportionally Allocated", $K50*$O30, ""),"") ->  | Q47: =IFERROR(IF($I$48="Proportionally Allocated", $K50*$Q30, ""),"") ->  | R47: =IFERROR(IF($I$48="Proportionally Allocated", $K50*$R30, ""),"") -> 
C48: G4. | D48: 12 | F48: On-site transportation | H48: Energy Commodity usage type : | I48: User Input
C49: G4. | D49: =D48 -> 12 | E49: .1 | F49: Mobile combustion source | H49: Energy commodity : | I49: Please select the appropriate type of energy commodity. Applicants are permitted to include customized energy commodities for calculation purposes in the worksheets titled "Customized Embodied EF," "Customized Fuel EF," and "Customized Fuel LHV." If additional energy commodities need to be included, kindly insert more rows as necessary. | J49: [t/reporting period] | M49: If "User Input" is selected, please enter the individual consumption energy commodity for each product.
C50: G4. | D50: =D49 -> 12 | E50: .2 | F50: Mobile combustion source | H50: Energy commodity : | J50: [t/reporting period]
B51: G5 | C51: G5. Power Consumption of Purchased Energy | J51: unit | K51: Total | M51: Product 1 | N51: Product 2 | O51: Product 3 | P51: Product 4 | Q51: Product 5 | R51: Product 6
C52: =LEFT($C$51,2)&"." -> G5. | D52: 1 | F52: Consumption of electricity produced externally | J52: [MWh/reporting period] | K52: Please enter the total consumption of electricity produced externally | M52: =IFERROR(IF($K52="","",$K52*M30),"") -> 
C53: =LEFT($C$51,2)&"." -> G5. | D53: 2 | F53: CO2e per unit of electricity produced externally | J53: [kg CO2e/MWh] | K53: Please enter the specific carbon emission factor for electricity produced externally. Applicants may obtain the carbon emission factor from their power supplier or from relevant national authorities.
B54: G6 | C54: G6 Inputs & Outputs of Industrial Processes | J54: unit | K54: Total | M54: Product 1 | N54: Product 2 | O54: Product 3 | P54: Product 4 | Q54: Product 5 | R54: Product 6
C55: =LEFT($C$54,2)&"." -> G6. | D55: 1 | F55: Industrial processes - Coking production
C56: G6. | D56: =D55 -> 1 | E56: .1 | F56: Inputs
C57: G6. | D57: =D56&E56 -> 1.1 | E57: .1 | F57: Blast furnace gas | G57: consumed at on-site facility | J57: [t/reporting period] | K57: Please enter the total consumption of each process material in each of the industrial facility. If the described industrial process does not in the production route, please leave it blank. | M57: =IFERROR(IF($K57="","",$K57*M$30),"") -> 
C58: G6. | D58: =D57 -> 1.1 | E58: .2 | F58: Please select the process materials. Applicants are permitted to include customized process materials for calculation purposes in the worksheet titled "Customized Process Factors". If additional process materials need to be included, kindly insert more rows as necessary. | J58: [t/reporting period]
C59: G6. | D59: 1.1 | E59: .3 | J59: [t/reporting period]
C60: G6. | D60: 1.1 | E60: .4 | J60: [t/reporting period]
C61: G6. | D61: 1.1 | E61: .5 | J61: [t/reporting period]
C62: G6. | D62: 1.1 | E62: .6 | J62: [t/reporting period]
C63: G6. | D63: 1 | E63: .2 | F63: Outputs
C64: G6. | D64: =D63&E63 -> 1.2 | E64: .1 | F64: Coke | G64: Please select the coke is produced at facility or produced offsite | J64: [t/reporting period] | K64: Please enter the total quantity for each of the end product / output in each of the industrial facility. If the end product / output would NOT be transferred offsite, please enter 0 | M64: =IFERROR(IF($K64="","",$K64*M$30),"") -> 
C65: G6. | D65: =D64 -> 1.2 | E65: .2 | F65: Coke oven gas | G65: transferred offsite | J65: [t/reporting period]
C66: G6. | D66: =D65 -> 1.2 | E66: .3 | F66: Coke-oven byproducts | G66: transferred offsite | J66: [t/reporting period]
C67: G6. | D67: 2 | F67: Industrial processes - Sinter production
C68: G6. | D68: =D67 -> 2 | E68: .1 | F68: Inputs
C69: G6. | D69: =D68&E68 -> 2.1 | E69: .1 | F69: Please select the process materials. Applicants are permitted to include customized process materials for calculation purposes in the worksheet titled "Customized Process Factors". If additional process materials need to be included, kindly insert more rows as necessary. | J69: [t/reporting period] | K69: Please enter the total consumption of each process material in each of the industrial facility. If the described industrial process does not in the production route, please leave it blank. | M69: =IFERROR(IF($K69="","",$K69*M$30),"") -> 
C70: G6. | D70: =D69 -> 2.1 | E70: .2 | J70: [t/reporting period]
C71: G6. | D71: 2.1 | E71: .3 | J71: [t/reporting period]
C72: G6. | D72: 2.1 | E72: .4 | J72: [t/reporting period]
C73: G6. | D73: =D67 -> 2 | E73: .2 | F73: Outputs
C74: G6. | D74: =D73&E73 -> 2.2 | E74: .1 | F74: Sinter | G74: produced | J74: [t/reporting period] | K74: Please enter the total quantity for each of the end product / output in each of the industrial facility. If the end product / output would NOT be transferred offsite, please enter 0 | M74: =IFERROR(IF($K74="","",$K74*M$30),"") -> 
C75: G6. | D75: =D74 -> 2.2 | E75: .2 | F75: Sinter off gas | G75: transferred offsite | J75: [t/reporting period]
C76: G6. | D76: 3 | F76: Industrial processes - Iron and Steel production
C77: G6. | D77: 3 | E77: .1 | F77: Inputs
C78: G6. | D78: =D77&E77 -> 3.1 | E78: .1 | F78: Please select the process materials. Applicants are permitted to include customized process materials for calculation purposes in the worksheet titled "Customized Process Factors". If additional process materials need to be included, kindly insert more rows as necessary. | J78: [t/reporting period] | K78: Please enter the total consumption of each process material in each of the industrial facility. If the described industrial process does not in the production route, please leave it blank. | M78: =IFERROR(IF($K78="","",$K78*M$30),"") -> 
C79: G6. | D79: =D78 -> 3.1 | E79: .2 | J79: [t/reporting period]
C80: G6. | D80: 3.1 | E80: .3 | J80: [t/reporting period]
C81: G6. | D81: 3.1 | E81: .4 | J81: [t/reporting period]
C82: G6. | D82: 3.1 | E82: .5 | J82: [t/reporting period]
C83: G6. | D83: 3.1 | E83: .6 | J83: [t/reporting period]
C84: G6. | D84: 3.1 | E84: .7 | J84: [t/reporting period]
C85: G6. | D85: 3.1 | E85: .8 | J85: [t/reporting period]
C86: G6. | D86: 3 | E86: .2 | F86: Outputs
C87: G6. | D87: =D86&E86 -> 3.2 | E87: .1 | F87: Steel | G87: produced at facility | J87: [t/reporting period] | K87: Please enter the total quantity for each of the end product / output in each of the industrial facility. If the end product / output would NOT be transferred offsite, please enter 0. | M87: =IFERROR(IF($K87="","",$K87*M$30),"") -> 
C88: G6. | D88: =D87 -> 3.2 | E88: .2 | F88: Iron | G88: produced and not converted into steel | J88: [t/reporting period]
C89: G6. | D89: 3.2 | E89: .3 | F89: Blast furnace gas | G89: transferred offsite | J89: [t/reporting period]
C90: G6. | D90: 4 | F90: Industrial processes - DRI production
C91: G6. | D91: 4 | E91: .1 | F91: Inputs
C92: G6. | D92: =D91&E91 -> 4.1 | E92: .1 | F92: Natural gas | J92: [t/reporting period] | K92: Please enter the total consumption of each process material in each of the industrial facility. If the described industrial process does not in the production route, please leave it blank. | M92: =IFERROR(IF($K92="","",$K92*M$30),"") -> 
C93: G6. | D93: =D92 -> 4.1 | E93: .2 | F93: Coke breeze | J93: [t/reporting period]
C94: G6. | D94: =D93 -> 4.1 | E94: .3 | F94: Coke | J94: [t/reporting period]
C95: G6. | D95: =D94 -> 4.1 | E95: .4 | F95: Please select the process materials, if applicable. Applicants are permitted to include customized process materials for calculation purposes in the worksheet titled "Customized Process Factors". If additional process materials need to be included, kindly insert more rows as necessary. | J95: [t/reporting period]
C96: G6. | D96: 4 | E96: .2 | F96: Outputs
C97: G6. | D97: =D96&E96 -> 4.2 | E97: .1 | F97: DRI | G97: produced at facility | J97: [t/reporting period] | K97: Please enter the total quantity for each of the end product / output in each of the industrial facility. If the described industrial process does not in the production route, please leave it blank. | M97: =IFERROR(IF($K97="","",$K97*M$30),"") -> 
B99: A | C99: ASSESSMENT
B100: A1 | C100: PROJECT LIFE CYCLE STAGE : A1 RAW MATERIAL EXTRACTION AND UPSTREAM PRODUCTION
C101: A1.1 CO2e EMISSIONS | J101: unit | K101: Total | M101: Product 1 | N101: Product 2 | O101: Product 3 | P101: Product 4 | Q101: Product 5 | R101: Product 6
C102: A1.1.1 | F102: CO2e from bought raw materials | J102: [t CO2e/reporting period]
F103: Adopting CO2e Factors
D104: =C102 -> A1.1.1 | E104: .1 | F104: Select the type of embodied emissions factor (EF) for calculation: 1) Default 2) Customized If "Customized" is selected, please enter / add customized EF for each of the product under worksheet "Customized Embodied EF". If "Default" is selected, Applicants shall review the references of the default values to ensure their applicability prior to use. Applicants are encouraged to prioritize the use of specific life cycle data. In cases where such data is not readily accessible, data from national databases, regional databases, or other recognized sources may be utilized. | H104: =F32 -> Dolomite | J104: [t CO2e/reporting period]
D105: =C102 -> A1.1.1 | E105: .2 | H105: Limestone | J105: [t CO2e/reporting period]
D106: =C102 -> A1.1.1 | E106: .3 | H106: Iron ore (lump / fine) | J106: [t CO2e/reporting period]
D107: =C102 -> A1.1.1 | E107: .4 | F107: No defalut embodied carbon emissions factor (EF) is provided. Only customized embodied carbon EF can can be selected. If "Customized" is selected, please enter / add customized EF for each of the product under worksheet "Customized Embodied EF". Applicants are encouraged to prioritize the use of specific life cycle data. In cases where such data is not readily accessible, data from national databases, regional databases, or other recognized sources may be utilized. | H107: Scrap steel | J107: [t CO2e/reporting period]
D108: =D107 -> A1.1.1 | E108: .5 | H108: Coke | I108: =G36 -> purchased / produced offsite (on-site produced materials are excluded) | J108: [t CO2e/reporting period]
D109: =D108 -> A1.1.1 | E109: .6 | F109: Select the type of embodied emissions factor (EF) for calculation: 1) Default 2) Customized If "Customized" is selected, please enter / add customized EF for each of the product under worksheet "Customized Embodied EF". If "Default" is selected, Applicants shall review the references of the default values to ensure their applicability prior to use. Applicants are encouraged to prioritize the use of specific life cycle data. In cases where such data is not readily accessible, data from national databases, regional databases, or other recognized sources may be utilized. | H109: Coal | J109: [t CO2e/reporting period]
D110: =D109 -> A1.1.1 | E110: .7 | H110: Coating material | J110: [t CO2e/reporting period]
D111: =D110 -> A1.1.1 | E111: .8 | F111: No defalut embodied carbon emissions factor (EF) is provided. Only customized embodied carbon EF can can be selected. If "Customized" is selected, please enter / add customized EF for each of the product under worksheet "Customized Embodied EF". Applicants are encouraged to prioritize the use of specific life cycle data. In cases where such data is not readily accessible, data from national databases, regional databases, or other recognized sources may be utilized. | H111: Applicant can add bought raw materials, if applicable | I111: [refer to section G4.8] | J111: [t CO2e/reporting period]
D112: A1.1.1 | E112: .9 | I112: [refer to section G4.9] | J112: [t CO2e/reporting period]
C113: A1.1.2 | F113: CO2e from bought energy commodity | J113: [t CO2e/reporting period]
F114: Adopting CO2e Factors | H114: [Please insert additional rows if more energy commodities are included]
D115: =C113 -> A1.1.2 | E115: .1 | F115: Select the type of embodied EF for calculation: 1) Default 2) Customized If "Customized" is selected, please enter / add customized EF for each of the product under worksheet "Customized Embodied EF". If "Default" is selected, Applicants shall review the references of the default values to ensure their applicability prior to use. Applicants are encouraged to prioritize the use of specific life cycle data. In cases where such data is not readily accessible, data from national databases, regional databases, or other recognized sources may be utilized. | H115: =H49 -> Energy commodity : | I115: Please copy energy commodity from G4.10 to G4.12. Please insert additional rows if more energy commodities are included | J115: [t CO2e/reporting period]
D116: =D115 -> A1.1.2 | E116: .2 | H116: =H50 -> Energy commodity : | J116: [t CO2e/reporting period]
D117: =D116 -> A1.1.2 | E117: .3 | H117: =H116 -> Energy commodity : | J117: [t CO2e/reporting period]
D118: =D117 -> A1.1.2 | E118: .4 | H118: =H117 -> Energy commodity : | J118: [t CO2e/reporting period]
D119: A1.1.2 | E119: .5 | H119: Energy commodity : | J119: [t CO2e/reporting period]
D120: =D119 -> A1.1.2 | E120: .6 | H120: =H50 -> Energy commodity : | J120: [t CO2e/reporting period]
C121: A1.2.5 | I121: Total CO2e in Stage A1 | J121: [t CO2e/reporting period]
B122: A2 | C122: PROJECT LIFE CYCLE STAGE: A2 OFF-SITE TRANSPORTATION OF RAW MATERIALS TO MANUFACTURING PLANT
C123: A2.1 CO2e EMISSIONS | J123: unit | K123: Total | M123: Product 1 | N123: Product 2 | O123: Product 3 | P123: Product 4 | Q123: Product 5 | R123: Product 6
C124: A2.1.1 | F124: CO2e from off-site transportation of raw material to manufacturing plant
D125: =C124 -> A2.1.1 | E125: .1 | F125: CO2e calculated using either 1) WRI & WBCSD's protocol OR 2) EPD & EMSD's carbon audit tool) | J125: [t CO2e/reporting period] | M125: Please enter the GHG emission from stage A2 (from off-site transportation of raw material to manufacturing plant) for each of the product. GHG emission can be calculated by required information such as mode of transport, travelled distance, fuel used with following tool: 1) WRI & WBCSD's protocol, namely “GHG Emissions from Transport or Mobile Sources” which can be accessible at: https://ghgprotocol.org/calculation-tools-and-guidance, or 2) EPD & EMSD carbon audit tool, which can be accessible at: https://cnsd.gov.hk/en/green-business-and-industry/carbon-audit/ If the travelled distance needs to be entered into a separate tool, please use the actual travelled distance rather than the straight-line distance. Additionally, kindly provide supporting documentation, such as a map indicating the distance, for verification purposes.
C126: A2.1.2 | I126: Total CO2e in Stage A2 | J126: [t CO2e/reporting period] | N126: =IF(AND(N125=""),"",(N125)) ->  | O126: =IF(AND(O125=""),"",(O125)) -> 
B127: A3 | C127: PROJECT LIFE CYCLE STAGE: A3 PRODUCT MANUFACTURING AND FABRICATION (WITHOUT WASTAGE)
C128: A3.1 CO2e EMISSIONS | J128: unit | K128: Total | M128: Product 1 | N128: Product 2 | O128: Product 3 | P128: Product 4 | Q128: Product 5 | R128: Product 6
C129: A3.1.1 | F129: CO2e from industrial processes
D130: =C129 -> A3.1.1 | E130: .1 | F130: CO2e from coke production | J130: [t CO2e/reporting period]
F131: [Please insert additional rows if more materials are included]
D132: =D130&E130 -> A3.1.1.1 | E132: .1 | F132: Inputs | H132: Adopting C Content
D133: =D132&E132 -> A3.1.1.1.1 | E133: .1 | F133: =F57 -> Blast furnace gas | G133: =G57 -> consumed at on-site facility | H133: Select the type of carbon content for calculation: 1) Default 2) Customized If "Customized" is selected, please enter / add customized EF for each of the product under worksheet "Customized Process Factors". If "Default" is selected, Applicants shall review the references of the default values to ensure their applicability prior to use. Applicants are encouraged to prioritize the use of specific life cycle data. In cases where such data is not readily accessible, data from national databases, regional databases, or other recognized sources may be utilized. | J133: [t CO2e/reporting period]
D134: =D133 -> A3.1.1.1.1 | E134: .2 | F134: Please copy process materials from G6.1.1 Please insert additional rows if more energy commodities are included | J134: [t CO2e/reporting period]
D135: =D134 -> A3.1.1.1.1 | E135: .3 | J135: [t CO2e/reporting period]
D136: =D135 -> A3.1.1.1.1 | E136: .4 | J136: [t CO2e/reporting period]
D137: =D136 -> A3.1.1.1.1 | E137: .5 | J137: [t CO2e/reporting period]
D138: =D137 -> A3.1.1.1.1 | E138: .6 | J138: [t CO2e/reporting period]
D139: =D132 -> A3.1.1.1 | E139: .2 | F139: Outputs | H139: Adopting C Content | I139: Adopting CH4 Emission Factor
D140: =D139&E139 -> A3.1.1.1.2 | E140: .1 | F140: =F64 -> Coke | G140: Please select the coke is produced at facility or produced offsite | H140: Select the type of carbon content for calculation: 1) Default 2) Customized If "Customized" is selected, please enter / add customized EF for each of the product under worksheet "Customized Process Factors". If "Default" is selected, Applicants shall review the references of the default values to ensure their applicability prior to use. Applicants are encouraged to prioritize the use of specific life cycle data. In cases where such data is not readily accessible, data from national databases, regional databases, or other recognized sources may be utilized. | I140: Select the type of methane emission factor for calculation: 1) Default 2) Customized If "Customized" is selected, please enter / add customized EF for each of the product under worksheet "Customized Process Factors". If "Default" is selected, Applicants shall review the references of the default values to ensure their applicability prior to use. Applicants are encouraged to prioritize the use of specific life cycle data. In cases where such data is not readily accessible, data from national databases, regional databases, or other recognized sources may be utilized. | J140: [t CO2e/reporting period]
D141: =D140 -> A3.1.1.1.2 | E141: .2 | F141: Coke oven gas | G141: transferred offsite | J141: [t CO2e/reporting period]
D142: =D140 -> A3.1.1.1.2 | E142: .3 | F142: Coke-oven byproducts | G142: transferred offsite | J142: [t CO2e/reporting period]
D143: =D130 -> A3.1.1 | E143: .2 | F143: CO2e from sinter production
F144: [Please insert additional rows if more materials are included]
D145: =D143&E143 -> A3.1.1.2 | E145: .1 | F145: Inputs | H145: Adopting C Content
D146: =D145&E145 -> A3.1.1.2.1 | E146: .1 | F146: Please copy process materials from G6.2.1 Please insert additional rows if more energy commodities are included | H146: Select the type of carbon content for calculation: 1) Default 2) Customized If "Customized" is selected, please enter / add customized EF for each of the product under worksheet "Customized Process Factors". If "Default" is selected, Applicants shall review the references of the default values to ensure their applicability prior to use. Applicants are encouraged to prioritize the use of specific life cycle data. In cases where such data is not readily accessible, data from national databases, regional databases, or other recognized sources may be utilized. | J146: [t CO2e/reporting period]
D147: =D146 -> A3.1.1.2.1 | E147: .2 | J147: [t CO2e/reporting period]
D148: =D147 -> A3.1.1.2.1 | E148: .3 | J148: [t CO2e/reporting period]
D149: A3.1.1.2.1 | E149: .4 | J149: [t CO2e/reporting period]
D150: =D145 -> A3.1.1.2 | E150: .2 | F150: Outputs | H150: Adopting C Content | I150: Adopting CH4 Emission Factor
D151: =D150&E150 -> A3.1.1.2.2 | E151: .1 | F151: =F74 -> Sinter | G151: =G74 -> produced | I151: Select the type of methane emission factor for calculation: 1) Default 2) Customized If "Customized" is selected, please enter / add customized EF for each of the product under worksheet "Customized Process Factors". If "Default" is selected, Applicants shall review the references of the default values to ensure their applicability prior to use. Applicants are encouraged to prioritize the use of specific life cycle data. In cases where such data is not readily accessible, data from national databases, regional databases, or other recognized sources may be utilized. | J151: [t CO2e/reporting period]
D152: =D151 -> A3.1.1.2.2 | E152: .2 | F152: =F75 -> Sinter off gas | G152: =G75 -> transferred offsite | H152: Select the type of carbon content for calculation: 1) Default 2) Customized If "Customized" is selected, please enter / add customized EF for each of the product under worksheet "Customized Process Factors". If "Default" is selected, Applicants shall review the references of the default values to ensure their applicability prior to use. Applicants are encouraged to prioritize the use of specific life cycle data. In cases where such data is not readily accessible, data from national databases, regional databases, or other recognized sources may be utilized. | J152: [t CO2e/reporting period]
D153: =D143 -> A3.1.1 | E153: .3 | F153: CO2e from iron and steel production
F154: [Please insert additional rows if more materials are included]
D155: =D153&E153 -> A3.1.1.3 | E155: .1 | F155: Inputs | H155: Adopting C Content
D156: =D155&E155 -> A3.1.1.3.1 | E156: .1 | F156: Please copy process materials from G6.3.1 Please insert additional rows if more energy commodities are included | H156: Select the type of carbon content for calculation: 1) Default 2) Customized If "Customized" is selected, please enter / add customized EF for each of the product under worksheet "Customized Process Factors". If "Default" is selected, Applicants shall review the references of the default values to ensure their applicability prior to use. Applicants are encouraged to prioritize the use of specific life cycle data. In cases where such data is not readily accessible, data from national databases, regional databases, or other recognized sources may be utilized. | J156: [t CO2e/reporting period]
D157: =D156 -> A3.1.1.3.1 | E157: .2 | J157: [t CO2e/reporting period]
D158: =D157 -> A3.1.1.3.1 | E158: .3 | J158: [t CO2e/reporting period]
D159: A3.1.1.3.1 | E159: .4 | J159: [t CO2e/reporting period]
D160: A3.1.1.3.1 | E160: .5 | J160: [t CO2e/reporting period]
D161: A3.1.1.3.1 | E161: .6 | J161: [t CO2e/reporting period]
D162: A3.1.1.3.1 | E162: .7 | J162: [t CO2e/reporting period]
D163: A3.1.1.3.1 | E163: .8 | J163: [t CO2e/reporting period]
D164: =D155 -> A3.1.1.3 | E164: .2 | F164: Outputs | H164: Adopting C Content
D165: =D164&E164 -> A3.1.1.3.2 | E165: .1 | F165: Steel | G165: produced at facility | H165: Select the type of carbon content for calculation: 1) Default 2) Customized If "Customized" is selected, please enter / add customized EF for each of the product under worksheet "Customized Process Factors". If "Default" is selected, Applicants shall review the references of the default values to ensure their applicability prior to use. Applicants are encouraged to prioritize the use of specific life cycle data. In cases where such data is not readily accessible, data from national databases, regional databases, or other recognized sources may be utilized. | J165: [t CO2e/reporting period]
D166: =D165 -> A3.1.1.3.2 | E166: .2 | F166: Iron | G166: not converted into steel | J166: [t CO2e/reporting period]
D167: =D166 -> A3.1.1.3.2 | E167: .3 | F167: Blast furnace gas | G167: transferred offsite | J167: [t CO2e/reporting period]
D168: =C$129 -> A3.1.1 | E168: .4 | F168: CO2e from DRI production | J168: [t CO2e/reporting period]
F169: [Please insert additional rows if more materials are included]
D170: =D168&E168 -> A3.1.1.4 | E170: .1 | F170: Inputs | H170: Adopting C Content
D171: =D170&E170 -> A3.1.1.4.1 | E171: .1 | F171: Please copy process materials from G6.4.1 Please insert additional rows if more energy commodities are included | H171: Select the type of carbon content for calculation: 1) Default 2) Customized If "Customized" is selected, please enter / add customized EF for each of the product under worksheet "Customized Process Factors". If "Default" is selected, Applicants shall review the references of the default values to ensure their applicability prior to use. Applicants are encouraged to prioritize the use of specific life cycle data. In cases where such data is not readily accessible, data from national databases, regional databases, or other recognized sources may be utilized. | J171: [t CO2e/reporting period]
D172: =D171 -> A3.1.1.4.1 | E172: .2 | J172: [t CO2e/reporting period]
D173: A3.1.1.4.1 | E173: .3 | J173: [t CO2e/reporting period]
D174: A3.1.1.4.1 | E174: .4 | J174: [t CO2e/reporting period]
D175: =D170 -> A3.1.1.4 | E175: .2 | F175: Outputs | I175: Adopting CH4 Emission Factor
D176: =D175&E175 -> A3.1.1.4.2 | E176: .1 | F176: DRI | G176: produced at facility | I176: Select the type of methane emission factor for calculation: 1) Default 2) Customized If "Customized" is selected, please enter / add customized EF for each of the product under worksheet "Customized Process Factors". If "Default" is selected, Applicants shall review the references of the default values to ensure their applicability prior to use. Applicants are encouraged to prioritize the use of specific life cycle data. In cases where such data is not readily accessible, data from national databases, regional databases, or other recognized sources may be utilized.
D177: =C$129 -> A3.1.1 | E177: .5 | F177: CO2e from onsite lime production | H177: [please refer to worksheet "3.1.1 Lime Production & Flaring"] | J177: [t CO2e/reporting period]
D178: =C$129 -> A3.1.1 | E178: .6 | F178: CO2e from offsite lime production | H178: [please refer to worksheet "3.1.1 Lime Production & Flaring"] | J178: [t CO2e/reporting period]
D179: =C$129 -> A3.1.1 | E179: .7 | F179: CO2e from flaring | H179: [please refer to worksheet "3.1.1 Lime Production & Flaring"] | J179: [t CO2e/reporting period]
C180: A3.1.3 | F180: CO2e from product manufacturing (other stationary combustion sources NOT covered in industrial processes) | J180: [t CO2e/reporting period]
F181: Adopting CO2e Factors | G181: Adopting LHV Factors | H181: [Please insert additional rows if more energy commodities are included]
D182: =C180 -> A3.1.3 | E182: .1 | F182: Select the type of EF for calculation: 1) Default 2) Customized If "Customized" is selected, please enter / add customized EF for each of the product under worksheet "Customized Fuel EF". If "Default" is selected, Applicants shall review the references of the default values to ensure their applicability prior to use. Applicants are encouraged to prioritize the use of specific life cycle data. In cases where such data is not readily accessible, data from national databases, regional databases, or other recognized sources may be utilized. | G182: Select the type of LHV factor for calculation: 1) Default 2) Customized If "Customized" is selected, please enter / add customized LHV for each of the product under worksheet "Customized Fuel LHV". If "Default" is selected, Applicants shall review the references of the default values to ensure their applicability prior to use. Applicants are encouraged to prioritize the use of specific life cycle data. In cases where such data is not readily accessible, data from national databases, regional databases, or other recognized sources may be utilized. | H182: Please enter the type of energy commodity utilized from other stationary combustion sources which are not covered in industrial processes for production manufacturing, including but not limited to, on-site power generation, on-site gas generation, re-heating furnaces, equipment, and room heating / cooling | J182: [t CO2e/reporting period]
D183: =C180 -> A3.1.3 | E183: .2 | J183: [t CO2e/reporting period]
C184: A3.1.4 | F184: CO2e from on-site transportation (mobile combustion sources) | H184: CO2e from on-site power generation | I184: CO2e from on-site power generation | J184: [t CO2e/reporting period]
F185: Adopting CO2e Factors | G185: Adopting LHV Factors | H185: [Please insert additional rows if more energy commodities are included]
D186: =C184 -> A3.1.4 | E186: .1 | F186: Select the type of EF for calculation: 1) Default 2) Customized If "Customized" is selected, please enter / add customized EF for each of the product under worksheet "Customized Fuel EF". If "Default" is selected, Applicants shall review the references of the default values to ensure their applicability prior to use. Applicants are encouraged to prioritize the use of specific life cycle data. In cases where such data is not readily accessible, data from national databases, regional databases, or other recognized sources may be utilized. | G186: Select the type of LHV factor for calculation: 1) Default 2) Customized If "Customized" is selected, please enter / add customized LHV for each of the product under worksheet "Customized Fuel LHV". If "Default" is selected, Applicants shall review the references of the default values to ensure their applicability prior to use. Applicants are encouraged to prioritize the use of specific life cycle data. In cases where such data is not readily accessible, data from national databases, regional databases, or other recognized sources may be utilized. | H186: Please enter the type of energy commodity utilized from mobile combustion sources for on-site transportation. | J186: [t CO2e/reporting period]
D187: =C184 -> A3.1.4 | E187: .2 | J187: [t CO2e/reporting period]
C188: A3.1.5 | F188: Total CO2e from fuels combustion | J188: [t CO2e/reporting period]
C189: A3.1.6 | F189: CO2e from external electricity production | J189: [t CO2e/reporting period]
C190: A3.1.8 | I190: Total CO2e in Stage A3 | J190: [t CO2e/reporting period]
B191: A4 | C191: PROJECT LIFE CYCLE STAGE: A4 OFF-SITE TRANSPORTATION OF PRODUCT TO BORDER OF HK
C192: A4.1 CO2e EMISSIONS | J192: unit | K192: Total | M192: Product 1 | N192: Product 2 | O192: Product 3 | P192: Product 4 | Q192: Product 5 | R192: Product 6
C193: A4.1.1 | F193: CO2e from off-site transportation of product to border of HK
D194: =C193 -> A4.1.1 | E194: .1 | F194: CO2e calculated using either 1) WRI & WBCSD's protocol OR 2) EPD & EMSD's carbon audit tool) | J194: [t CO2e/reporting period] | M194: Please enter the GHG emission from stage A4 (from off-site transportation of product to border of HK) for each of the product. GHG emission can be calculated by required information such as mode of transport, travelled distance, fuel used with following tool: 1) WRI & WBCSD's protocol, namely “GHG Emissions from Transport or Mobile Sources” which can be accessible at: https://ghgprotocol.org/calculation-tools-and-guidance, or 2) EPD & EMSD carbon audit tool, which can be accessible at: https://cnsd.gov.hk/en/green-business-and-industry/carbon-audit/ If the travelled distance needs to be entered into a separate tool, please use the actual travelled distance rather than the straight-line distance. Additionally, kindly provide supporting documentation, such as a map indicating the distance, for verification purposes.
C195: A4.1.2 | I195: Total CO2e in Stage A4 | J195: [t CO2e/reporting period] | N195: =IFERROR(IF(N194="","",N194),"") -> 
B197: P | C197: PERFORMANCE INDICATORS | J197: unit | K197: Total | M197: Product 1 | N197: Product 2 | O197: Product 3 | P197: Product 4 | Q197: Product 5 | R197: Product 6
B198: P | C198: =LEFT($B$197,2) -> P | D198: 1 | F198: Gross CO2e (A1-A4) | J198: [t CO2e/reporting period]
C199: P | D199: =D198 -> 1 | E199: .1 | F199: A1 Raw material extraction and upstream production | J199: [t CO2e/reporting period]
C200: P | D200: =D199 -> 1 | E200: .2 | F200: A2 Off-site transportation of raw materials to manufacturing plant | J200: [t CO2e/reporting period]
C201: P | D201: =D200 -> 1 | E201: .3 | F201: A3 Product manufacturing and fabrication (without wastage) | J201: [t CO2e/reporting period]
C202: P | D202: =D201 -> 1 | E202: .4 | F202: A4 Off-site transportation of product to border of HK | J202: [t CO2e/reporting period]
C203: P | D203: 2 | F203: Specific gross CO2e per t of rebar / steel produced (A1-A4) | J203: [t CO2e/t steel prod] | K203: =IF(K198="","",(K198/$K$29)) ->  | M203: =IF(M$29=0,"n.a.",IF(M198="","",(M198/M$29))) ->  | N203: =IF(N$29=0,"n.a.",IF(N198="","",(N198/N$29))) -> n.a. | O203: n.a. | P203: n.a. | Q203: n.a. | R203: n.a.
C204: P | D204: =D203 -> 2 | E204: .1 | F204: A1 Raw material extraction and upstream production | J204: [t CO2e/t steel prod]
... 3 more rows

Sheet CFP Quantification
A1: CFP Quantification - Reinforcing Bar & Structural Steel
A2: Product category 1: Reinforcing bar
A3: Product category 2: Structural steel | B3: Date of latest update | I3: 2025-03-24
B4: Reporting period
B6: G | C6: GENERAL INFORMATION
B8: G1 | C8: G1 General Plant Information | K8: Description
C9: =LEFT($C$8,2)&"." -> G1. | D9: 1 | F9: Plant
C10: G1. | D10: 2 | F10: Company
C11: G1. | D11: 3 | F11: Country / Region
C12: G1. | D12: 4 | F12: Steel product route: (i) BF-BOF; (ii) Scraped-based EAF; (iii) DRI-EAF; (iv) Other [please specify]
C13: G1. | D13: 5 | F13: Recycling content
C14: G1. | D14: 6 | F14: Product 1
C15: G1. | D15: 7 | F15: Product 2
C16: G1. | D16: 8 | F16: Product 3
C17: G1. | D17: 9 | F17: Product 4
C18: G1. | D18: 10 | F18: Product 5
C19: G1. | D19: 11 | F19: Product 6
B20: G2 | C20: G2 System Boundary
C21: =LEFT($C$20,2)&"." -> G2. | D21: 1 | F21: Raw Material extraction and upstream production | I21: [yes, no or n.a.]
C22: =LEFT($C$20,2)&"." -> G2. | D22: 2 | F22: Off-site transportation of raw materials to manufacturing plant | I22: [yes, no or n.a.]
C23: =LEFT($C$20,2)&"." -> G2. | D23: 3 | F23: Product manufacturing - stationary combustion | I23: [yes, no or n.a.]
C24: =LEFT($C$20,2)&"." -> G2. | D24: 4 | F24: Product manufacturing - mobile combustion | I24: [yes, no or n.a.]
C25: =LEFT($C$20,2)&"." -> G2. | D25: 5 | F25: Indirect emission from purchased energy | I25: [yes, no or n.a.]
C26: =LEFT($C$20,2)&"." -> G2. | D26: 6 | F26: Off-site transportation of product to border of HK | I26: [yes, no or n.a.]
C27: G2. | D27: 7 | F27: (add other processes as appropriate) | I27: [yes, no or n.a.]
B28: G3 | C28: G3 Structural Steel & Reinforcing Bar Production | J28: unit | K28: Total | M28: Product 1 | N28: Product 2 | O28: Product 3 | P28: Product 4 | Q28: Product 5 | R28: Product 6
C29: =LEFT($C$28,2)&"." -> G3. | D29: 1 | F29: Structural steel & reinforcing bar production in weight | J29: [t/reporting period] | K29: =IF(SUM(M29:R29)=0,"",SUM(M29:R29)) -> 
C30: =LEFT($C$28,2)&"." -> G3. | D30: 2 | F30: Proportion | J30: % | K30: =IF(SUM(M30:R30)=0,"",SUM(M30:R30)) ->  | M30: =IF(M29="","",M29/$K$29) -> 
B31: G4 | C31: G4 Purchased Raw Materials Used to Produce Structural Steel & Reinforcing Bar Products (only purchased materials shall be included) | J31: unit | K31: Total | M31: Product 1 | N31: Product 2 | O31: Product 3 | P31: Product 4 | Q31: Product 5 | R31: Product 6
C32: =LEFT($C$31,2)&"." -> G4. | D32: 1 | F32: Dolomite | J32: [t/reporting period, dry weight] | K32: =IF(SUM(M32:R32)=0,"",SUM(M32:R32)) -> 
C33: G4. | D33: 2 | F33: Limestone | J33: [t/reporting period, dry weight] | K33: =IF(SUM(M33:R33)=0,"",SUM(M33:R33)) -> 
C34: G4. | D34: 3 | F34: Iron ore (lump / fine) | J34: [t/reporting period, dry weight]
C35: G4. | D35: 4 | F35: Scrap steel | J35: [t/reporting period, dry weight]
C36: G4. | D36: 5 | F36: Coke | G36: purchased / produced offsite (on-site produced materials are excluded) | J36: [t/reporting period, dry weight]
C37: G4. | D37: 6 | F37: Coal | J37: [t/reporting period, dry weight] | K37: =IF(SUM(M37:R37)=0,"",SUM(M37:R37)) -> 
C38: G4. | D38: 7 | F38: Coating material | J38: [t/reporting period, dry weight]
C39: G4. | D39: 8 | G39: Others, if applicable | H39: [refer to "Customized Embodied EF"] | J39: [t/reporting period, dry weight]
C40: G4. | D40: 9 | G40: Others, if applicable | H40: [refer to "Customized Embodied EF"] | J40: [t/reporting period, dry weight] | K40: =IF(SUM(M40:R40)=0,"",SUM(M40:R40)) -> 
C41: G4. | D41: 10 | F41: Energy commodity used in industrial processes
C42: G4. | D42: =D41 -> 10 | E42: .1 | F42: Stationary combustion sources | H42: Energy commodity : | J42: [t/reporting period] | M42: =IFERROR(IF($K42="","",$K42*M$30),"") -> 
C43: G4. | D43: =D42 -> 10 | E43: .2 | F43: Stationary combustion sources | H43: Energy commodity : | J43: [t/reporting period] | P43: =IFERROR(IF($K43="","",$K43*P$30),"") -> 
C44: G4. | D44: =D43 -> 10 | E44: .3 | F44: Stationary combustion sources | H44: Energy commodity : | J44: [t/reporting period]
C45: G4. | D45: 11 | F45: Energy commodity used in stationary combustion and not covered in industrial processes | H45: Energy Commodity usage type :
C46: G4. | D46: =D45 -> 11 | E46: .1 | F46: Other stationary combustion source NOT covered in industrial processes | H46: Energy commodity : | J46: [t/reporting period] | L46: =IF(I$45="user input",SUM(M46:R46),"") -> 
C47: G4. | D47: =D46 -> 11 | E47: .2 | F47: Other stationary combustion source NOT covered in industrial processes | H47: Energy commodity : | J47: [t/reporting period] | L47: =IF(I$45="user input",SUM(M47:R47),"") -> 
C48: G4. | D48: 12 | F48: On-site transportation | H48: Energy Commodity usage type :
C49: G4. | D49: =D48 -> 12 | E49: .1 | F49: Mobile combustion source | H49: Energy commodity : | J49: [t/reporting period] | L49: =IF(I$48="user input",SUM(M49:R49),"") -> 
C50: G4. | D50: =D49 -> 12 | E50: .2 | F50: Mobile combustion source | H50: Energy commodity : | J50: [t/reporting period] | L50: =IF(I$48="user input",SUM(M50:R50),"") -> 
B51: G5 | C51: G5. Power Consumption of Purchased Energy | J51: unit | K51: Total | M51: Product 1 | N51: Product 2 | O51: Product 3 | P51: Product 4 | Q51: Product 5 | R51: Product 6
C52: =LEFT($C$51,2)&"." -> G5. | D52: 1 | F52: Consumption of electricity produced externally | J52: [MWh/reporting period] | M52: =IFERROR(IF($K52="","",$K52*M30),"") ->  | N52: =IFERROR(IF($K52="","",$K52*N30),"") -> 
C53: =LEFT($C$51,2)&"." -> G5. | D53: 2 | F53: CO2e per unit of electricity produced externally | J53: [kg CO2e/MWh]
B54: G6 | C54: G6 Inputs & Outputs of Industrial Processes | J54: unit | K54: Total | M54: Product 1 | N54: Product 2 | O54: Product 3 | P54: Product 4 | Q54: Product 5 | R54: Product 6
C55: =LEFT($C$54,2)&"." -> G6. | D55: 1 | F55: Industrial processes - Coking production
C56: G6. | D56: =D55 -> 1 | E56: .1 | F56: Inputs
C57: G6. | D57: =D56&E56 -> 1.1 | E57: .1 | F57: Blast furnace gas | G57: consumed at on-site facility | J57: [t/reporting period] | M57: =IFERROR(IF($K57="","",$K57*M$30),"") ->  | N57: =IFERROR(IF($K57="","",$K57*N$30),"") -> 
C58: G6. | D58: =D57 -> 1.1 | E58: .2 | J58: [t/reporting period]
C59: G6. | D59: 1.1 | E59: .3 | J59: [t/reporting period]
C60: G6. | D60: 1.1 | E60: .4 | J60: [t/reporting period] | M60: =IFERROR(IF($K60="","",$K60*M$30),"") -> 
C61: G6. | D61: 1.1 | E61: .5 | J61: [t/reporting period] | M61: =IFERROR(IF($K61="","",$K61*M$30),"") -> 
C62: G6. | D62: 1.1 | E62: .6 | J62: [t/reporting period] | R62: =IFERROR(IF($K62="","",$K62*R$30),"") -> 
C63: G6. | D63: 1 | E63: .2 | F63: Outputs
C64: G6. | D64: =D63&E63 -> 1.2 | E64: .1 | F64: Coke | G64: produced | J64: [t/reporting period] | M64: =IFERROR(IF($K64="","",$K64*M$30),"") -> 
C65: G6. | D65: =D64 -> 1.2 | E65: .2 | F65: Coke oven gas | G65: transferred offsite | J65: [t/reporting period]
C66: G6. | D66: =D65 -> 1.2 | E66: .3 | F66: Coke-oven byproducts | G66: transferred offsite | J66: [t/reporting period]
C67: G6. | D67: 2 | F67: Industrial processes - Sinter production
C68: G6. | D68: =D67 -> 2 | E68: .1 | F68: Inputs
C69: G6. | D69: =D68&E68 -> 2.1 | E69: .1 | J69: [t/reporting period] | M69: =IFERROR(IF($K69="","",$K69*M$30),"") -> 
C70: G6. | D70: =D69 -> 2.1 | E70: .2 | J70: [t/reporting period]
C71: G6. | D71: 2.1 | E71: .3 | J71: [t/reporting period]
C72: G6. | D72: 2.1 | E72: .4 | J72: [t/reporting period]
C73: G6. | D73: =D67 -> 2 | E73: .2 | F73: Outputs
C74: G6. | D74: =D73&E73 -> 2.2 | E74: .1 | F74: Sinter | G74: produced | J74: [t/reporting period] | M74: =IFERROR(IF($K74="","",$K74*M$30),"") -> 
C75: G6. | D75: =D74 -> 2.2 | E75: .2 | F75: Sinter off gas | G75: transferred offsite | J75: [t/reporting period]
C76: G6. | D76: 3 | F76: Industrial processes - Iron and Steel production
C77: G6. | D77: 3 | E77: .1 | F77: Inputs
C78: G6. | D78: =D77&E77 -> 3.1 | E78: .1 | J78: [t/reporting period] | M78: =IFERROR(IF($K78="","",$K78*M$30),"") -> 
C79: G6. | D79: =D78 -> 3.1 | E79: .2 | J79: [t/reporting period]
C80: G6. | D80: 3.1 | E80: .3 | J80: [t/reporting period]
C81: G6. | D81: 3.1 | E81: .4 | J81: [t/reporting period]
C82: G6. | D82: 3.1 | E82: .5 | J82: [t/reporting period]
C83: G6. | D83: 3.1 | E83: .6 | J83: [t/reporting period]
C84: G6. | D84: 3.1 | E84: .7 | J84: [t/reporting period]
C85: G6. | D85: 3.1 | E85: .8 | J85: [t/reporting period]
C86: G6. | D86: 3 | E86: .2 | F86: Outputs
C87: G6. | D87: =D86&E86 -> 3.2 | E87: .1 | F87: Steel | G87: produced at facility | J87: [t/reporting period] | K87: =K29 ->  | M87: =IFERROR(IF($K87="","",$K87*M$30),"") -> 
C88: G6. | D88: =D87 -> 3.2 | E88: .2 | F88: Iron | G88: produced and not converted into steel | J88: [t/reporting period]
C89: G6. | D89: 3.2 | E89: .3 | F89: Blast furnace gas | G89: transferred offsite | J89: [t/reporting period]
C90: G6. | D90: 4 | F90: Industrial processes - DRI production
C91: G6. | D91: 4 | E91: .1 | F91: Inputs
C92: G6. | D92: =D91&E91 -> 4.1 | E92: .1 | F92: Natural gas | J92: [t/reporting period] | M92: =IFERROR(IF($K92="","",$K92*M$30),"") -> 
C93: G6. | D93: =D92 -> 4.1 | E93: .2 | F93: Coke breeze | J93: [t/reporting period]
C94: G6. | D94: =D93 -> 4.1 | E94: .3 | F94: Coke | J94: [t/reporting period]
C95: G6. | D95: =D94 -> 4.1 | E95: .4 | J95: [t/reporting period]
C96: G6. | D96: 4 | E96: .2 | F96: Outputs
C97: G6. | D97: =D96&E96 -> 4.2 | E97: .1 | F97: DRI | G97: produced at facility | J97: [t/reporting period] | M97: =IFERROR(IF($K97="","",$K97*M$30),"") -> 
B99: A | C99: ASSESSMENT
B100: A1 | C100: PROJECT LIFE CYCLE STAGE : A1 RAW MATERIAL EXTRACTION AND UPSTREAM PRODUCTION
C101: A1.1 CO2e EMISSIONS | J101: unit | K101: Total | M101: Product 1 | N101: Product 2 | O101: Product 3 | P101: Product 4 | Q101: Product 5 | R101: Product 6
C102: A1.1.1 | F102: CO2e from bought raw materials | J102: [t CO2e/reporting period] | K102: =SUM(M102:R102) -> 0 | M102: =SUMIF($D:$D,$C102,M:M) -> 0 | N102: 0 | O102: 0 | P102: 0 | Q102: 0 | R102: 0
F103: Adopting CO2e Factors
D104: =C102 -> A1.1.1 | E104: .1 | H104: =F32 -> Dolomite | J104: [t CO2e/reporting period] | K104: =IF(SUM(M104:R104)=0,"",SUM(M104:R104)) ->  | M104: =IFERROR(IF(OR($H104='Customized Embodied EF'!$B:$B),SUMIFS(M:M,$F:$F,$H104,$C:$C,"G4.")*IF($F104="Customized", IF(_xlfn.XLOOKUP($H104,'Customized Embodied EF'!$B:$B,'Customized Embodied EF'!E:E,"error",0)="","Factor error",_xlfn.XLOOKUP($H104,'Customized Embodied EF'!$B:$B,'Customized Embodied EF'!E:E,"error",0)),_xlfn.XLOOKUP($H104,'Customized Embodied EF'!$B:$B,'Customized Embodied EF'!$D:$D,"error",0)),"Factor error"),"Factor error") -> Factor error | N104: =IFERROR(IF(OR($H104='Customized Embodied EF'!$B:$B),SUMIFS(N:N,$F:$F,$H104,$C:$C,"G4.")*IF($F104="Customized", IF(_xlfn.XLOOKUP($H104,'Customized Embodied EF'!$B:$B,'Customized Embodied EF'!F:F,"error",0)="","Factor error",_xlfn.XLOOKUP($H104,'Customized Embodied EF'!$B:$B,'Customized Embodied EF'!F:F,"error",0)),_xlfn.XLOOKUP($H104,'Customized Embodied EF'!$B:$B,'Customized Embodied EF'!$D:$D,"error",0)),"Factor error"),"Factor error") -> Factor error | O104: =IFERROR(IF(OR($H104='Customized Embodied EF'!$B:$B),SUMIFS(O:O,$F:$F,$H104,$C:$C,"G4.")*IF($F104="Customized", IF(_xlfn.XLOOKUP($H104,'Customized Embodied EF'!$B:$B,'Customized Embodied EF'!G:G,"error",0)="","Factor error",_xlfn.XLOOKUP($H104,'Customized Embodied EF'!$B:$B,'Customized Embodied EF'!G:G,"error",0)),_xlfn.XLOOKUP($H104,'Customized Embodied EF'!$B:$B,'Customized Embodied EF'!$D:$D,"error",0)),"Factor error"),"Factor error") -> Factor error | P104: =IFERROR(IF(OR($H104='Customized Embodied EF'!$B:$B),SUMIFS(P:P,$F:$F,$H104,$C:$C,"G4.")*IF($F104="Customized", IF(_xlfn.XLOOKUP($H104,'Customized Embodied EF'!$B:$B,'Customized Embodied EF'!H:H,"error",0)="","Factor error",_xlfn.XLOOKUP($H104,'Customized Embodied EF'!$B:$B,'Customized Embodied EF'!H:H,"error",0)),_xlfn.XLOOKUP($H104,'Customized Embodied EF'!$B:$B,'Customized Embodied EF'!$D:$D,"error",0)),"Factor error"),"Factor error") -> Factor error | Q104: =IFERROR(IF(OR($H104='Customized Embodied EF'!$B:$B),SUMIFS(Q:Q,$F:$F,$H104,$C:$C,"G4.")*IF($F104="Customized", IF(_xlfn.XLOOKUP($H104,'Customized Embodied EF'!$B:$B,'Customized Embodied EF'!I:I,"error",0)="","Factor error",_xlfn.XLOOKUP($H104,'Customized Embodied EF'!$B:$B,'Customized Embodied EF'!I:I,"error",0)),_xlfn.XLOOKUP($H104,'Customized Embodied EF'!$B:$B,'Customized Embodied EF'!$D:$D,"error",0)),"Factor error"),"Factor error") -> Factor error | R104: =IFERROR(IF(OR($H104='Customized Embodied EF'!$B:$B),SUMIFS(R:R,$F:$F,$H104,$C:$C,"G4.")*IF($F104="Customized", IF(_xlfn.XLOOKUP($H104,'Customized Embodied EF'!$B:$B,'Customized Embodied EF'!J:J,"error",0)="","Factor error",_xlfn.XLOOKUP($H104,'Customized Embodied EF'!$B:$B,'Customized Embodied EF'!J:J,"error",0)),_xlfn.XLOOKUP($H104,'Customized Embodied EF'!$B:$B,'Customized Embodied EF'!$D:$D,"error",0)),"Factor error"),"Factor error") -> Factor error
D105: =C102 -> A1.1.1 | E105: .2 | H105: Limestone | J105: [t CO2e/reporting period] | M105: =IFERROR(IF(OR($H105='Customized Embodied EF'!$B:$B),SUMIFS(M:M,$F:$F,$H105,$C:$C,"G4.")*IF($F105="Customized", IF(_xlfn.XLOOKUP($H105,'Customized Embodied EF'!$B:$B,'Customized Embodied EF'!E:E,"error",0)="","Factor error",_xlfn.XLOOKUP($H105,'Customized Embodied EF'!$B:$B,'Customized Embodied EF'!E:E,"error",0)),_xlfn.XLOOKUP($H105,'Customized Embodied EF'!$B:$B,'Customized Embodied EF'!$D:$D,"error",0)),"Factor error"),"Factor error") -> Factor error | N105: =IFERROR(IF(OR($H105='Customized Embodied EF'!$B:$B),SUMIFS(N:N,$F:$F,$H105,$C:$C,"G4.")*IF($F105="Customized", IF(_xlfn.XLOOKUP($H105,'Customized Embodied EF'!$B:$B,'Customized Embodied EF'!F:F,"error",0)="","Factor error",_xlfn.XLOOKUP($H105,'Customized Embodied EF'!$B:$B,'Customized Embodied EF'!F:F,"error",0)),_xlfn.XLOOKUP($H105,'Customized Embodied EF'!$B:$B,'Customized Embodied EF'!$D:$D,"error",0)),"Factor error"),"Factor error") -> Factor error | O105: =IFERROR(IF(OR($H105='Customized Embodied EF'!$B:$B),SUMIFS(O:O,$F:$F,$H105,$C:$C,"G4.")*IF($F105="Customized", IF(_xlfn.XLOOKUP($H105,'Customized Embodied EF'!$B:$B,'Customized Embodied EF'!G:G,"error",0)="","Factor error",_xlfn.XLOOKUP($H105,'Customized Embodied EF'!$B:$B,'Customized Embodied EF'!G:G,"error",0)),_xlfn.XLOOKUP($H105,'Customized Embodied EF'!$B:$B,'Customized Embodied EF'!$D:$D,"error",0)),"Factor error"),"Factor error") -> Factor error | P105: =IFERROR(IF(OR($H105='Customized Embodied EF'!$B:$B),SUMIFS(P:P,$F:$F,$H105,$C:$C,"G4.")*IF($F105="Customized", IF(_xlfn.XLOOKUP($H105,'Customized Embodied EF'!$B:$B,'Customized Embodied EF'!H:H,"error",0)="","Factor error",_xlfn.XLOOKUP($H105,'Customized Embodied EF'!$B:$B,'Customized Embodied EF'!H:H,"error",0)),_xlfn.XLOOKUP($H105,'Customized Embodied EF'!$B:$B,'Customized Embodied EF'!$D:$D,"error",0)),"Factor error"),"Factor error") -> Factor error | Q105: =IFERROR(IF(OR($H105='Customized Embodied EF'!$B:$B),SUMIFS(Q:Q,$F:$F,$H105,$C:$C,"G4.")*IF($F105="Customized", IF(_xlfn.XLOOKUP($H105,'Customized Embodied EF'!$B:$B,'Customized Embodied EF'!I:I,"error",0)="","Factor error",_xlfn.XLOOKUP($H105,'Customized Embodied EF'!$B:$B,'Customized Embodied EF'!I:I,"error",0)),_xlfn.XLOOKUP($H105,'Customized Embodied EF'!$B:$B,'Customized Embodied EF'!$D:$D,"error",0)),"Factor error"),"Factor error") -> Factor error | R105: =IFERROR(IF(OR($H105='Customized Embodied EF'!$B:$B),SUMIFS(R:R,$F:$F,$H105,$C:$C,"G4.")*IF($F105="Customized", IF(_xlfn.XLOOKUP($H105,'Customized Embodied EF'!$B:$B,'Customized Embodied EF'!J:J,"error",0)="","Factor error",_xlfn.XLOOKUP($H105,'Customized Embodied EF'!$B:$B,'Customized Embodied EF'!J:J,"error",0)),_xlfn.XLOOKUP($H105,'Customized Embodied EF'!$B:$B,'Customized Embodied EF'!$D:$D,"error",0)),"Factor error"),"Factor error") -> Factor error
D106: =C102 -> A1.1.1 | E106: .3 | H106: Iron ore (lump / fine) | J106: [t CO2e/reporting period] | M106: =IFERROR(IF(OR($H106='Customized Embodied EF'!$B:$B),SUMIFS(M:M,$F:$F,$H106,$C:$C,"G4.")*IF($F106="Customized", IF(_xlfn.XLOOKUP($H106,'Customized Embodied EF'!$B:$B,'Customized Embodied EF'!E:E,"error",0)="","Factor error",_xlfn.XLOOKUP($H106,'Customized Embodied EF'!$B:$B,'Customized Embodied EF'!E:E,"error",0)),_xlfn.XLOOKUP($H106,'Customized Embodied EF'!$B:$B,'Customized Embodied EF'!$D:$D,"error",0)),"Factor error"),"Factor error") -> Factor error | N106: =IFERROR(IF(OR($H106='Customized Embodied EF'!$B:$B),SUMIFS(N:N,$F:$F,$H106,$C:$C,"G4.")*IF($F106="Customized", IF(_xlfn.XLOOKUP($H106,'Customized Embodied EF'!$B:$B,'Customized Embodied EF'!F:F,"error",0)="","Factor error",_xlfn.XLOOKUP($H106,'Customized Embodied EF'!$B:$B,'Customized Embodied EF'!F:F,"error",0)),_xlfn.XLOOKUP($H106,'Customized Embodied EF'!$B:$B,'Customized Embodied EF'!$D:$D,"error",0)),"Factor error"),"Factor error") -> Factor error | O106: =IFERROR(IF(OR($H106='Customized Embodied EF'!$B:$B),SUMIFS(O:O,$F:$F,$H106,$C:$C,"G4.")*IF($F106="Customized", IF(_xlfn.XLOOKUP($H106,'Customized Embodied EF'!$B:$B,'Customized Embodied EF'!G:G,"error",0)="","Factor error",_xlfn.XLOOKUP($H106,'Customized Embodied EF'!$B:$B,'Customized Embodied EF'!G:G,"error",0)),_xlfn.XLOOKUP($H106,'Customized Embodied EF'!$B:$B,'Customized Embodied EF'!$D:$D,"error",0)),"Factor error"),"Factor error") -> Factor error | P106: =IFERROR(IF(OR($H106='Customized Embodied EF'!$B:$B),SUMIFS(P:P,$F:$F,$H106,$C:$C,"G4.")*IF($F106="Customized", IF(_xlfn.XLOOKUP($H106,'Customized Embodied EF'!$B:$B,'Customized Embodied EF'!H:H,"error",0)="","Factor error",_xlfn.XLOOKUP($H106,'Customized Embodied EF'!$B:$B,'Customized Embodied EF'!H:H,"error",0)),_xlfn.XLOOKUP($H106,'Customized Embodied EF'!$B:$B,'Customized Embodied EF'!$D:$D,"error",0)),"Factor error"),"Factor error") -> Factor error | Q106: =IFERROR(IF(OR($H106='Customized Embodied EF'!$B:$B),SUMIFS(Q:Q,$F:$F,$H106,$C:$C,"G4.")*IF($F106="Customized", IF(_xlfn.XLOOKUP($H106,'Customized Embodied EF'!$B:$B,'Customized Embodied EF'!I:I,"error",0)="","Factor error",_xlfn.XLOOKUP($H106,'Customized Embodied EF'!$B:$B,'Customized Embodied EF'!I:I,"error",0)),_xlfn.XLOOKUP($H106,'Customized Embodied EF'!$B:$B,'Customized Embodied EF'!$D:$D,"error",0)),"Factor error"),"Factor error") -> Factor error | R106: =IFERROR(IF(OR($H106='Customized Embodied EF'!$B:$B),SUMIFS(R:R,$F:$F,$H106,$C:$C,"G4.")*IF($F106="Customized", IF(_xlfn.XLOOKUP($H106,'Customized Embodied EF'!$B:$B,'Customized Embodied EF'!J:J,"error",0)="","Factor error",_xlfn.XLOOKUP($H106,'Customized Embodied EF'!$B:$B,'Customized Embodied EF'!J:J,"error",0)),_xlfn.XLOOKUP($H106,'Customized Embodied EF'!$B:$B,'Customized Embodied EF'!$D:$D,"error",0)),"Factor error"),"Factor error") -> Factor error
D107: =C102 -> A1.1.1 | E107: .4 | H107: Scrap steel | J107: [t CO2e/reporting period] | M107: =IFERROR(IF(SUMIFS(M:M,$F:$F,$H107,$C:$C,"G4.")=0,0,IF(OR($H107='Customized Embodied EF'!$B:$B),SUMIFS(M:M,$F:$F,$H107,$C:$C,"G4.")*IF($F107="Customized", IF(_xlfn.XLOOKUP($H107,'Customized Embodied EF'!$B:$B,'Customized Embodied EF'!E:E,"error",0)="","Factor error",_xlfn.XLOOKUP($H107,'Customized Embodied EF'!$B:$B,'Customized Embodied EF'!E:E,"error",0)),_xlfn.XLOOKUP($H107,'Customized Embodied EF'!$B:$B,'Customized Embodied EF'!$D:$D,"error",0)),"Factor error")),"Factor error") -> 0 | N107: =IFERROR(IF(SUMIFS(N:N,$F:$F,$H107,$C:$C,"G4.")=0,0,IF(OR($H107='Customized Embodied EF'!$B:$B),SUMIFS(N:N,$F:$F,$H107,$C:$C,"G4.")*IF($F107="Customized", IF(_xlfn.XLOOKUP($H107,'Customized Embodied EF'!$B:$B,'Customized Embodied EF'!F:F,"error",0)="","Factor error",_xlfn.XLOOKUP($H107,'Customized Embodied EF'!$B:$B,'Customized Embodied EF'!F:F,"error",0)),_xlfn.XLOOKUP($H107,'Customized Embodied EF'!$B:$B,'Customized Embodied EF'!$D:$D,"error",0)),"Factor error")),"Factor error") -> 0 | O107: =IFERROR(IF(SUMIFS(O:O,$F:$F,$H107,$C:$C,"G4.")=0,0,IF(OR($H107='Customized Embodied EF'!$B:$B),SUMIFS(O:O,$F:$F,$H107,$C:$C,"G4.")*IF($F107="Customized", IF(_xlfn.XLOOKUP($H107,'Customized Embodied EF'!$B:$B,'Customized Embodied EF'!G:G,"error",0)="","Factor error",_xlfn.XLOOKUP($H107,'Customized Embodied EF'!$B:$B,'Customized Embodied EF'!G:G,"error",0)),_xlfn.XLOOKUP($H107,'Customized Embodied EF'!$B:$B,'Customized Embodied EF'!$D:$D,"error",0)),"Factor error")),"Factor error") -> 0 | P107: =IFERROR(IF(SUMIFS(P:P,$F:$F,$H107,$C:$C,"G4.")=0,0,IF(OR($H107='Customized Embodied EF'!$B:$B),SUMIFS(P:P,$F:$F,$H107,$C:$C,"G4.")*IF($F107="Customized", IF(_xlfn.XLOOKUP($H107,'Customized Embodied EF'!$B:$B,'Customized Embodied EF'!H:H,"error",0)="","Factor error",_xlfn.XLOOKUP($H107,'Customized Embodied EF'!$B:$B,'Customized Embodied EF'!H:H,"error",0)),_xlfn.XLOOKUP($H107,'Customized Embodied EF'!$B:$B,'Customized Embodied EF'!$D:$D,"error",0)),"Factor error")),"Factor error") -> 0 | Q107: =IFERROR(IF(SUMIFS(Q:Q,$F:$F,$H107,$C:$C,"G4.")=0,0,IF(OR($H107='Customized Embodied EF'!$B:$B),SUMIFS(Q:Q,$F:$F,$H107,$C:$C,"G4.")*IF($F107="Customized", IF(_xlfn.XLOOKUP($H107,'Customized Embodied EF'!$B:$B,'Customized Embodied EF'!I:I,"error",0)="","Factor error",_xlfn.XLOOKUP($H107,'Customized Embodied EF'!$B:$B,'Customized Embodied EF'!I:I,"error",0)),_xlfn.XLOOKUP($H107,'Customized Embodied EF'!$B:$B,'Customized Embodied EF'!$D:$D,"error",0)),"Factor error")),"Factor error") -> 0 | R107: =IFERROR(IF(SUMIFS(R:R,$F:$F,$H107,$C:$C,"G4.")=0,0,IF(OR($H107='Customized Embodied EF'!$B:$B),SUMIFS(R:R,$F:$F,$H107,$C:$C,"G4.")*IF($F107="Customized", IF(_xlfn.XLOOKUP($H107,'Customized Embodied EF'!$B:$B,'Customized Embodied EF'!J:J,"error",0)="","Factor error",_xlfn.XLOOKUP($H107,'Customized Embodied EF'!$B:$B,'Customized Embodied EF'!J:J,"error",0)),_xlfn.XLOOKUP($H107,'Customized Embodied EF'!$B:$B,'Customized Embodied EF'!$D:$D,"error",0)),"Factor error")),"Factor error") -> 0
D108: =D107 -> A1.1.1 | E108: .5 | H108: Coke | I108: =G36 -> purchased / produced offsite (on-site produced materials are excluded) | J108: [t CO2e/reporting period] | M108: =IFERROR(IF(SUMIFS(M:M,$F:$F,$H108,$C:$C,"G4.")=0,0,IF(OR($H108='Customized Embodied EF'!$B:$B),SUMIFS(M:M,$F:$F,$H108,$C:$C,"G4.")*IF($F108="Customized", IF(_xlfn.XLOOKUP($H108,'Customized Embodied EF'!$B:$B,'Customized Embodied EF'!E:E,"error",0)="","Factor error",_xlfn.XLOOKUP($H108,'Customized Embodied EF'!$B:$B,'Customized Embodied EF'!E:E,"error",0)),_xlfn.XLOOKUP($H108,'Customized Embodied EF'!$B:$B,'Customized Embodied EF'!$D:$D,"error",0)),"Factor error")),"Factor error") -> 0 | N108: =IFERROR(IF(SUMIFS(N:N,$F:$F,$H108,$C:$C,"G4.")=0,0,IF(OR($H108='Customized Embodied EF'!$B:$B),SUMIFS(N:N,$F:$F,$H108,$C:$C,"G4.")*IF($F108="Customized", IF(_xlfn.XLOOKUP($H108,'Customized Embodied EF'!$B:$B,'Customized Embodied EF'!F:F,"error",0)="","Factor error",_xlfn.XLOOKUP($H108,'Customized Embodied EF'!$B:$B,'Customized Embodied EF'!F:F,"error",0)),_xlfn.XLOOKUP($H108,'Customized Embodied EF'!$B:$B,'Customized Embodied EF'!$D:$D,"error",0)),"Factor error")),"Factor error") -> 0 | O108: =IFERROR(IF(SUMIFS(O:O,$F:$F,$H108,$C:$C,"G4.")=0,0,IF(OR($H108='Customized Embodied EF'!$B:$B),SUMIFS(O:O,$F:$F,$H108,$C:$C,"G4.")*IF($F108="Customized", IF(_xlfn.XLOOKUP($H108,'Customized Embodied EF'!$B:$B,'Customized Embodied EF'!G:G,"error",0)="","Factor error",_xlfn.XLOOKUP($H108,'Customized Embodied EF'!$B:$B,'Customized Embodied EF'!G:G,"error",0)),_xlfn.XLOOKUP($H108,'Customized Embodied EF'!$B:$B,'Customized Embodied EF'!$D:$D,"error",0)),"Factor error")),"Factor error") -> 0 | P108: =IFERROR(IF(SUMIFS(P:P,$F:$F,$H108,$C:$C,"G4.")=0,0,IF(OR($H108='Customized Embodied EF'!$B:$B),SUMIFS(P:P,$F:$F,$H108,$C:$C,"G4.")*IF($F108="Customized", IF(_xlfn.XLOOKUP($H108,'Customized Embodied EF'!$B:$B,'Customized Embodied EF'!H:H,"error",0)="","Factor error",_xlfn.XLOOKUP($H108,'Customized Embodied EF'!$B:$B,'Customized Embodied EF'!H:H,"error",0)),_xlfn.XLOOKUP($H108,'Customized Embodied EF'!$B:$B,'Customized Embodied EF'!$D:$D,"error",0)),"Factor error")),"Factor error") -> 0 | Q108: =IFERROR(IF(SUMIFS(Q:Q,$F:$F,$H108,$C:$C,"G4.")=0,0,IF(OR($H108='Customized Embodied EF'!$B:$B),SUMIFS(Q:Q,$F:$F,$H108,$C:$C,"G4.")*IF($F108="Customized", IF(_xlfn.XLOOKUP($H108,'Customized Embodied EF'!$B:$B,'Customized Embodied EF'!I:I,"error",0)="","Factor error",_xlfn.XLOOKUP($H108,'Customized Embodied EF'!$B:$B,'Customized Embodied EF'!I:I,"error",0)),_xlfn.XLOOKUP($H108,'Customized Embodied EF'!$B:$B,'Customized Embodied EF'!$D:$D,"error",0)),"Factor error")),"Factor error") -> 0 | R108: =IFERROR(IF(SUMIFS(R:R,$F:$F,$H108,$C:$C,"G4.")=0,0,IF(OR($H108='Customized Embodied EF'!$B:$B),SUMIFS(R:R,$F:$F,$H108,$C:$C,"G4.")*IF($F108="Customized", IF(_xlfn.XLOOKUP($H108,'Customized Embodied EF'!$B:$B,'Customized Embodied EF'!J:J,"error",0)="","Factor error",_xlfn.XLOOKUP($H108,'Customized Embodied EF'!$B:$B,'Customized Embodied EF'!J:J,"error",0)),_xlfn.XLOOKUP($H108,'Customized Embodied EF'!$B:$B,'Customized Embodied EF'!$D:$D,"error",0)),"Factor error")),"Factor error") -> 0
D109: =D108 -> A1.1.1 | E109: .6 | H109: Coal | J109: [t CO2e/reporting period] | M109: =IFERROR(IF(OR($H109='Customized Embodied EF'!$B:$B),SUMIFS(M:M,$F:$F,$H109,$C:$C,"G4.")*IF($F109="Customized", IF(_xlfn.XLOOKUP($H109,'Customized Embodied EF'!$B:$B,'Customized Embodied EF'!E:E,"error",0)="","Factor error",_xlfn.XLOOKUP($H109,'Customized Embodied EF'!$B:$B,'Customized Embodied EF'!E:E,"error",0)),_xlfn.XLOOKUP($H109,'Customized Embodied EF'!$B:$B,'Customized Embodied EF'!$D:$D,"error",0)),"Factor error"),"Factor error") -> Factor error | N109: =IFERROR(IF(OR($H109='Customized Embodied EF'!$B:$B),SUMIFS(N:N,$F:$F,$H109,$C:$C,"G4.")*IF($F109="Customized", IF(_xlfn.XLOOKUP($H109,'Customized Embodied EF'!$B:$B,'Customized Embodied EF'!F:F,"error",0)="","Factor error",_xlfn.XLOOKUP($H109,'Customized Embodied EF'!$B:$B,'Customized Embodied EF'!F:F,"error",0)),_xlfn.XLOOKUP($H109,'Customized Embodied EF'!$B:$B,'Customized Embodied EF'!$D:$D,"error",0)),"Factor error"),"Factor error") -> Factor error | O109: =IFERROR(IF(OR($H109='Customized Embodied EF'!$B:$B),SUMIFS(O:O,$F:$F,$H109,$C:$C,"G4.")*IF($F109="Customized", IF(_xlfn.XLOOKUP($H109,'Customized Embodied EF'!$B:$B,'Customized Embodied EF'!G:G,"error",0)="","Factor error",_xlfn.XLOOKUP($H109,'Customized Embodied EF'!$B:$B,'Customized Embodied EF'!G:G,"error",0)),_xlfn.XLOOKUP($H109,'Customized Embodied EF'!$B:$B,'Customized Embodied EF'!$D:$D,"error",0)),"Factor error"),"Factor error") -> Factor error | P109: =IFERROR(IF(OR($H109='Customized Embodied EF'!$B:$B),SUMIFS(P:P,$F:$F,$H109,$C:$C,"G4.")*IF($F109="Customized", IF(_xlfn.XLOOKUP($H109,'Customized Embodied EF'!$B:$B,'Customized Embodied EF'!H:H,"error",0)="","Factor error",_xlfn.XLOOKUP($H109,'Customized Embodied EF'!$B:$B,'Customized Embodied EF'!H:H,"error",0)),_xlfn.XLOOKUP($H109,'Customized Embodied EF'!$B:$B,'Customized Embodied EF'!$D:$D,"error",0)),"Factor error"),"Factor error") -> Factor error | Q109: =IFERROR(IF(OR($H109='Customized Embodied EF'!$B:$B),SUMIFS(Q:Q,$F:$F,$H109,$C:$C,"G4.")*IF($F109="Customized", IF(_xlfn.XLOOKUP($H109,'Customized Embodied EF'!$B:$B,'Customized Embodied EF'!I:I,"error",0)="","Factor error",_xlfn.XLOOKUP($H109,'Customized Embodied EF'!$B:$B,'Customized Embodied EF'!I:I,"error",0)),_xlfn.XLOOKUP($H109,'Customized Embodied EF'!$B:$B,'Customized Embodied EF'!$D:$D,"error",0)),"Factor error"),"Factor error") -> Factor error | R109: =IFERROR(IF(OR($H109='Customized Embodied EF'!$B:$B),SUMIFS(R:R,$F:$F,$H109,$C:$C,"G4.")*IF($F109="Customized", IF(_xlfn.XLOOKUP($H109,'Customized Embodied EF'!$B:$B,'Customized Embodied EF'!J:J,"error",0)="","Factor error",_xlfn.XLOOKUP($H109,'Customized Embodied EF'!$B:$B,'Customized Embodied EF'!J:J,"error",0)),_xlfn.XLOOKUP($H109,'Customized Embodied EF'!$B:$B,'Customized Embodied EF'!$D:$D,"error",0)),"Factor error"),"Factor error") -> Factor error
D110: =D109 -> A1.1.1 | E110: .7 | H110: Coating material | J110: [t CO2e/reporting period] | M110: =IFERROR(IF(OR($H110='Customized Embodied EF'!$B:$B),SUMIFS(M:M,$F:$F,$H110,$C:$C,"G4.")*IF($F110="Customized", IF(_xlfn.XLOOKUP($H110,'Customized Embodied EF'!$B:$B,'Customized Embodied EF'!E:E,"error",0)="","Factor error",_xlfn.XLOOKUP($H110,'Customized Embodied EF'!$B:$B,'Customized Embodied EF'!E:E,"error",0)),_xlfn.XLOOKUP($H110,'Customized Embodied EF'!$B:$B,'Customized Embodied EF'!$D:$D,"error",0)),"Factor error"),"Factor error") -> Factor error | N110: =IFERROR(IF(OR($H110='Customized Embodied EF'!$B:$B),SUMIFS(N:N,$F:$F,$H110,$C:$C,"G4.")*IF($F110="Customized", IF(_xlfn.XLOOKUP($H110,'Customized Embodied EF'!$B:$B,'Customized Embodied EF'!F:F,"error",0)="","Factor error",_xlfn.XLOOKUP($H110,'Customized Embodied EF'!$B:$B,'Customized Embodied EF'!F:F,"error",0)),_xlfn.XLOOKUP($H110,'Customized Embodied EF'!$B:$B,'Customized Embodied EF'!$D:$D,"error",0)),"Factor error"),"Factor error") -> Factor error | O110: =IFERROR(IF(OR($H110='Customized Embodied EF'!$B:$B),SUMIFS(O:O,$F:$F,$H110,$C:$C,"G4.")*IF($F110="Customized", IF(_xlfn.XLOOKUP($H110,'Customized Embodied EF'!$B:$B,'Customized Embodied EF'!G:G,"error",0)="","Factor error",_xlfn.XLOOKUP($H110,'Customized Embodied EF'!$B:$B,'Customized Embodied EF'!G:G,"error",0)),_xlfn.XLOOKUP($H110,'Customized Embodied EF'!$B:$B,'Customized Embodied EF'!$D:$D,"error",0)),"Factor error"),"Factor error") -> Factor error | P110: =IFERROR(IF(OR($H110='Customized Embodied EF'!$B:$B),SUMIFS(P:P,$F:$F,$H110,$C:$C,"G4.")*IF($F110="Customized", IF(_xlfn.XLOOKUP($H110,'Customized Embodied EF'!$B:$B,'Customized Embodied EF'!H:H,"error",0)="","Factor error",_xlfn.XLOOKUP($H110,'Customized Embodied EF'!$B:$B,'Customized Embodied EF'!H:H,"error",0)),_xlfn.XLOOKUP($H110,'Customized Embodied EF'!$B:$B,'Customized Embodied EF'!$D:$D,"error",0)),"Factor error"),"Factor error") -> Factor error | Q110: =IFERROR(IF(OR($H110='Customized Embodied EF'!$B:$B),SUMIFS(Q:Q,$F:$F,$H110,$C:$C,"G4.")*IF($F110="Customized", IF(_xlfn.XLOOKUP($H110,'Customized Embodied EF'!$B:$B,'Customized Embodied EF'!I:I,"error",0)="","Factor error",_xlfn.XLOOKUP($H110,'Customized Embodied EF'!$B:$B,'Customized Embodied EF'!I:I,"error",0)),_xlfn.XLOOKUP($H110,'Customized Embodied EF'!$B:$B,'Customized Embodied EF'!$D:$D,"error",0)),"Factor error"),"Factor error") -> Factor error | R110: =IFERROR(IF(OR($H110='Customized Embodied EF'!$B:$B),SUMIFS(R:R,$F:$F,$H110,$C:$C,"G4.")*IF($F110="Customized", IF(_xlfn.XLOOKUP($H110,'Customized Embodied EF'!$B:$B,'Customized Embodied EF'!J:J,"error",0)="","Factor error",_xlfn.XLOOKUP($H110,'Customized Embodied EF'!$B:$B,'Customized Embodied EF'!J:J,"error",0)),_xlfn.XLOOKUP($H110,'Customized Embodied EF'!$B:$B,'Customized Embodied EF'!$D:$D,"error",0)),"Factor error"),"Factor error") -> Factor error
D111: =D110 -> A1.1.1 | E111: .8 | H111: =IF(F39="","",F39) ->  | I111: [refer to section G4.8] | J111: [t CO2e/reporting period] | M111: =IFERROR(IF(SUMIFS(M:M,$F:$F,$H111,$C:$C,"G4.")=0,0,IF(OR($H111='Customized Embodied EF'!$B:$B),SUMIFS(M:M,$F:$F,$H111,$C:$C,"G4.")*IF($F111="Customized", IF(_xlfn.XLOOKUP($H111,'Customized Embodied EF'!$B:$B,'Customized Embodied EF'!E:E,"error",0)="","Factor error",_xlfn.XLOOKUP($H111,'Customized Embodied EF'!$B:$B,'Customized Embodied EF'!E:E,"error",0)),_xlfn.XLOOKUP($H111,'Customized Embodied EF'!$B:$B,'Customized Embodied EF'!$D:$D,"error",0)),"Factor error")),"Factor error") -> 0 | N111: =IFERROR(IF(SUMIFS(N:N,$F:$F,$H111,$C:$C,"G4.")=0,0,IF(OR($H111='Customized Embodied EF'!$B:$B),SUMIFS(N:N,$F:$F,$H111,$C:$C,"G4.")*IF($F111="Customized", IF(_xlfn.XLOOKUP($H111,'Customized Embodied EF'!$B:$B,'Customized Embodied EF'!F:F,"error",0)="","Factor error",_xlfn.XLOOKUP($H111,'Customized Embodied EF'!$B:$B,'Customized Embodied EF'!F:F,"error",0)),_xlfn.XLOOKUP($H111,'Customized Embodied EF'!$B:$B,'Customized Embodied EF'!$D:$D,"error",0)),"Factor error")),"Factor error") -> 0 | O111: =IFERROR(IF(SUMIFS(O:O,$F:$F,$H111,$C:$C,"G4.")=0,0,IF(OR($H111='Customized Embodied EF'!$B:$B),SUMIFS(O:O,$F:$F,$H111,$C:$C,"G4.")*IF($F111="Customized", IF(_xlfn.XLOOKUP($H111,'Customized Embodied EF'!$B:$B,'Customized Embodied EF'!G:G,"error",0)="","Factor error",_xlfn.XLOOKUP($H111,'Customized Embodied EF'!$B:$B,'Customized Embodied EF'!G:G,"error",0)),_xlfn.XLOOKUP($H111,'Customized Embodied EF'!$B:$B,'Customized Embodied EF'!$D:$D,"error",0)),"Factor error")),"Factor error") -> 0 | P111: =IFERROR(IF(SUMIFS(P:P,$F:$F,$H111,$C:$C,"G4.")=0,0,IF(OR($H111='Customized Embodied EF'!$B:$B),SUMIFS(P:P,$F:$F,$H111,$C:$C,"G4.")*IF($F111="Customized", IF(_xlfn.XLOOKUP($H111,'Customized Embodied EF'!$B:$B,'Customized Embodied EF'!H:H,"error",0)="","Factor error",_xlfn.XLOOKUP($H111,'Customized Embodied EF'!$B:$B,'Customized Embodied EF'!H:H,"error",0)),_xlfn.XLOOKUP($H111,'Customized Embodied EF'!$B:$B,'Customized Embodied EF'!$D:$D,"error",0)),"Factor error")),"Factor error") -> 0 | Q111: =IFERROR(IF(SUMIFS(Q:Q,$F:$F,$H111,$C:$C,"G4.")=0,0,IF(OR($H111='Customized Embodied EF'!$B:$B),SUMIFS(Q:Q,$F:$F,$H111,$C:$C,"G4.")*IF($F111="Customized", IF(_xlfn.XLOOKUP($H111,'Customized Embodied EF'!$B:$B,'Customized Embodied EF'!I:I,"error",0)="","Factor error",_xlfn.XLOOKUP($H111,'Customized Embodied EF'!$B:$B,'Customized Embodied EF'!I:I,"error",0)),_xlfn.XLOOKUP($H111,'Customized Embodied EF'!$B:$B,'Customized Embodied EF'!$D:$D,"error",0)),"Factor error")),"Factor error") -> 0 | R111: =IFERROR(IF(SUMIFS(R:R,$F:$F,$H111,$C:$C,"G4.")=0,0,IF(OR($H111='Customized Embodied EF'!$B:$B),SUMIFS(R:R,$F:$F,$H111,$C:$C,"G4.")*IF($F111="Customized", IF(_xlfn.XLOOKUP($H111,'Customized Embodied EF'!$B:$B,'Customized Embodied EF'!J:J,"error",0)="","Factor error",_xlfn.XLOOKUP($H111,'Customized Embodied EF'!$B:$B,'Customized Embodied EF'!J:J,"error",0)),_xlfn.XLOOKUP($H111,'Customized Embodied EF'!$B:$B,'Customized Embodied EF'!$D:$D,"error",0)),"Factor error")),"Factor error") -> 0
D112: A1.1.1 | E112: .9 | H112: =IF(F40="","",F40) ->  | I112: [refer to section G4.9] | J112: [t CO2e/reporting period] | M112: =IFERROR(IF(SUMIFS(M:M,$F:$F,$H112,$C:$C,"G4.")=0,0,IF(OR($H112='Customized Embodied EF'!$B:$B),SUMIFS(M:M,$F:$F,$H112,$C:$C,"G4.")*IF($F112="Customized", IF(_xlfn.XLOOKUP($H112,'Customized Embodied EF'!$B:$B,'Customized Embodied EF'!E:E,"error",0)="","Factor error",_xlfn.XLOOKUP($H112,'Customized Embodied EF'!$B:$B,'Customized Embodied EF'!E:E,"error",0)),_xlfn.XLOOKUP($H112,'Customized Embodied EF'!$B:$B,'Customized Embodied EF'!$D:$D,"error",0)),"Factor error")),"Factor error") -> 0 | N112: =IFERROR(IF(SUMIFS(N:N,$F:$F,$H112,$C:$C,"G4.")=0,0,IF(OR($H112='Customized Embodied EF'!$B:$B),SUMIFS(N:N,$F:$F,$H112,$C:$C,"G4.")*IF($F112="Customized", IF(_xlfn.XLOOKUP($H112,'Customized Embodied EF'!$B:$B,'Customized Embodied EF'!F:F,"error",0)="","Factor error",_xlfn.XLOOKUP($H112,'Customized Embodied EF'!$B:$B,'Customized Embodied EF'!F:F,"error",0)),_xlfn.XLOOKUP($H112,'Customized Embodied EF'!$B:$B,'Customized Embodied EF'!$D:$D,"error",0)),"Factor error")),"Factor error") -> 0 | O112: =IFERROR(IF(SUMIFS(O:O,$F:$F,$H112,$C:$C,"G4.")=0,0,IF(OR($H112='Customized Embodied EF'!$B:$B),SUMIFS(O:O,$F:$F,$H112,$C:$C,"G4.")*IF($F112="Customized", IF(_xlfn.XLOOKUP($H112,'Customized Embodied EF'!$B:$B,'Customized Embodied EF'!G:G,"error",0)="","Factor error",_xlfn.XLOOKUP($H112,'Customized Embodied EF'!$B:$B,'Customized Embodied EF'!G:G,"error",0)),_xlfn.XLOOKUP($H112,'Customized Embodied EF'!$B:$B,'Customized Embodied EF'!$D:$D,"error",0)),"Factor error")),"Factor error") -> 0 | P112: =IFERROR(IF(SUMIFS(P:P,$F:$F,$H112,$C:$C,"G4.")=0,0,IF(OR($H112='Customized Embodied EF'!$B:$B),SUMIFS(P:P,$F:$F,$H112,$C:$C,"G4.")*IF($F112="Customized", IF(_xlfn.XLOOKUP($H112,'Customized Embodied EF'!$B:$B,'Customized Embodied EF'!H:H,"error",0)="","Factor error",_xlfn.XLOOKUP($H112,'Customized Embodied EF'!$B:$B,'Customized Embodied EF'!H:H,"error",0)),_xlfn.XLOOKUP($H112,'Customized Embodied EF'!$B:$B,'Customized Embodied EF'!$D:$D,"error",0)),"Factor error")),"Factor error") -> 0 | Q112: =IFERROR(IF(SUMIFS(Q:Q,$F:$F,$H112,$C:$C,"G4.")=0,0,IF(OR($H112='Customized Embodied EF'!$B:$B),SUMIFS(Q:Q,$F:$F,$H112,$C:$C,"G4.")*IF($F112="Customized", IF(_xlfn.XLOOKUP($H112,'Customized Embodied EF'!$B:$B,'Customized Embodied EF'!I:I,"error",0)="","Factor error",_xlfn.XLOOKUP($H112,'Customized Embodied EF'!$B:$B,'Customized Embodied EF'!I:I,"error",0)),_xlfn.XLOOKUP($H112,'Customized Embodied EF'!$B:$B,'Customized Embodied EF'!$D:$D,"error",0)),"Factor error")),"Factor error") -> 0 | R112: =IFERROR(IF(SUMIFS(R:R,$F:$F,$H112,$C:$C,"G4.")=0,0,IF(OR($H112='Customized Embodied EF'!$B:$B),SUMIFS(R:R,$F:$F,$H112,$C:$C,"G4.")*IF($F112="Customized", IF(_xlfn.XLOOKUP($H112,'Customized Embodied EF'!$B:$B,'Customized Embodied EF'!J:J,"error",0)="","Factor error",_xlfn.XLOOKUP($H112,'Customized Embodied EF'!$B:$B,'Customized Embodied EF'!J:J,"error",0)),_xlfn.XLOOKUP($H112,'Customized Embodied EF'!$B:$B,'Customized Embodied EF'!$D:$D,"error",0)),"Factor error")),"Factor error") -> 0
C113: A1.1.2 | F113: CO2e from bought energy commodity | J113: [t CO2e/reporting period] | K113: =SUM(M113:R113) -> 0 | M113: =SUMIF($D:$D,$C113,M:M) -> 0 | N113: 0 | O113: 0 | P113: 0 | Q113: 0 | R113: 0
F114: Adopting CO2e Factors | H114: [Please insert additional rows if more energy commodities are included]
D115: =C113 -> A1.1.2 | E115: .1 | H115: =H49 -> Energy commodity : | J115: [t CO2e/reporting period] | K115: =SUM(M115:R115) -> 0 | M115: =IFERROR(IF(OR($I115='Customized Embodied EF'!$B:$B),SUMIFS(M:M,$I:$I,$I115,$C:$C,"G4.")*IF($F115="Customized", IF(_xlfn.XLOOKUP($I115,'Customized Embodied EF'!$B:$B,'Customized Embodied EF'!E:E,"error",0)="","Factor error",_xlfn.XLOOKUP($I115,'Customized Embodied EF'!$B:$B,'Customized Embodied EF'!E:E,"error",0)),_xlfn.XLOOKUP($I115,'Customized Embodied EF'!$B:$B,'Customized Embodied EF'!$D:$D,"error",0)),"Factor error"),"Factor error") -> Factor error | N115: =IFERROR(IF(OR($I115='Customized Embodied EF'!$B:$B),SUMIFS(N:N,$I:$I,$I115,$C:$C,"G4.")*IF($F115="Customized", IF(_xlfn.XLOOKUP($I115,'Customized Embodied EF'!$B:$B,'Customized Embodied EF'!F:F,"error",0)="","Factor error",_xlfn.XLOOKUP($I115,'Customized Embodied EF'!$B:$B,'Customized Embodied EF'!F:F,"error",0)),_xlfn.XLOOKUP($I115,'Customized Embodied EF'!$B:$B,'Customized Embodied EF'!$D:$D,"error",0)),"Factor error"),"Factor error") -> Factor error | O115: =IFERROR(IF(OR($I115='Customized Embodied EF'!$B:$B),SUMIFS(O:O,$I:$I,$I115,$C:$C,"G4.")*IF($F115="Customized", IF(_xlfn.XLOOKUP($I115,'Customized Embodied EF'!$B:$B,'Customized Embodied EF'!G:G,"error",0)="","Factor error",_xlfn.XLOOKUP($I115,'Customized Embodied EF'!$B:$B,'Customized Embodied EF'!G:G,"error",0)),_xlfn.XLOOKUP($I115,'Customized Embodied EF'!$B:$B,'Customized Embodied EF'!$D:$D,"error",0)),"Factor error"),"Factor error") -> Factor error | P115: =IFERROR(IF(OR($I115='Customized Embodied EF'!$B:$B),SUMIFS(P:P,$I:$I,$I115,$C:$C,"G4.")*IF($F115="Customized", IF(_xlfn.XLOOKUP($I115,'Customized Embodied EF'!$B:$B,'Customized Embodied EF'!H:H,"error",0)="","Factor error",_xlfn.XLOOKUP($I115,'Customized Embodied EF'!$B:$B,'Customized Embodied EF'!H:H,"error",0)),_xlfn.XLOOKUP($I115,'Customized Embodied EF'!$B:$B,'Customized Embodied EF'!$D:$D,"error",0)),"Factor error"),"Factor error") -> Factor error | Q115: =IFERROR(IF(OR($I115='Customized Embodied EF'!$B:$B),SUMIFS(Q:Q,$I:$I,$I115,$C:$C,"G4.")*IF($F115="Customized", IF(_xlfn.XLOOKUP($I115,'Customized Embodied EF'!$B:$B,'Customized Embodied EF'!I:I,"error",0)="","Factor error",_xlfn.XLOOKUP($I115,'Customized Embodied EF'!$B:$B,'Customized Embodied EF'!I:I,"error",0)),_xlfn.XLOOKUP($I115,'Customized Embodied EF'!$B:$B,'Customized Embodied EF'!$D:$D,"error",0)),"Factor error"),"Factor error") -> Factor error | R115: =IFERROR(IF(OR($I115='Customized Embodied EF'!$B:$B),SUMIFS(R:R,$I:$I,$I115,$C:$C,"G4.")*IF($F115="Customized", IF(_xlfn.XLOOKUP($I115,'Customized Embodied EF'!$B:$B,'Customized Embodied EF'!J:J,"error",0)="","Factor error",_xlfn.XLOOKUP($I115,'Customized Embodied EF'!$B:$B,'Customized Embodied EF'!J:J,"error",0)),_xlfn.XLOOKUP($I115,'Customized Embodied EF'!$B:$B,'Customized Embodied EF'!$D:$D,"error",0)),"Factor error"),"Factor error") -> Factor error
D116: =D115 -> A1.1.2 | E116: .2 | H116: =H50 -> Energy commodity : | J116: [t CO2e/reporting period] | K116: =SUM(M116:R116) -> 0 | M116: =IFERROR(IF(OR($I116='Customized Embodied EF'!$B:$B),SUMIFS(M:M,$I:$I,$I116,$C:$C,"G4.")*IF($F116="Customized", IF(_xlfn.XLOOKUP($I116,'Customized Embodied EF'!$B:$B,'Customized Embodied EF'!E:E,"error",0)="","Factor error",_xlfn.XLOOKUP($I116,'Customized Embodied EF'!$B:$B,'Customized Embodied EF'!E:E,"error",0)),_xlfn.XLOOKUP($I116,'Customized Embodied EF'!$B:$B,'Customized Embodied EF'!$D:$D,"error",0)),"Factor error"),"Factor error") -> Factor error | N116: =IFERROR(IF(OR($I116='Customized Embodied EF'!$B:$B),SUMIFS(N:N,$I:$I,$I116,$C:$C,"G4.")*IF($F116="Customized", IF(_xlfn.XLOOKUP($I116,'Customized Embodied EF'!$B:$B,'Customized Embodied EF'!F:F,"error",0)="","Factor error",_xlfn.XLOOKUP($I116,'Customized Embodied EF'!$B:$B,'Customized Embodied EF'!F:F,"error",0)),_xlfn.XLOOKUP($I116,'Customized Embodied EF'!$B:$B,'Customized Embodied EF'!$D:$D,"error",0)),"Factor error"),"Factor error") -> Factor error | O116: =IFERROR(IF(OR($I116='Customized Embodied EF'!$B:$B),SUMIFS(O:O,$I:$I,$I116,$C:$C,"G4.")*IF($F116="Customized", IF(_xlfn.XLOOKUP($I116,'Customized Embodied EF'!$B:$B,'Customized Embodied EF'!G:G,"error",0)="","Factor error",_xlfn.XLOOKUP($I116,'Customized Embodied EF'!$B:$B,'Customized Embodied EF'!G:G,"error",0)),_xlfn.XLOOKUP($I116,'Customized Embodied EF'!$B:$B,'Customized Embodied EF'!$D:$D,"error",0)),"Factor error"),"Factor error") -> Factor error | P116: =IFERROR(IF(OR($I116='Customized Embodied EF'!$B:$B),SUMIFS(P:P,$I:$I,$I116,$C:$C,"G4.")*IF($F116="Customized", IF(_xlfn.XLOOKUP($I116,'Customized Embodied EF'!$B:$B,'Customized Embodied EF'!H:H,"error",0)="","Factor error",_xlfn.XLOOKUP($I116,'Customized Embodied EF'!$B:$B,'Customized Embodied EF'!H:H,"error",0)),_xlfn.XLOOKUP($I116,'Customized Embodied EF'!$B:$B,'Customized Embodied EF'!$D:$D,"error",0)),"Factor error"),"Factor error") -> Factor error | Q116: =IFERROR(IF(OR($I116='Customized Embodied EF'!$B:$B),SUMIFS(Q:Q,$I:$I,$I116,$C:$C,"G4.")*IF($F116="Customized", IF(_xlfn.XLOOKUP($I116,'Customized Embodied EF'!$B:$B,'Customized Embodied EF'!I:I,"error",0)="","Factor error",_xlfn.XLOOKUP($I116,'Customized Embodied EF'!$B:$B,'Customized Embodied EF'!I:I,"error",0)),_xlfn.XLOOKUP($I116,'Customized Embodied EF'!$B:$B,'Customized Embodied EF'!$D:$D,"error",0)),"Factor error"),"Factor error") -> Factor error | R116: =IFERROR(IF(OR($I116='Customized Embodied EF'!$B:$B),SUMIFS(R:R,$I:$I,$I116,$C:$C,"G4.")*IF($F116="Customized", IF(_xlfn.XLOOKUP($I116,'Customized Embodied EF'!$B:$B,'Customized Embodied EF'!J:J,"error",0)="","Factor error",_xlfn.XLOOKUP($I116,'Customized Embodied EF'!$B:$B,'Customized Embodied EF'!J:J,"error",0)),_xlfn.XLOOKUP($I116,'Customized Embodied EF'!$B:$B,'Customized Embodied EF'!$D:$D,"error",0)),"Factor error"),"Factor error") -> Factor error
D117: =D116 -> A1.1.2 | E117: .3 | H117: =H116 -> Energy commodity : | J117: [t CO2e/reporting period] | K117: 0 | M117: =IFERROR(IF(OR($I117='Customized Embodied EF'!$B:$B),SUMIFS(M:M,$I:$I,$I117,$C:$C,"G4.")*IF($F117="Customized", IF(_xlfn.XLOOKUP($I117,'Customized Embodied EF'!$B:$B,'Customized Embodied EF'!E:E,"error",0)="","Factor error",_xlfn.XLOOKUP($I117,'Customized Embodied EF'!$B:$B,'Customized Embodied EF'!E:E,"error",0)),_xlfn.XLOOKUP($I117,'Customized Embodied EF'!$B:$B,'Customized Embodied EF'!$D:$D,"error",0)),"Factor error"),"Factor error") -> Factor error | N117: =IFERROR(IF(OR($I117='Customized Embodied EF'!$B:$B),SUMIFS(N:N,$I:$I,$I117,$C:$C,"G4.")*IF($F117="Customized", IF(_xlfn.XLOOKUP($I117,'Customized Embodied EF'!$B:$B,'Customized Embodied EF'!F:F,"error",0)="","Factor error",_xlfn.XLOOKUP($I117,'Customized Embodied EF'!$B:$B,'Customized Embodied EF'!F:F,"error",0)),_xlfn.XLOOKUP($I117,'Customized Embodied EF'!$B:$B,'Customized Embodied EF'!$D:$D,"error",0)),"Factor error"),"Factor error") -> Factor error | O117: =IFERROR(IF(OR($I117='Customized Embodied EF'!$B:$B),SUMIFS(O:O,$I:$I,$I117,$C:$C,"G4.")*IF($F117="Customized", IF(_xlfn.XLOOKUP($I117,'Customized Embodied EF'!$B:$B,'Customized Embodied EF'!G:G,"error",0)="","Factor error",_xlfn.XLOOKUP($I117,'Customized Embodied EF'!$B:$B,'Customized Embodied EF'!G:G,"error",0)),_xlfn.XLOOKUP($I117,'Customized Embodied EF'!$B:$B,'Customized Embodied EF'!$D:$D,"error",0)),"Factor error"),"Factor error") -> Factor error | P117: =IFERROR(IF(OR($I117='Customized Embodied EF'!$B:$B),SUMIFS(P:P,$I:$I,$I117,$C:$C,"G4.")*IF($F117="Customized", IF(_xlfn.XLOOKUP($I117,'Customized Embodied EF'!$B:$B,'Customized Embodied EF'!H:H,"error",0)="","Factor error",_xlfn.XLOOKUP($I117,'Customized Embodied EF'!$B:$B,'Customized Embodied EF'!H:H,"error",0)),_xlfn.XLOOKUP($I117,'Customized Embodied EF'!$B:$B,'Customized Embodied EF'!$D:$D,"error",0)),"Factor error"),"Factor error") -> Factor error | Q117: =IFERROR(IF(OR($I117='Customized Embodied EF'!$B:$B),SUMIFS(Q:Q,$I:$I,$I117,$C:$C,"G4.")*IF($F117="Customized", IF(_xlfn.XLOOKUP($I117,'Customized Embodied EF'!$B:$B,'Customized Embodied EF'!I:I,"error",0)="","Factor error",_xlfn.XLOOKUP($I117,'Customized Embodied EF'!$B:$B,'Customized Embodied EF'!I:I,"error",0)),_xlfn.XLOOKUP($I117,'Customized Embodied EF'!$B:$B,'Customized Embodied EF'!$D:$D,"error",0)),"Factor error"),"Factor error") -> Factor error | R117: =IFERROR(IF(OR($I117='Customized Embodied EF'!$B:$B),SUMIFS(R:R,$I:$I,$I117,$C:$C,"G4.")*IF($F117="Customized", IF(_xlfn.XLOOKUP($I117,'Customized Embodied EF'!$B:$B,'Customized Embodied EF'!J:J,"error",0)="","Factor error",_xlfn.XLOOKUP($I117,'Customized Embodied EF'!$B:$B,'Customized Embodied EF'!J:J,"error",0)),_xlfn.XLOOKUP($I117,'Customized Embodied EF'!$B:$B,'Customized Embodied EF'!$D:$D,"error",0)),"Factor error"),"Factor error") -> Factor error
D118: =D117 -> A1.1.2 | E118: .4 | H118: =H117 -> Energy commodity : | J118: [t CO2e/reporting period] | K118: 0 | M118: =IFERROR(IF(OR($I118='Customized Embodied EF'!$B:$B),SUMIFS(M:M,$I:$I,$I118,$C:$C,"G4.")*IF($F118="Customized", IF(_xlfn.XLOOKUP($I118,'Customized Embodied EF'!$B:$B,'Customized Embodied EF'!E:E,"error",0)="","Factor error",_xlfn.XLOOKUP($I118,'Customized Embodied EF'!$B:$B,'Customized Embodied EF'!E:E,"error",0)),_xlfn.XLOOKUP($I118,'Customized Embodied EF'!$B:$B,'Customized Embodied EF'!$D:$D,"error",0)),"Factor error"),"Factor error") -> Factor error | N118: =IFERROR(IF(OR($I118='Customized Embodied EF'!$B:$B),SUMIFS(N:N,$I:$I,$I118,$C:$C,"G4.")*IF($F118="Customized", IF(_xlfn.XLOOKUP($I118,'Customized Embodied EF'!$B:$B,'Customized Embodied EF'!F:F,"error",0)="","Factor error",_xlfn.XLOOKUP($I118,'Customized Embodied EF'!$B:$B,'Customized Embodied EF'!F:F,"error",0)),_xlfn.XLOOKUP($I118,'Customized Embodied EF'!$B:$B,'Customized Embodied EF'!$D:$D,"error",0)),"Factor error"),"Factor error") -> Factor error | O118: =IFERROR(IF(OR($I118='Customized Embodied EF'!$B:$B),SUMIFS(O:O,$I:$I,$I118,$C:$C,"G4.")*IF($F118="Customized", IF(_xlfn.XLOOKUP($I118,'Customized Embodied EF'!$B:$B,'Customized Embodied EF'!G:G,"error",0)="","Factor error",_xlfn.XLOOKUP($I118,'Customized Embodied EF'!$B:$B,'Customized Embodied EF'!G:G,"error",0)),_xlfn.XLOOKUP($I118,'Customized Embodied EF'!$B:$B,'Customized Embodied EF'!$D:$D,"error",0)),"Factor error"),"Factor error") -> Factor error | P118: =IFERROR(IF(OR($I118='Customized Embodied EF'!$B:$B),SUMIFS(P:P,$I:$I,$I118,$C:$C,"G4.")*IF($F118="Customized", IF(_xlfn.XLOOKUP($I118,'Customized Embodied EF'!$B:$B,'Customized Embodied EF'!H:H,"error",0)="","Factor error",_xlfn.XLOOKUP($I118,'Customized Embodied EF'!$B:$B,'Customized Embodied EF'!H:H,"error",0)),_xlfn.XLOOKUP($I118,'Customized Embodied EF'!$B:$B,'Customized Embodied EF'!$D:$D,"error",0)),"Factor error"),"Factor error") -> Factor error | Q118: =IFERROR(IF(OR($I118='Customized Embodied EF'!$B:$B),SUMIFS(Q:Q,$I:$I,$I118,$C:$C,"G4.")*IF($F118="Customized", IF(_xlfn.XLOOKUP($I118,'Customized Embodied EF'!$B:$B,'Customized Embodied EF'!I:I,"error",0)="","Factor error",_xlfn.XLOOKUP($I118,'Customized Embodied EF'!$B:$B,'Customized Embodied EF'!I:I,"error",0)),_xlfn.XLOOKUP($I118,'Customized Embodied EF'!$B:$B,'Customized Embodied EF'!$D:$D,"error",0)),"Factor error"),"Factor error") -> Factor error | R118: =IFERROR(IF(OR($I118='Customized Embodied EF'!$B:$B),SUMIFS(R:R,$I:$I,$I118,$C:$C,"G4.")*IF($F118="Customized", IF(_xlfn.XLOOKUP($I118,'Customized Embodied EF'!$B:$B,'Customized Embodied EF'!J:J,"error",0)="","Factor error",_xlfn.XLOOKUP($I118,'Customized Embodied EF'!$B:$B,'Customized Embodied EF'!J:J,"error",0)),_xlfn.XLOOKUP($I118,'Customized Embodied EF'!$B:$B,'Customized Embodied EF'!$D:$D,"error",0)),"Factor error"),"Factor error") -> Factor error
D119: A1.1.2 | E119: .5 | H119: Energy commodity : | J119: [t CO2e/reporting period] | K119: 0 | M119: =IFERROR(IF(OR($I119='Customized Embodied EF'!$B:$B),SUMIFS(M:M,$I:$I,$I119,$C:$C,"G4.")*IF($F119="Customized", IF(_xlfn.XLOOKUP($I119,'Customized Embodied EF'!$B:$B,'Customized Embodied EF'!E:E,"error",0)="","Factor error",_xlfn.XLOOKUP($I119,'Customized Embodied EF'!$B:$B,'Customized Embodied EF'!E:E,"error",0)),_xlfn.XLOOKUP($I119,'Customized Embodied EF'!$B:$B,'Customized Embodied EF'!$D:$D,"error",0)),"Factor error"),"Factor error") -> Factor error | N119: =IFERROR(IF(OR($I119='Customized Embodied EF'!$B:$B),SUMIFS(N:N,$I:$I,$I119,$C:$C,"G4.")*IF($F119="Customized", IF(_xlfn.XLOOKUP($I119,'Customized Embodied EF'!$B:$B,'Customized Embodied EF'!F:F,"error",0)="","Factor error",_xlfn.XLOOKUP($I119,'Customized Embodied EF'!$B:$B,'Customized Embodied EF'!F:F,"error",0)),_xlfn.XLOOKUP($I119,'Customized Embodied EF'!$B:$B,'Customized Embodied EF'!$D:$D,"error",0)),"Factor error"),"Factor error") -> Factor error | O119: =IFERROR(IF(OR($I119='Customized Embodied EF'!$B:$B),SUMIFS(O:O,$I:$I,$I119,$C:$C,"G4.")*IF($F119="Customized", IF(_xlfn.XLOOKUP($I119,'Customized Embodied EF'!$B:$B,'Customized Embodied EF'!G:G,"error",0)="","Factor error",_xlfn.XLOOKUP($I119,'Customized Embodied EF'!$B:$B,'Customized Embodied EF'!G:G,"error",0)),_xlfn.XLOOKUP($I119,'Customized Embodied EF'!$B:$B,'Customized Embodied EF'!$D:$D,"error",0)),"Factor error"),"Factor error") -> Factor error | P119: =IFERROR(IF(OR($I119='Customized Embodied EF'!$B:$B),SUMIFS(P:P,$I:$I,$I119,$C:$C,"G4.")*IF($F119="Customized", IF(_xlfn.XLOOKUP($I119,'Customized Embodied EF'!$B:$B,'Customized Embodied EF'!H:H,"error",0)="","Factor error",_xlfn.XLOOKUP($I119,'Customized Embodied EF'!$B:$B,'Customized Embodied EF'!H:H,"error",0)),_xlfn.XLOOKUP($I119,'Customized Embodied EF'!$B:$B,'Customized Embodied EF'!$D:$D,"error",0)),"Factor error"),"Factor error") -> Factor error | Q119: =IFERROR(IF(OR($I119='Customized Embodied EF'!$B:$B),SUMIFS(Q:Q,$I:$I,$I119,$C:$C,"G4.")*IF($F119="Customized", IF(_xlfn.XLOOKUP($I119,'Customized Embodied EF'!$B:$B,'Customized Embodied EF'!I:I,"error",0)="","Factor error",_xlfn.XLOOKUP($I119,'Customized Embodied EF'!$B:$B,'Customized Embodied EF'!I:I,"error",0)),_xlfn.XLOOKUP($I119,'Customized Embodied EF'!$B:$B,'Customized Embodied EF'!$D:$D,"error",0)),"Factor error"),"Factor error") -> Factor error | R119: =IFERROR(IF(OR($I119='Customized Embodied EF'!$B:$B),SUMIFS(R:R,$I:$I,$I119,$C:$C,"G4.")*IF($F119="Customized", IF(_xlfn.XLOOKUP($I119,'Customized Embodied EF'!$B:$B,'Customized Embodied EF'!J:J,"error",0)="","Factor error",_xlfn.XLOOKUP($I119,'Customized Embodied EF'!$B:$B,'Customized Embodied EF'!J:J,"error",0)),_xlfn.XLOOKUP($I119,'Customized Embodied EF'!$B:$B,'Customized Embodied EF'!$D:$D,"error",0)),"Factor error"),"Factor error") -> Factor error
D120: =D119 -> A1.1.2 | E120: .6 | H120: =H50 -> Energy commodity : | J120: [t CO2e/reporting period] | K120: =SUM(M120:R120) -> 0 | M120: =IFERROR(IF(OR($I120='Customized Embodied EF'!$B:$B),SUMIFS(M:M,$I:$I,$I120,$C:$C,"G4.")*IF($F120="Customized", IF(_xlfn.XLOOKUP($I120,'Customized Embodied EF'!$B:$B,'Customized Embodied EF'!E:E,"error",0)="","Factor error",_xlfn.XLOOKUP($I120,'Customized Embodied EF'!$B:$B,'Customized Embodied EF'!E:E,"error",0)),_xlfn.XLOOKUP($I120,'Customized Embodied EF'!$B:$B,'Customized Embodied EF'!$D:$D,"error",0)),"Factor error"),"Factor error") -> Factor error | N120: =IFERROR(IF(OR($I120='Customized Embodied EF'!$B:$B),SUMIFS(N:N,$I:$I,$I120,$C:$C,"G4.")*IF($F120="Customized", IF(_xlfn.XLOOKUP($I120,'Customized Embodied EF'!$B:$B,'Customized Embodied EF'!F:F,"error",0)="","Factor error",_xlfn.XLOOKUP($I120,'Customized Embodied EF'!$B:$B,'Customized Embodied EF'!F:F,"error",0)),_xlfn.XLOOKUP($I120,'Customized Embodied EF'!$B:$B,'Customized Embodied EF'!$D:$D,"error",0)),"Factor error"),"Factor error") -> Factor error | O120: =IFERROR(IF(OR($I120='Customized Embodied EF'!$B:$B),SUMIFS(O:O,$I:$I,$I120,$C:$C,"G4.")*IF($F120="Customized", IF(_xlfn.XLOOKUP($I120,'Customized Embodied EF'!$B:$B,'Customized Embodied EF'!G:G,"error",0)="","Factor error",_xlfn.XLOOKUP($I120,'Customized Embodied EF'!$B:$B,'Customized Embodied EF'!G:G,"error",0)),_xlfn.XLOOKUP($I120,'Customized Embodied EF'!$B:$B,'Customized Embodied EF'!$D:$D,"error",0)),"Factor error"),"Factor error") -> Factor error | P120: =IFERROR(IF(OR($I120='Customized Embodied EF'!$B:$B),SUMIFS(P:P,$I:$I,$I120,$C:$C,"G4.")*IF($F120="Customized", IF(_xlfn.XLOOKUP($I120,'Customized Embodied EF'!$B:$B,'Customized Embodied EF'!H:H,"error",0)="","Factor error",_xlfn.XLOOKUP($I120,'Customized Embodied EF'!$B:$B,'Customized Embodied EF'!H:H,"error",0)),_xlfn.XLOOKUP($I120,'Customized Embodied EF'!$B:$B,'Customized Embodied EF'!$D:$D,"error",0)),"Factor error"),"Factor error") -> Factor error | Q120: =IFERROR(IF(OR($I120='Customized Embodied EF'!$B:$B),SUMIFS(Q:Q,$I:$I,$I120,$C:$C,"G4.")*IF($F120="Customized", IF(_xlfn.XLOOKUP($I120,'Customized Embodied EF'!$B:$B,'Customized Embodied EF'!I:I,"error",0)="","Factor error",_xlfn.XLOOKUP($I120,'Customized Embodied EF'!$B:$B,'Customized Embodied EF'!I:I,"error",0)),_xlfn.XLOOKUP($I120,'Customized Embodied EF'!$B:$B,'Customized Embodied EF'!$D:$D,"error",0)),"Factor error"),"Factor error") -> Factor error | R120: =IFERROR(IF(OR($I120='Customized Embodied EF'!$B:$B),SUMIFS(R:R,$I:$I,$I120,$C:$C,"G4.")*IF($F120="Customized", IF(_xlfn.XLOOKUP($I120,'Customized Embodied EF'!$B:$B,'Customized Embodied EF'!J:J,"error",0)="","Factor error",_xlfn.XLOOKUP($I120,'Customized Embodied EF'!$B:$B,'Customized Embodied EF'!J:J,"error",0)),_xlfn.XLOOKUP($I120,'Customized Embodied EF'!$B:$B,'Customized Embodied EF'!$D:$D,"error",0)),"Factor error"),"Factor error") -> Factor error
C121: A1.2.5 | I121: Total CO2e in Stage A1 | J121: [t CO2e/reporting period] | K121: =SUM(M121:R121) -> 0 | M121: =IF(AND(M102="",M113=""),"",(M102+M113)) -> 0 | N121: 0 | O121: 0 | P121: 0 | Q121: 0 | R121: 0
B122: A2 | C122: PROJECT LIFE CYCLE STAGE: A2 OFF-SITE TRANSPORTATION OF RAW MATERIALS TO MANUFACTURING PLANT
C123: A2.1 CO2e EMISSIONS | J123: unit | K123: Total | M123: Product 1 | N123: Product 2 | O123: Product 3 | P123: Product 4 | Q123: Product 5 | R123: Product 6
C124: A2.1.1 | F124: CO2e from off-site transportation of raw material to manufacturing plant
D125: =C124 -> A2.1.1 | E125: .1 | F125: CO2e calculated using either 1) WRI & WBCSD's protocol OR 2) EPD & EMSD's carbon audit tool) | J125: [t CO2e/reporting period] | K125: =SUM(M125:R125) -> 0
C126: A2.1.2 | I126: Total CO2e in Stage A2 | J126: [t CO2e/reporting period] | K126: =IF(AND(K125=""),"",(K125)) -> 0 | M126: =IF(AND(M125=""),"",(M125)) ->  | N126: =IF(AND(N125=""),"",(N125)) ->  | O126: =IF(AND(O125=""),"",(O125)) -> 
B127: A3 | C127: PROJECT LIFE CYCLE STAGE: A3 PRODUCT MANUFACTURING AND FABRICATION (WITHOUT WASTAGE)
C128: A3.1 CO2e EMISSIONS | J128: unit | K128: Total | M128: Product 1 | N128: Product 2 | O128: Product 3 | P128: Product 4 | Q128: Product 5 | R128: Product 6
C129: A3.1.1 | F129: CO2e from industrial processes | K129: =SUM(M129:R129) -> 0 | M129: =SUMIF($D:$D,$C129,M:M) -> 0 | N129: =SUMIF($D:$D,$C129,N:N) -> 0 | O129: 0 | P129: 0 | Q129: 0 | R129: 0
D130: =C129 -> A3.1.1 | E130: .1 | F130: CO2e from coke production | J130: [t CO2e/reporting period] | K130: =SUM(M130:R130) -> 0 | M130: =SUMIF($D:$D,$D133,M:M)+SUMIF($D:$D,$D140,M:M) -> 0 | N130: 0 | O130: 0 | P130: 0 | Q130: 0 | R130: 0
F131: [Please insert additional rows if more materials are included]
D132: =D130&E130 -> A3.1.1.1 | E132: .1 | F132: Inputs | H132: Adopting C Content
D133: =D132&E132 -> A3.1.1.1.1 | E133: .1 | F133: =F57 -> Blast furnace gas | G133: =G57 -> consumed at on-site facility | J133: [t CO2e/reporting period] | K133: =SUM(M133:R133) -> 0 | M133: =IF($H133="",0,IFERROR(IF(OR($F133='Customized Process Factors'!$B:$B),(SUMIFS(M:M,$D:$D,$D$57,$F:$F,$F133))*IF($H133="Customized", IF(_xlfn.XLOOKUP($F133,'Customized Process Factors'!$B:$B,'Customized Process Factors'!E:E,"No C Content",0)="","factor error",_xlfn.XLOOKUP($F133,'Customized Process Factors'!$B:$B,'Customized Process Factors'!E:E,"No C Content",0)),_xlfn.XLOOKUP($F133,'Customized Process Factors'!$B:$B,'Customized Process Factors'!$D:$D,"No C Content",0))*44/12,"Factor error"),"Factor error")) -> 0 | N133: =IF($H133="",0,IFERROR(IF(OR($F133='Customized Process Factors'!$B:$B),(SUMIFS(N:N,$D:$D,$D$57,$F:$F,$F133))*IF($H133="Customized", IF(_xlfn.XLOOKUP($F133,'Customized Process Factors'!$B:$B,'Customized Process Factors'!F:F,"No C Content",0)="","factor error",_xlfn.XLOOKUP($F133,'Customized Process Factors'!$B:$B,'Customized Process Factors'!F:F,"No C Content",0)),_xlfn.XLOOKUP($F133,'Customized Process Factors'!$B:$B,'Customized Process Factors'!$D:$D,"No C Content",0))*44/12,"Factor error"),"Factor error")) -> 0 | O133: =IF($H133="",0,IFERROR(IF(OR($F133='Customized Process Factors'!$B:$B),(SUMIFS(O:O,$D:$D,$D$57,$F:$F,$F133))*IF($H133="Customized", IF(_xlfn.XLOOKUP($F133,'Customized Process Factors'!$B:$B,'Customized Process Factors'!G:G,"No C Content",0)="","factor error",_xlfn.XLOOKUP($F133,'Customized Process Factors'!$B:$B,'Customized Process Factors'!G:G,"No C Content",0)),_xlfn.XLOOKUP($F133,'Customized Process Factors'!$B:$B,'Customized Process Factors'!$D:$D,"No C Content",0))*44/12,"Factor error"),"Factor error")) -> 0 | P133: =IF($H133="",0,IFERROR(IF(OR($F133='Customized Process Factors'!$B:$B),(SUMIFS(P:P,$D:$D,$D$57,$F:$F,$F133))*IF($H133="Customized", IF(_xlfn.XLOOKUP($F133,'Customized Process Factors'!$B:$B,'Customized Process Factors'!H:H,"No C Content",0)="","factor error",_xlfn.XLOOKUP($F133,'Customized Process Factors'!$B:$B,'Customized Process Factors'!H:H,"No C Content",0)),_xlfn.XLOOKUP($F133,'Customized Process Factors'!$B:$B,'Customized Process Factors'!$D:$D,"No C Content",0))*44/12,"Factor error"),"Factor error")) -> 0 | Q133: =IF($H133="",0,IFERROR(IF(OR($F133='Customized Process Factors'!$B:$B),(SUMIFS(Q:Q,$D:$D,$D$57,$F:$F,$F133))*IF($H133="Customized", IF(_xlfn.XLOOKUP($F133,'Customized Process Factors'!$B:$B,'Customized Process Factors'!I:I,"No C Content",0)="","factor error",_xlfn.XLOOKUP($F133,'Customized Process Factors'!$B:$B,'Customized Process Factors'!I:I,"No C Content",0)),_xlfn.XLOOKUP($F133,'Customized Process Factors'!$B:$B,'Customized Process Factors'!$D:$D,"No C Content",0))*44/12,"Factor error"),"Factor error")) -> 0 | R133: =IF($H133="",0,IFERROR(IF(OR($F133='Customized Process Factors'!$B:$B),(SUMIFS(R:R,$D:$D,$D$57,$F:$F,$F133))*IF($H133="Customized", IF(_xlfn.XLOOKUP($F133,'Customized Process Factors'!$B:$B,'Customized Process Factors'!J:J,"No C Content",0)="","factor error",_xlfn.XLOOKUP($F133,'Customized Process Factors'!$B:$B,'Customized Process Factors'!J:J,"No C Content",0)),_xlfn.XLOOKUP($F133,'Customized Process Factors'!$B:$B,'Customized Process Factors'!$D:$D,"No C Content",0))*44/12,"Factor error"),"Factor error")) -> 0
D134: =D133 -> A3.1.1.1.1 | E134: .2 | F134: =IF(F58="","",F58) ->  | J134: [t CO2e/reporting period] | K134: 0 | M134: =IF($H134="",0,IFERROR(IF(OR($F134='Customized Process Factors'!$B:$B),(SUMIFS(M:M,$D:$D,$D$57,$F:$F,$F134))*IF($H134="Customized", IF(_xlfn.XLOOKUP($F134,'Customized Process Factors'!$B:$B,'Customized Process Factors'!E:E,"No C Content",0)="","factor error",_xlfn.XLOOKUP($F134,'Customized Process Factors'!$B:$B,'Customized Process Factors'!E:E,"No C Content",0)),_xlfn.XLOOKUP($F134,'Customized Process Factors'!$B:$B,'Customized Process Factors'!$D:$D,"No C Content",0))*44/12,"Factor error"),"Factor error")) -> 0 | N134: =IF($H134="",0,IFERROR(IF(OR($F134='Customized Process Factors'!$B:$B),(SUMIFS(N:N,$D:$D,$D$57,$F:$F,$F134))*IF($H134="Customized", IF(_xlfn.XLOOKUP($F134,'Customized Process Factors'!$B:$B,'Customized Process Factors'!F:F,"No C Content",0)="","factor error",_xlfn.XLOOKUP($F134,'Customized Process Factors'!$B:$B,'Customized Process Factors'!F:F,"No C Content",0)),_xlfn.XLOOKUP($F134,'Customized Process Factors'!$B:$B,'Customized Process Factors'!$D:$D,"No C Content",0))*44/12,"Factor error"),"Factor error")) -> 0 | O134: =IF($H134="",0,IFERROR(IF(OR($F134='Customized Process Factors'!$B:$B),(SUMIFS(O:O,$D:$D,$D$57,$F:$F,$F134))*IF($H134="Customized", IF(_xlfn.XLOOKUP($F134,'Customized Process Factors'!$B:$B,'Customized Process Factors'!G:G,"No C Content",0)="","factor error",_xlfn.XLOOKUP($F134,'Customized Process Factors'!$B:$B,'Customized Process Factors'!G:G,"No C Content",0)),_xlfn.XLOOKUP($F134,'Customized Process Factors'!$B:$B,'Customized Process Factors'!$D:$D,"No C Content",0))*44/12,"Factor error"),"Factor error")) -> 0 | P134: =IF($H134="",0,IFERROR(IF(OR($F134='Customized Process Factors'!$B:$B),(SUMIFS(P:P,$D:$D,$D$57,$F:$F,$F134))*IF($H134="Customized", IF(_xlfn.XLOOKUP($F134,'Customized Process Factors'!$B:$B,'Customized Process Factors'!H:H,"No C Content",0)="","factor error",_xlfn.XLOOKUP($F134,'Customized Process Factors'!$B:$B,'Customized Process Factors'!H:H,"No C Content",0)),_xlfn.XLOOKUP($F134,'Customized Process Factors'!$B:$B,'Customized Process Factors'!$D:$D,"No C Content",0))*44/12,"Factor error"),"Factor error")) -> 0 | Q134: =IF($H134="",0,IFERROR(IF(OR($F134='Customized Process Factors'!$B:$B),(SUMIFS(Q:Q,$D:$D,$D$57,$F:$F,$F134))*IF($H134="Customized", IF(_xlfn.XLOOKUP($F134,'Customized Process Factors'!$B:$B,'Customized Process Factors'!I:I,"No C Content",0)="","factor error",_xlfn.XLOOKUP($F134,'Customized Process Factors'!$B:$B,'Customized Process Factors'!I:I,"No C Content",0)),_xlfn.XLOOKUP($F134,'Customized Process Factors'!$B:$B,'Customized Process Factors'!$D:$D,"No C Content",0))*44/12,"Factor error"),"Factor error")) -> 0 | R134: =IF($H134="",0,IFERROR(IF(OR($F134='Customized Process Factors'!$B:$B),(SUMIFS(R:R,$D:$D,$D$57,$F:$F,$F134))*IF($H134="Customized", IF(_xlfn.XLOOKUP($F134,'Customized Process Factors'!$B:$B,'Customized Process Factors'!J:J,"No C Content",0)="","factor error",_xlfn.XLOOKUP($F134,'Customized Process Factors'!$B:$B,'Customized Process Factors'!J:J,"No C Content",0)),_xlfn.XLOOKUP($F134,'Customized Process Factors'!$B:$B,'Customized Process Factors'!$D:$D,"No C Content",0))*44/12,"Factor error"),"Factor error")) -> 0
D135: =D134 -> A3.1.1.1.1 | E135: .3 | F135: =IF(F59="","",F59) ->  | J135: [t CO2e/reporting period] | K135: 0 | M135: =IF($H135="",0,IFERROR(IF(OR($F135='Customized Process Factors'!$B:$B),(SUMIFS(M:M,$D:$D,$D$57,$F:$F,$F135))*IF($H135="Customized", IF(_xlfn.XLOOKUP($F135,'Customized Process Factors'!$B:$B,'Customized Process Factors'!E:E,"No C Content",0)="","factor error",_xlfn.XLOOKUP($F135,'Customized Process Factors'!$B:$B,'Customized Process Factors'!E:E,"No C Content",0)),_xlfn.XLOOKUP($F135,'Customized Process Factors'!$B:$B,'Customized Process Factors'!$D:$D,"No C Content",0))*44/12,"Factor error"),"Factor error")) -> 0 | N135: =IF($H135="",0,IFERROR(IF(OR($F135='Customized Process Factors'!$B:$B),(SUMIFS(N:N,$D:$D,$D$57,$F:$F,$F135))*IF($H135="Customized", IF(_xlfn.XLOOKUP($F135,'Customized Process Factors'!$B:$B,'Customized Process Factors'!F:F,"No C Content",0)="","factor error",_xlfn.XLOOKUP($F135,'Customized Process Factors'!$B:$B,'Customized Process Factors'!F:F,"No C Content",0)),_xlfn.XLOOKUP($F135,'Customized Process Factors'!$B:$B,'Customized Process Factors'!$D:$D,"No C Content",0))*44/12,"Factor error"),"Factor error")) -> 0 | O135: =IF($H135="",0,IFERROR(IF(OR($F135='Customized Process Factors'!$B:$B),(SUMIFS(O:O,$D:$D,$D$57,$F:$F,$F135))*IF($H135="Customized", IF(_xlfn.XLOOKUP($F135,'Customized Process Factors'!$B:$B,'Customized Process Factors'!G:G,"No C Content",0)="","factor error",_xlfn.XLOOKUP($F135,'Customized Process Factors'!$B:$B,'Customized Process Factors'!G:G,"No C Content",0)),_xlfn.XLOOKUP($F135,'Customized Process Factors'!$B:$B,'Customized Process Factors'!$D:$D,"No C Content",0))*44/12,"Factor error"),"Factor error")) -> 0 | P135: =IF($H135="",0,IFERROR(IF(OR($F135='Customized Process Factors'!$B:$B),(SUMIFS(P:P,$D:$D,$D$57,$F:$F,$F135))*IF($H135="Customized", IF(_xlfn.XLOOKUP($F135,'Customized Process Factors'!$B:$B,'Customized Process Factors'!H:H,"No C Content",0)="","factor error",_xlfn.XLOOKUP($F135,'Customized Process Factors'!$B:$B,'Customized Process Factors'!H:H,"No C Content",0)),_xlfn.XLOOKUP($F135,'Customized Process Factors'!$B:$B,'Customized Process Factors'!$D:$D,"No C Content",0))*44/12,"Factor error"),"Factor error")) -> 0 | Q135: =IF($H135="",0,IFERROR(IF(OR($F135='Customized Process Factors'!$B:$B),(SUMIFS(Q:Q,$D:$D,$D$57,$F:$F,$F135))*IF($H135="Customized", IF(_xlfn.XLOOKUP($F135,'Customized Process Factors'!$B:$B,'Customized Process Factors'!I:I,"No C Content",0)="","factor error",_xlfn.XLOOKUP($F135,'Customized Process Factors'!$B:$B,'Customized Process Factors'!I:I,"No C Content",0)),_xlfn.XLOOKUP($F135,'Customized Process Factors'!$B:$B,'Customized Process Factors'!$D:$D,"No C Content",0))*44/12,"Factor error"),"Factor error")) -> 0 | R135: =IF($H135="",0,IFERROR(IF(OR($F135='Customized Process Factors'!$B:$B),(SUMIFS(R:R,$D:$D,$D$57,$F:$F,$F135))*IF($H135="Customized", IF(_xlfn.XLOOKUP($F135,'Customized Process Factors'!$B:$B,'Customized Process Factors'!J:J,"No C Content",0)="","factor error",_xlfn.XLOOKUP($F135,'Customized Process Factors'!$B:$B,'Customized Process Factors'!J:J,"No C Content",0)),_xlfn.XLOOKUP($F135,'Customized Process Factors'!$B:$B,'Customized Process Factors'!$D:$D,"No C Content",0))*44/12,"Factor error"),"Factor error")) -> 0
D136: =D135 -> A3.1.1.1.1 | E136: .4 | F136: =IF(F60="","",F60) ->  | J136: [t CO2e/reporting period] | K136: 0 | M136: =IF($H136="",0,IFERROR(IF(OR($F136='Customized Process Factors'!$B:$B),(SUMIFS(M:M,$D:$D,$D$57,$F:$F,$F136))*IF($H136="Customized", IF(_xlfn.XLOOKUP($F136,'Customized Process Factors'!$B:$B,'Customized Process Factors'!E:E,"No C Content",0)="","factor error",_xlfn.XLOOKUP($F136,'Customized Process Factors'!$B:$B,'Customized Process Factors'!E:E,"No C Content",0)),_xlfn.XLOOKUP($F136,'Customized Process Factors'!$B:$B,'Customized Process Factors'!$D:$D,"No C Content",0))*44/12,"Factor error"),"Factor error")) -> 0 | N136: =IF($H136="",0,IFERROR(IF(OR($F136='Customized Process Factors'!$B:$B),(SUMIFS(N:N,$D:$D,$D$57,$F:$F,$F136))*IF($H136="Customized", IF(_xlfn.XLOOKUP($F136,'Customized Process Factors'!$B:$B,'Customized Process Factors'!F:F,"No C Content",0)="","factor error",_xlfn.XLOOKUP($F136,'Customized Process Factors'!$B:$B,'Customized Process Factors'!F:F,"No C Content",0)),_xlfn.XLOOKUP($F136,'Customized Process Factors'!$B:$B,'Customized Process Factors'!$D:$D,"No C Content",0))*44/12,"Factor error"),"Factor error")) -> 0 | O136: =IF($H136="",0,IFERROR(IF(OR($F136='Customized Process Factors'!$B:$B),(SUMIFS(O:O,$D:$D,$D$57,$F:$F,$F136))*IF($H136="Customized", IF(_xlfn.XLOOKUP($F136,'Customized Process Factors'!$B:$B,'Customized Process Factors'!G:G,"No C Content",0)="","factor error",_xlfn.XLOOKUP($F136,'Customized Process Factors'!$B:$B,'Customized Process Factors'!G:G,"No C Content",0)),_xlfn.XLOOKUP($F136,'Customized Process Factors'!$B:$B,'Customized Process Factors'!$D:$D,"No C Content",0))*44/12,"Factor error"),"Factor error")) -> 0 | P136: =IF($H136="",0,IFERROR(IF(OR($F136='Customized Process Factors'!$B:$B),(SUMIFS(P:P,$D:$D,$D$57,$F:$F,$F136))*IF($H136="Customized", IF(_xlfn.XLOOKUP($F136,'Customized Process Factors'!$B:$B,'Customized Process Factors'!H:H,"No C Content",0)="","factor error",_xlfn.XLOOKUP($F136,'Customized Process Factors'!$B:$B,'Customized Process Factors'!H:H,"No C Content",0)),_xlfn.XLOOKUP($F136,'Customized Process Factors'!$B:$B,'Customized Process Factors'!$D:$D,"No C Content",0))*44/12,"Factor error"),"Factor error")) -> 0 | Q136: =IF($H136="",0,IFERROR(IF(OR($F136='Customized Process Factors'!$B:$B),(SUMIFS(Q:Q,$D:$D,$D$57,$F:$F,$F136))*IF($H136="Customized", IF(_xlfn.XLOOKUP($F136,'Customized Process Factors'!$B:$B,'Customized Process Factors'!I:I,"No C Content",0)="","factor error",_xlfn.XLOOKUP($F136,'Customized Process Factors'!$B:$B,'Customized Process Factors'!I:I,"No C Content",0)),_xlfn.XLOOKUP($F136,'Customized Process Factors'!$B:$B,'Customized Process Factors'!$D:$D,"No C Content",0))*44/12,"Factor error"),"Factor error")) -> 0 | R136: =IF($H136="",0,IFERROR(IF(OR($F136='Customized Process Factors'!$B:$B),(SUMIFS(R:R,$D:$D,$D$57,$F:$F,$F136))*IF($H136="Customized", IF(_xlfn.XLOOKUP($F136,'Customized Process Factors'!$B:$B,'Customized Process Factors'!J:J,"No C Content",0)="","factor error",_xlfn.XLOOKUP($F136,'Customized Process Factors'!$B:$B,'Customized Process Factors'!J:J,"No C Content",0)),_xlfn.XLOOKUP($F136,'Customized Process Factors'!$B:$B,'Customized Process Factors'!$D:$D,"No C Content",0))*44/12,"Factor error"),"Factor error")) -> 0
D137: =D136 -> A3.1.1.1.1 | E137: .5 | F137: =IF(F61="","",F61) ->  | J137: [t CO2e/reporting period] | K137: 0 | M137: =IF($H137="",0,IFERROR(IF(OR($F137='Customized Process Factors'!$B:$B),(SUMIFS(M:M,$D:$D,$D$57,$F:$F,$F137))*IF($H137="Customized", IF(_xlfn.XLOOKUP($F137,'Customized Process Factors'!$B:$B,'Customized Process Factors'!E:E,"No C Content",0)="","factor error",_xlfn.XLOOKUP($F137,'Customized Process Factors'!$B:$B,'Customized Process Factors'!E:E,"No C Content",0)),_xlfn.XLOOKUP($F137,'Customized Process Factors'!$B:$B,'Customized Process Factors'!$D:$D,"No C Content",0))*44/12,"Factor error"),"Factor error")) -> 0 | N137: =IF($H137="",0,IFERROR(IF(OR($F137='Customized Process Factors'!$B:$B),(SUMIFS(N:N,$D:$D,$D$57,$F:$F,$F137))*IF($H137="Customized", IF(_xlfn.XLOOKUP($F137,'Customized Process Factors'!$B:$B,'Customized Process Factors'!F:F,"No C Content",0)="","factor error",_xlfn.XLOOKUP($F137,'Customized Process Factors'!$B:$B,'Customized Process Factors'!F:F,"No C Content",0)),_xlfn.XLOOKUP($F137,'Customized Process Factors'!$B:$B,'Customized Process Factors'!$D:$D,"No C Content",0))*44/12,"Factor error"),"Factor error")) -> 0 | O137: =IF($H137="",0,IFERROR(IF(OR($F137='Customized Process Factors'!$B:$B),(SUMIFS(O:O,$D:$D,$D$57,$F:$F,$F137))*IF($H137="Customized", IF(_xlfn.XLOOKUP($F137,'Customized Process Factors'!$B:$B,'Customized Process Factors'!G:G,"No C Content",0)="","factor error",_xlfn.XLOOKUP($F137,'Customized Process Factors'!$B:$B,'Customized Process Factors'!G:G,"No C Content",0)),_xlfn.XLOOKUP($F137,'Customized Process Factors'!$B:$B,'Customized Process Factors'!$D:$D,"No C Content",0))*44/12,"Factor error"),"Factor error")) -> 0 | P137: =IF($H137="",0,IFERROR(IF(OR($F137='Customized Process Factors'!$B:$B),(SUMIFS(P:P,$D:$D,$D$57,$F:$F,$F137))*IF($H137="Customized", IF(_xlfn.XLOOKUP($F137,'Customized Process Factors'!$B:$B,'Customized Process Factors'!H:H,"No C Content",0)="","factor error",_xlfn.XLOOKUP($F137,'Customized Process Factors'!$B:$B,'Customized Process Factors'!H:H,"No C Content",0)),_xlfn.XLOOKUP($F137,'Customized Process Factors'!$B:$B,'Customized Process Factors'!$D:$D,"No C Content",0))*44/12,"Factor error"),"Factor error")) -> 0 | Q137: =IF($H137="",0,IFERROR(IF(OR($F137='Customized Process Factors'!$B:$B),(SUMIFS(Q:Q,$D:$D,$D$57,$F:$F,$F137))*IF($H137="Customized", IF(_xlfn.XLOOKUP($F137,'Customized Process Factors'!$B:$B,'Customized Process Factors'!I:I,"No C Content",0)="","factor error",_xlfn.XLOOKUP($F137,'Customized Process Factors'!$B:$B,'Customized Process Factors'!I:I,"No C Content",0)),_xlfn.XLOOKUP($F137,'Customized Process Factors'!$B:$B,'Customized Process Factors'!$D:$D,"No C Content",0))*44/12,"Factor error"),"Factor error")) -> 0 | R137: =IF($H137="",0,IFERROR(IF(OR($F137='Customized Process Factors'!$B:$B),(SUMIFS(R:R,$D:$D,$D$57,$F:$F,$F137))*IF($H137="Customized", IF(_xlfn.XLOOKUP($F137,'Customized Process Factors'!$B:$B,'Customized Process Factors'!J:J,"No C Content",0)="","factor error",_xlfn.XLOOKUP($F137,'Customized Process Factors'!$B:$B,'Customized Process Factors'!J:J,"No C Content",0)),_xlfn.XLOOKUP($F137,'Customized Process Factors'!$B:$B,'Customized Process Factors'!$D:$D,"No C Content",0))*44/12,"Factor error"),"Factor error")) -> 0
D138: =D137 -> A3.1.1.1.1 | E138: .6 | F138: =IF(F62="","",F62) ->  | J138: [t CO2e/reporting period] | K138: =SUM(M138:R138) -> 0 | M138: =IF($H138="",0,IFERROR(IF(OR($F138='Customized Process Factors'!$B:$B),(SUMIFS(M:M,$D:$D,$D$57,$F:$F,$F138))*IF($H138="Customized", IF(_xlfn.XLOOKUP($F138,'Customized Process Factors'!$B:$B,'Customized Process Factors'!E:E,"No C Content",0)="","factor error",_xlfn.XLOOKUP($F138,'Customized Process Factors'!$B:$B,'Customized Process Factors'!E:E,"No C Content",0)),_xlfn.XLOOKUP($F138,'Customized Process Factors'!$B:$B,'Customized Process Factors'!$D:$D,"No C Content",0))*44/12,"Factor error"),"Factor error")) -> 0 | N138: =IF($H138="",0,IFERROR(IF(OR($F138='Customized Process Factors'!$B:$B),(SUMIFS(N:N,$D:$D,$D$57,$F:$F,$F138))*IF($H138="Customized", IF(_xlfn.XLOOKUP($F138,'Customized Process Factors'!$B:$B,'Customized Process Factors'!F:F,"No C Content",0)="","factor error",_xlfn.XLOOKUP($F138,'Customized Process Factors'!$B:$B,'Customized Process Factors'!F:F,"No C Content",0)),_xlfn.XLOOKUP($F138,'Customized Process Factors'!$B:$B,'Customized Process Factors'!$D:$D,"No C Content",0))*44/12,"Factor error"),"Factor error")) -> 0 | O138: =IF($H138="",0,IFERROR(IF(OR($F138='Customized Process Factors'!$B:$B),(SUMIFS(O:O,$D:$D,$D$57,$F:$F,$F138))*IF($H138="Customized", IF(_xlfn.XLOOKUP($F138,'Customized Process Factors'!$B:$B,'Customized Process Factors'!G:G,"No C Content",0)="","factor error",_xlfn.XLOOKUP($F138,'Customized Process Factors'!$B:$B,'Customized Process Factors'!G:G,"No C Content",0)),_xlfn.XLOOKUP($F138,'Customized Process Factors'!$B:$B,'Customized Process Factors'!$D:$D,"No C Content",0))*44/12,"Factor error"),"Factor error")) -> 0 | P138: =IF($H138="",0,IFERROR(IF(OR($F138='Customized Process Factors'!$B:$B),(SUMIFS(P:P,$D:$D,$D$57,$F:$F,$F138))*IF($H138="Customized", IF(_xlfn.XLOOKUP($F138,'Customized Process Factors'!$B:$B,'Customized Process Factors'!H:H,"No C Content",0)="","factor error",_xlfn.XLOOKUP($F138,'Customized Process Factors'!$B:$B,'Customized Process Factors'!H:H,"No C Content",0)),_xlfn.XLOOKUP($F138,'Customized Process Factors'!$B:$B,'Customized Process Factors'!$D:$D,"No C Content",0))*44/12,"Factor error"),"Factor error")) -> 0 | Q138: =IF($H138="",0,IFERROR(IF(OR($F138='Customized Process Factors'!$B:$B),(SUMIFS(Q:Q,$D:$D,$D$57,$F:$F,$F138))*IF($H138="Customized", IF(_xlfn.XLOOKUP($F138,'Customized Process Factors'!$B:$B,'Customized Process Factors'!I:I,"No C Content",0)="","factor error",_xlfn.XLOOKUP($F138,'Customized Process Factors'!$B:$B,'Customized Process Factors'!I:I,"No C Content",0)),_xlfn.XLOOKUP($F138,'Customized Process Factors'!$B:$B,'Customized Process Factors'!$D:$D,"No C Content",0))*44/12,"Factor error"),"Factor error")) -> 0 | R138: =IF($H138="",0,IFERROR(IF(OR($F138='Customized Process Factors'!$B:$B),(SUMIFS(R:R,$D:$D,$D$57,$F:$F,$F138))*IF($H138="Customized", IF(_xlfn.XLOOKUP($F138,'Customized Process Factors'!$B:$B,'Customized Process Factors'!J:J,"No C Content",0)="","factor error",_xlfn.XLOOKUP($F138,'Customized Process Factors'!$B:$B,'Customized Process Factors'!J:J,"No C Content",0)),_xlfn.XLOOKUP($F138,'Customized Process Factors'!$B:$B,'Customized Process Factors'!$D:$D,"No C Content",0))*44/12,"Factor error"),"Factor error")) -> 0
D139: =D132 -> A3.1.1.1 | E139: .2 | F139: Outputs | H139: Adopting C Content | I139: Adopting CH4 Emission Factor
D140: =D139&E139 -> A3.1.1.1.2 | E140: .1 | F140: =F64 -> Coke | G140: produced | J140: [t CO2e/reporting period] | K140: 0 | M140: =IFERROR(-IF($H140="",0,IF(OR($F140='Customized Process Factors'!$B:$B),(SUMIFS(M:M,$D:$D,$D$64,$F:$F,$F140))*IF($H140="Customized", IF(_xlfn.XLOOKUP($F140,'Customized Process Factors'!$B:$B,'Customized Process Factors'!E:E,"No C Content",0)="","factor error",_xlfn.XLOOKUP($F140,'Customized Process Factors'!$B:$B,'Customized Process Factors'!E:E,"No C Content",0)), _xlfn.XLOOKUP($F140,'Customized Process Factors'!$B:$B,'Customized Process Factors'!$D:$D,"No C Content",0))*44/12,"Factor error")) +IF($I140="",0,IF(OR($F140='Customized Process Factors'!$A:$A),(SUMIFS(M:M,$D:$D,$D$64,$F:$F,$F140))*IF($I140="Customized", IF(_xlfn.XLOOKUP($F140,'Customized Process Factors'!$A:$A,'Customized Process Factors'!E:E,"No CH4 Content",0)="","factor error",_xlfn.XLOOKUP($F140,'Customized Process Factors'!$A:$A,'Customized Process Factors'!E:E,"No CH4 Content",0)), _xlfn.XLOOKUP($F140,'Customized Process Factors'!$A:$A,'Customized Process Factors'!$D:$D,"No CH4 Content",0))*'Customized Process Factors'!$D$109,"Factor error")),"Factor error") -> 0 | N140: =IFERROR(-IF($H140="",0,IF(OR($F140='Customized Process Factors'!$B:$B),(SUMIFS(N:N,$D:$D,$D$64,$F:$F,$F140))*IF($H140="Customized", IF(_xlfn.XLOOKUP($F140,'Customized Process Factors'!$B:$B,'Customized Process Factors'!F:F,"No C Content",0)="","factor error",_xlfn.XLOOKUP($F140,'Customized Process Factors'!$B:$B,'Customized Process Factors'!F:F,"No C Content",0)), _xlfn.XLOOKUP($F140,'Customized Process Factors'!$B:$B,'Customized Process Factors'!$D:$D,"No C Content",0))*44/12,"Factor error")) +IF($I140="",0,IF(OR($F140='Customized Process Factors'!$A:$A),(SUMIFS(N:N,$D:$D,$D$64,$F:$F,$F140))*IF($I140="Customized", IF(_xlfn.XLOOKUP($F140,'Customized Process Factors'!$A:$A,'Customized Process Factors'!F:F,"No CH4 Content",0)="","factor error",_xlfn.XLOOKUP($F140,'Customized Process Factors'!$A:$A,'Customized Process Factors'!F:F,"No CH4 Content",0)), _xlfn.XLOOKUP($F140,'Customized Process Factors'!$A:$A,'Customized Process Factors'!$D:$D,"No CH4 Content",0))*'Customized Process Factors'!$D$109,"Factor error")),"Factor error") -> 0 | O140: =IFERROR(-IF($H140="",0,IF(OR($F140='Customized Process Factors'!$B:$B),(SUMIFS(O:O,$D:$D,$D$64,$F:$F,$F140))*IF($H140="Customized", IF(_xlfn.XLOOKUP($F140,'Customized Process Factors'!$B:$B,'Customized Process Factors'!G:G,"No C Content",0)="","factor error",_xlfn.XLOOKUP($F140,'Customized Process Factors'!$B:$B,'Customized Process Factors'!G:G,"No C Content",0)), _xlfn.XLOOKUP($F140,'Customized Process Factors'!$B:$B,'Customized Process Factors'!$D:$D,"No C Content",0))*44/12,"Factor error")) +IF($I140="",0,IF(OR($F140='Customized Process Factors'!$A:$A),(SUMIFS(O:O,$D:$D,$D$64,$F:$F,$F140))*IF($I140="Customized", IF(_xlfn.XLOOKUP($F140,'Customized Process Factors'!$A:$A,'Customized Process Factors'!G:G,"No CH4 Content",0)="","factor error",_xlfn.XLOOKUP($F140,'Customized Process Factors'!$A:$A,'Customized Process Factors'!G:G,"No CH4 Content",0)), _xlfn.XLOOKUP($F140,'Customized Process Factors'!$A:$A,'Customized Process Factors'!$D:$D,"No CH4 Content",0))*'Customized Process Factors'!$D$109,"Factor error")),"Factor error") -> 0 | P140: =IFERROR(-IF($H140="",0,IF(OR($F140='Customized Process Factors'!$B:$B),(SUMIFS(P:P,$D:$D,$D$64,$F:$F,$F140))*IF($H140="Customized", IF(_xlfn.XLOOKUP($F140,'Customized Process Factors'!$B:$B,'Customized Process Factors'!H:H,"No C Content",0)="","factor error",_xlfn.XLOOKUP($F140,'Customized Process Factors'!$B:$B,'Customized Process Factors'!H:H,"No C Content",0)), _xlfn.XLOOKUP($F140,'Customized Process Factors'!$B:$B,'Customized Process Factors'!$D:$D,"No C Content",0))*44/12,"Factor error")) +IF($I140="",0,IF(OR($F140='Customized Process Factors'!$A:$A),(SUMIFS(P:P,$D:$D,$D$64,$F:$F,$F140))*IF($I140="Customized", IF(_xlfn.XLOOKUP($F140,'Customized Process Factors'!$A:$A,'Customized Process Factors'!H:H,"No CH4 Content",0)="","factor error",_xlfn.XLOOKUP($F140,'Customized Process Factors'!$A:$A,'Customized Process Factors'!H:H,"No CH4 Content",0)), _xlfn.XLOOKUP($F140,'Customized Process Factors'!$A:$A,'Customized Process Factors'!$D:$D,"No CH4 Content",0))*'Customized Process Factors'!$D$109,"Factor error")),"Factor error") -> 0 | Q140: =IFERROR(-IF($H140="",0,IF(OR($F140='Customized Process Factors'!$B:$B),(SUMIFS(Q:Q,$D:$D,$D$64,$F:$F,$F140))*IF($H140="Customized", IF(_xlfn.XLOOKUP($F140,'Customized Process Factors'!$B:$B,'Customized Process Factors'!I:I,"No C Content",0)="","factor error",_xlfn.XLOOKUP($F140,'Customized Process Factors'!$B:$B,'Customized Process Factors'!I:I,"No C Content",0)), _xlfn.XLOOKUP($F140,'Customized Process Factors'!$B:$B,'Customized Process Factors'!$D:$D,"No C Content",0))*44/12,"Factor error")) +IF($I140="",0,IF(OR($F140='Customized Process Factors'!$A:$A),(SUMIFS(Q:Q,$D:$D,$D$64,$F:$F,$F140))*IF($I140="Customized", IF(_xlfn.XLOOKUP($F140,'Customized Process Factors'!$A:$A,'Customized Process Factors'!I:I,"No CH4 Content",0)="","factor error",_xlfn.XLOOKUP($F140,'Customized Process Factors'!$A:$A,'Customized Process Factors'!I:I,"No CH4 Content",0)), _xlfn.XLOOKUP($F140,'Customized Process Factors'!$A:$A,'Customized Process Factors'!$D:$D,"No CH4 Content",0))*'Customized Process Factors'!$D$109,"Factor error")),"Factor error") -> 0 | R140: =IFERROR(-IF($H140="",0,IF(OR($F140='Customized Process Factors'!$B:$B),(SUMIFS(R:R,$D:$D,$D$64,$F:$F,$F140))*IF($H140="Customized", IF(_xlfn.XLOOKUP($F140,'Customized Process Factors'!$B:$B,'Customized Process Factors'!J:J,"No C Content",0)="","factor error",_xlfn.XLOOKUP($F140,'Customized Process Factors'!$B:$B,'Customized Process Factors'!J:J,"No C Content",0)), _xlfn.XLOOKUP($F140,'Customized Process Factors'!$B:$B,'Customized Process Factors'!$D:$D,"No C Content",0))*44/12,"Factor error")) +IF($I140="",0,IF(OR($F140='Customized Process Factors'!$A:$A),(SUMIFS(R:R,$D:$D,$D$64,$F:$F,$F140))*IF($I140="Customized", IF(_xlfn.XLOOKUP($F140,'Customized Process Factors'!$A:$A,'Customized Process Factors'!J:J,"No CH4 Content",0)="","factor error",_xlfn.XLOOKUP($F140,'Customized Process Factors'!$A:$A,'Customized Process Factors'!J:J,"No CH4 Content",0)), _xlfn.XLOOKUP($F140,'Customized Process Factors'!$A:$A,'Customized Process Factors'!$D:$D,"No CH4 Content",0))*'Customized Process Factors'!$D$109,"Factor error")),"Factor error") -> 0
D141: =D140 -> A3.1.1.1.2 | E141: .2 | F141: Coke oven gas | G141: transferred offsite | J141: [t CO2e/reporting period] | K141: 0 | M141: =IFERROR(-IF($H141="",0,IF(OR($F141='Customized Process Factors'!$B:$B),(SUMIFS(M:M,$D:$D,$D$64,$F:$F,$F141))*IF($H141="Customized", IF(_xlfn.XLOOKUP($F141,'Customized Process Factors'!$B:$B,'Customized Process Factors'!E:E,"No C Content",0)="","Factor error",_xlfn.XLOOKUP($F141,'Customized Process Factors'!$B:$B,'Customized Process Factors'!E:E,"No C Content",0)), _xlfn.XLOOKUP($F141,'Customized Process Factors'!$B:$B,'Customized Process Factors'!$D:$D,"No C Content",0))*44/12,"Factor error")),"Factor error") -> 0 | N141: =IFERROR(-IF($H141="",0,IF(OR($F141='Customized Process Factors'!$B:$B),(SUMIFS(N:N,$D:$D,$D$64,$F:$F,$F141))*IF($H141="Customized", IF(_xlfn.XLOOKUP($F141,'Customized Process Factors'!$B:$B,'Customized Process Factors'!F:F,"No C Content",0)="","Factor error",_xlfn.XLOOKUP($F141,'Customized Process Factors'!$B:$B,'Customized Process Factors'!F:F,"No C Content",0)), _xlfn.XLOOKUP($F141,'Customized Process Factors'!$B:$B,'Customized Process Factors'!$D:$D,"No C Content",0))*44/12,"Factor error")),"Factor error") -> 0 | O141: =IFERROR(-IF($H141="",0,IF(OR($F141='Customized Process Factors'!$B:$B),(SUMIFS(O:O,$D:$D,$D$64,$F:$F,$F141))*IF($H141="Customized", IF(_xlfn.XLOOKUP($F141,'Customized Process Factors'!$B:$B,'Customized Process Factors'!G:G,"No C Content",0)="","Factor error",_xlfn.XLOOKUP($F141,'Customized Process Factors'!$B:$B,'Customized Process Factors'!G:G,"No C Content",0)), _xlfn.XLOOKUP($F141,'Customized Process Factors'!$B:$B,'Customized Process Factors'!$D:$D,"No C Content",0))*44/12,"Factor error")),"Factor error") -> 0 | P141: =IFERROR(-IF($H141="",0,IF(OR($F141='Customized Process Factors'!$B:$B),(SUMIFS(P:P,$D:$D,$D$64,$F:$F,$F141))*IF($H141="Customized", IF(_xlfn.XLOOKUP($F141,'Customized Process Factors'!$B:$B,'Customized Process Factors'!H:H,"No C Content",0)="","Factor error",_xlfn.XLOOKUP($F141,'Customized Process Factors'!$B:$B,'Customized Process Factors'!H:H,"No C Content",0)), _xlfn.XLOOKUP($F141,'Customized Process Factors'!$B:$B,'Customized Process Factors'!$D:$D,"No C Content",0))*44/12,"Factor error")),"Factor error") -> 0 | Q141: =IFERROR(-IF($H141="",0,IF(OR($F141='Customized Process Factors'!$B:$B),(SUMIFS(Q:Q,$D:$D,$D$64,$F:$F,$F141))*IF($H141="Customized", IF(_xlfn.XLOOKUP($F141,'Customized Process Factors'!$B:$B,'Customized Process Factors'!I:I,"No C Content",0)="","Factor error",_xlfn.XLOOKUP($F141,'Customized Process Factors'!$B:$B,'Customized Process Factors'!I:I,"No C Content",0)), _xlfn.XLOOKUP($F141,'Customized Process Factors'!$B:$B,'Customized Process Factors'!$D:$D,"No C Content",0))*44/12,"Factor error")),"Factor error") -> 0 | R141: =IFERROR(-IF($H141="",0,IF(OR($F141='Customized Process Factors'!$B:$B),(SUMIFS(R:R,$D:$D,$D$64,$F:$F,$F141))*IF($H141="Customized", IF(_xlfn.XLOOKUP($F141,'Customized Process Factors'!$B:$B,'Customized Process Factors'!J:J,"No C Content",0)="","Factor error",_xlfn.XLOOKUP($F141,'Customized Process Factors'!$B:$B,'Customized Process Factors'!J:J,"No C Content",0)), _xlfn.XLOOKUP($F141,'Customized Process Factors'!$B:$B,'Customized Process Factors'!$D:$D,"No C Content",0))*44/12,"Factor error")),"Factor error") -> 0
D142: =D140 -> A3.1.1.1.2 | E142: .3 | F142: Coke-oven byproducts | G142: transferred offsite | J142: [t CO2e/reporting period] | K142: 0 | M142: =IFERROR(-IF($H142="",0,IF(OR($F142='Customized Process Factors'!$B:$B),(SUMIFS(M:M,$D:$D,$D$64,$F:$F,$F142))*IF($H142="Customized", IF(_xlfn.XLOOKUP($F142,'Customized Process Factors'!$B:$B,'Customized Process Factors'!E:E,"No C Content",0)="","Factor error",_xlfn.XLOOKUP($F142,'Customized Process Factors'!$B:$B,'Customized Process Factors'!E:E,"No C Content",0)), _xlfn.XLOOKUP($F142,'Customized Process Factors'!$B:$B,'Customized Process Factors'!$D:$D,"No C Content",0))*44/12,"Factor error")),"Factor error") -> 0 | N142: =IFERROR(-IF($H142="",0,IF(OR($F142='Customized Process Factors'!$B:$B),(SUMIFS(N:N,$D:$D,$D$64,$F:$F,$F142))*IF($H142="Customized", IF(_xlfn.XLOOKUP($F142,'Customized Process Factors'!$B:$B,'Customized Process Factors'!F:F,"No C Content",0)="","Factor error",_xlfn.XLOOKUP($F142,'Customized Process Factors'!$B:$B,'Customized Process Factors'!F:F,"No C Content",0)), _xlfn.XLOOKUP($F142,'Customized Process Factors'!$B:$B,'Customized Process Factors'!$D:$D,"No C Content",0))*44/12,"Factor error")),"Factor error") -> 0 | O142: =IFERROR(-IF($H142="",0,IF(OR($F142='Customized Process Factors'!$B:$B),(SUMIFS(O:O,$D:$D,$D$64,$F:$F,$F142))*IF($H142="Customized", IF(_xlfn.XLOOKUP($F142,'Customized Process Factors'!$B:$B,'Customized Process Factors'!G:G,"No C Content",0)="","Factor error",_xlfn.XLOOKUP($F142,'Customized Process Factors'!$B:$B,'Customized Process Factors'!G:G,"No C Content",0)), _xlfn.XLOOKUP($F142,'Customized Process Factors'!$B:$B,'Customized Process Factors'!$D:$D,"No C Content",0))*44/12,"Factor error")),"Factor error") -> 0 | P142: =IFERROR(-IF($H142="",0,IF(OR($F142='Customized Process Factors'!$B:$B),(SUMIFS(P:P,$D:$D,$D$64,$F:$F,$F142))*IF($H142="Customized", IF(_xlfn.XLOOKUP($F142,'Customized Process Factors'!$B:$B,'Customized Process Factors'!H:H,"No C Content",0)="","Factor error",_xlfn.XLOOKUP($F142,'Customized Process Factors'!$B:$B,'Customized Process Factors'!H:H,"No C Content",0)), _xlfn.XLOOKUP($F142,'Customized Process Factors'!$B:$B,'Customized Process Factors'!$D:$D,"No C Content",0))*44/12,"Factor error")),"Factor error") -> 0 | Q142: =IFERROR(-IF($H142="",0,IF(OR($F142='Customized Process Factors'!$B:$B),(SUMIFS(Q:Q,$D:$D,$D$64,$F:$F,$F142))*IF($H142="Customized", IF(_xlfn.XLOOKUP($F142,'Customized Process Factors'!$B:$B,'Customized Process Factors'!I:I,"No C Content",0)="","Factor error",_xlfn.XLOOKUP($F142,'Customized Process Factors'!$B:$B,'Customized Process Factors'!I:I,"No C Content",0)), _xlfn.XLOOKUP($F142,'Customized Process Factors'!$B:$B,'Customized Process Factors'!$D:$D,"No C Content",0))*44/12,"Factor error")),"Factor error") -> 0 | R142: =IFERROR(-IF($H142="",0,IF(OR($F142='Customized Process Factors'!$B:$B),(SUMIFS(R:R,$D:$D,$D$64,$F:$F,$F142))*IF($H142="Customized", IF(_xlfn.XLOOKUP($F142,'Customized Process Factors'!$B:$B,'Customized Process Factors'!J:J,"No C Content",0)="","Factor error",_xlfn.XLOOKUP($F142,'Customized Process Factors'!$B:$B,'Customized Process Factors'!J:J,"No C Content",0)), _xlfn.XLOOKUP($F142,'Customized Process Factors'!$B:$B,'Customized Process Factors'!$D:$D,"No C Content",0))*44/12,"Factor error")),"Factor error") -> 0
D143: =D130 -> A3.1.1 | E143: .2 | F143: CO2e from sinter production | K143: =SUM(M143:R143) -> 0 | M143: =SUMIF($D:$D,$D146,M:M)+SUMIF($D:$D,$D151,M:M) -> 0 | N143: 0 | O143: 0 | P143: 0 | Q143: 0 | R143: 0
F144: [Please insert additional rows if more materials are included]
D145: =D143&E143 -> A3.1.1.2 | E145: .1 | F145: Inputs | H145: Adopting C Content
D146: =D145&E145 -> A3.1.1.2.1 | E146: .1 | F146: =IF(F69="","",F69) ->  | J146: [t CO2e/reporting period] | K146: 0 | M146: =IFERROR(IF($H146="",0,IF(OR($F146='Customized Process Factors'!$B:$B),(SUMIFS(M:M,$D:$D,$D$69,$F:$F,$F146))*IF($H146="Customized", IF(_xlfn.XLOOKUP($F146,'Customized Process Factors'!$B:$B,'Customized Process Factors'!E:E,"No C Content",0)="","Factor error",_xlfn.XLOOKUP($F146,'Customized Process Factors'!$B:$B,'Customized Process Factors'!E:E,"No C Content",0)),_xlfn.XLOOKUP($F146,'Customized Process Factors'!$B:$B,'Customized Process Factors'!$D:$D,"No C Content",0))*44/12,"Factor error")),"Factor error") -> 0 | N146: =IFERROR(IF($H146="",0,IF(OR($F146='Customized Process Factors'!$B:$B),(SUMIFS(N:N,$D:$D,$D$69,$F:$F,$F146))*IF($H146="Customized", IF(_xlfn.XLOOKUP($F146,'Customized Process Factors'!$B:$B,'Customized Process Factors'!F:F,"No C Content",0)="","Factor error",_xlfn.XLOOKUP($F146,'Customized Process Factors'!$B:$B,'Customized Process Factors'!F:F,"No C Content",0)),_xlfn.XLOOKUP($F146,'Customized Process Factors'!$B:$B,'Customized Process Factors'!$D:$D,"No C Content",0))*44/12,"Factor error")),"Factor error") -> 0 | O146: =IFERROR(IF($H146="",0,IF(OR($F146='Customized Process Factors'!$B:$B),(SUMIFS(O:O,$D:$D,$D$69,$F:$F,$F146))*IF($H146="Customized", IF(_xlfn.XLOOKUP($F146,'Customized Process Factors'!$B:$B,'Customized Process Factors'!G:G,"No C Content",0)="","Factor error",_xlfn.XLOOKUP($F146,'Customized Process Factors'!$B:$B,'Customized Process Factors'!G:G,"No C Content",0)),_xlfn.XLOOKUP($F146,'Customized Process Factors'!$B:$B,'Customized Process Factors'!$D:$D,"No C Content",0))*44/12,"Factor error")),"Factor error") -> 0 | P146: =IFERROR(IF($H146="",0,IF(OR($F146='Customized Process Factors'!$B:$B),(SUMIFS(P:P,$D:$D,$D$69,$F:$F,$F146))*IF($H146="Customized", IF(_xlfn.XLOOKUP($F146,'Customized Process Factors'!$B:$B,'Customized Process Factors'!H:H,"No C Content",0)="","Factor error",_xlfn.XLOOKUP($F146,'Customized Process Factors'!$B:$B,'Customized Process Factors'!H:H,"No C Content",0)),_xlfn.XLOOKUP($F146,'Customized Process Factors'!$B:$B,'Customized Process Factors'!$D:$D,"No C Content",0))*44/12,"Factor error")),"Factor error") -> 0 | Q146: =IFERROR(IF($H146="",0,IF(OR($F146='Customized Process Factors'!$B:$B),(SUMIFS(Q:Q,$D:$D,$D$69,$F:$F,$F146))*IF($H146="Customized", IF(_xlfn.XLOOKUP($F146,'Customized Process Factors'!$B:$B,'Customized Process Factors'!I:I,"No C Content",0)="","Factor error",_xlfn.XLOOKUP($F146,'Customized Process Factors'!$B:$B,'Customized Process Factors'!I:I,"No C Content",0)),_xlfn.XLOOKUP($F146,'Customized Process Factors'!$B:$B,'Customized Process Factors'!$D:$D,"No C Content",0))*44/12,"Factor error")),"Factor error") -> 0 | R146: =IFERROR(IF($H146="",0,IF(OR($F146='Customized Process Factors'!$B:$B),(SUMIFS(R:R,$D:$D,$D$69,$F:$F,$F146))*IF($H146="Customized", IF(_xlfn.XLOOKUP($F146,'Customized Process Factors'!$B:$B,'Customized Process Factors'!J:J,"No C Content",0)="","Factor error",_xlfn.XLOOKUP($F146,'Customized Process Factors'!$B:$B,'Customized Process Factors'!J:J,"No C Content",0)),_xlfn.XLOOKUP($F146,'Customized Process Factors'!$B:$B,'Customized Process Factors'!$D:$D,"No C Content",0))*44/12,"Factor error")),"Factor error") -> 0
D147: =D146 -> A3.1.1.2.1 | E147: .2 | F147: =IF(F70="","",F70) ->  | J147: [t CO2e/reporting period] | K147: 0 | M147: =IFERROR(IF($H147="",0,IF(OR($F147='Customized Process Factors'!$B:$B),(SUMIFS(M:M,$D:$D,$D$69,$F:$F,$F147))*IF($H147="Customized", IF(_xlfn.XLOOKUP($F147,'Customized Process Factors'!$B:$B,'Customized Process Factors'!E:E,"No C Content",0)="","Factor error",_xlfn.XLOOKUP($F147,'Customized Process Factors'!$B:$B,'Customized Process Factors'!E:E,"No C Content",0)),_xlfn.XLOOKUP($F147,'Customized Process Factors'!$B:$B,'Customized Process Factors'!$D:$D,"No C Content",0))*44/12,"Factor error")),"Factor error") -> 0 | N147: =IFERROR(IF($H147="",0,IF(OR($F147='Customized Process Factors'!$B:$B),(SUMIFS(N:N,$D:$D,$D$69,$F:$F,$F147))*IF($H147="Customized", IF(_xlfn.XLOOKUP($F147,'Customized Process Factors'!$B:$B,'Customized Process Factors'!F:F,"No C Content",0)="","Factor error",_xlfn.XLOOKUP($F147,'Customized Process Factors'!$B:$B,'Customized Process Factors'!F:F,"No C Content",0)),_xlfn.XLOOKUP($F147,'Customized Process Factors'!$B:$B,'Customized Process Factors'!$D:$D,"No C Content",0))*44/12,"Factor error")),"Factor error") -> 0 | O147: =IFERROR(IF($H147="",0,IF(OR($F147='Customized Process Factors'!$B:$B),(SUMIFS(O:O,$D:$D,$D$69,$F:$F,$F147))*IF($H147="Customized", IF(_xlfn.XLOOKUP($F147,'Customized Process Factors'!$B:$B,'Customized Process Factors'!G:G,"No C Content",0)="","Factor error",_xlfn.XLOOKUP($F147,'Customized Process Factors'!$B:$B,'Customized Process Factors'!G:G,"No C Content",0)),_xlfn.XLOOKUP($F147,'Customized Process Factors'!$B:$B,'Customized Process Factors'!$D:$D,"No C Content",0))*44/12,"Factor error")),"Factor error") -> 0 | P147: =IFERROR(IF($H147="",0,IF(OR($F147='Customized Process Factors'!$B:$B),(SUMIFS(P:P,$D:$D,$D$69,$F:$F,$F147))*IF($H147="Customized", IF(_xlfn.XLOOKUP($F147,'Customized Process Factors'!$B:$B,'Customized Process Factors'!H:H,"No C Content",0)="","Factor error",_xlfn.XLOOKUP($F147,'Customized Process Factors'!$B:$B,'Customized Process Factors'!H:H,"No C Content",0)),_xlfn.XLOOKUP($F147,'Customized Process Factors'!$B:$B,'Customized Process Factors'!$D:$D,"No C Content",0))*44/12,"Factor error")),"Factor error") -> 0 | Q147: =IFERROR(IF($H147="",0,IF(OR($F147='Customized Process Factors'!$B:$B),(SUMIFS(Q:Q,$D:$D,$D$69,$F:$F,$F147))*IF($H147="Customized", IF(_xlfn.XLOOKUP($F147,'Customized Process Factors'!$B:$B,'Customized Process Factors'!I:I,"No C Content",0)="","Factor error",_xlfn.XLOOKUP($F147,'Customized Process Factors'!$B:$B,'Customized Process Factors'!I:I,"No C Content",0)),_xlfn.XLOOKUP($F147,'Customized Process Factors'!$B:$B,'Customized Process Factors'!$D:$D,"No C Content",0))*44/12,"Factor error")),"Factor error") -> 0 | R147: =IFERROR(IF($H147="",0,IF(OR($F147='Customized Process Factors'!$B:$B),(SUMIFS(R:R,$D:$D,$D$69,$F:$F,$F147))*IF($H147="Customized", IF(_xlfn.XLOOKUP($F147,'Customized Process Factors'!$B:$B,'Customized Process Factors'!J:J,"No C Content",0)="","Factor error",_xlfn.XLOOKUP($F147,'Customized Process Factors'!$B:$B,'Customized Process Factors'!J:J,"No C Content",0)),_xlfn.XLOOKUP($F147,'Customized Process Factors'!$B:$B,'Customized Process Factors'!$D:$D,"No C Content",0))*44/12,"Factor error")),"Factor error") -> 0
D148: =D147 -> A3.1.1.2.1 | E148: .3 | F148: =IF(F71="","",F71) ->  | J148: [t CO2e/reporting period] | K148: 0 | M148: =IFERROR(IF($H148="",0,IF(OR($F148='Customized Process Factors'!$B:$B),(SUMIFS(M:M,$D:$D,$D$69,$F:$F,$F148))*IF($H148="Customized", IF(_xlfn.XLOOKUP($F148,'Customized Process Factors'!$B:$B,'Customized Process Factors'!E:E,"No C Content",0)="","Factor error",_xlfn.XLOOKUP($F148,'Customized Process Factors'!$B:$B,'Customized Process Factors'!E:E,"No C Content",0)),_xlfn.XLOOKUP($F148,'Customized Process Factors'!$B:$B,'Customized Process Factors'!$D:$D,"No C Content",0))*44/12,"Factor error")),"Factor error") -> 0 | N148: =IFERROR(IF($H148="",0,IF(OR($F148='Customized Process Factors'!$B:$B),(SUMIFS(N:N,$D:$D,$D$69,$F:$F,$F148))*IF($H148="Customized", IF(_xlfn.XLOOKUP($F148,'Customized Process Factors'!$B:$B,'Customized Process Factors'!F:F,"No C Content",0)="","Factor error",_xlfn.XLOOKUP($F148,'Customized Process Factors'!$B:$B,'Customized Process Factors'!F:F,"No C Content",0)),_xlfn.XLOOKUP($F148,'Customized Process Factors'!$B:$B,'Customized Process Factors'!$D:$D,"No C Content",0))*44/12,"Factor error")),"Factor error") -> 0 | O148: =IFERROR(IF($H148="",0,IF(OR($F148='Customized Process Factors'!$B:$B),(SUMIFS(O:O,$D:$D,$D$69,$F:$F,$F148))*IF($H148="Customized", IF(_xlfn.XLOOKUP($F148,'Customized Process Factors'!$B:$B,'Customized Process Factors'!G:G,"No C Content",0)="","Factor error",_xlfn.XLOOKUP($F148,'Customized Process Factors'!$B:$B,'Customized Process Factors'!G:G,"No C Content",0)),_xlfn.XLOOKUP($F148,'Customized Process Factors'!$B:$B,'Customized Process Factors'!$D:$D,"No C Content",0))*44/12,"Factor error")),"Factor error") -> 0 | P148: =IFERROR(IF($H148="",0,IF(OR($F148='Customized Process Factors'!$B:$B),(SUMIFS(P:P,$D:$D,$D$69,$F:$F,$F148))*IF($H148="Customized", IF(_xlfn.XLOOKUP($F148,'Customized Process Factors'!$B:$B,'Customized Process Factors'!H:H,"No C Content",0)="","Factor error",_xlfn.XLOOKUP($F148,'Customized Process Factors'!$B:$B,'Customized Process Factors'!H:H,"No C Content",0)),_xlfn.XLOOKUP($F148,'Customized Process Factors'!$B:$B,'Customized Process Factors'!$D:$D,"No C Content",0))*44/12,"Factor error")),"Factor error") -> 0 | Q148: =IFERROR(IF($H148="",0,IF(OR($F148='Customized Process Factors'!$B:$B),(SUMIFS(Q:Q,$D:$D,$D$69,$F:$F,$F148))*IF($H148="Customized", IF(_xlfn.XLOOKUP($F148,'Customized Process Factors'!$B:$B,'Customized Process Factors'!I:I,"No C Content",0)="","Factor error",_xlfn.XLOOKUP($F148,'Customized Process Factors'!$B:$B,'Customized Process Factors'!I:I,"No C Content",0)),_xlfn.XLOOKUP($F148,'Customized Process Factors'!$B:$B,'Customized Process Factors'!$D:$D,"No C Content",0))*44/12,"Factor error")),"Factor error") -> 0 | R148: =IFERROR(IF($H148="",0,IF(OR($F148='Customized Process Factors'!$B:$B),(SUMIFS(R:R,$D:$D,$D$69,$F:$F,$F148))*IF($H148="Customized", IF(_xlfn.XLOOKUP($F148,'Customized Process Factors'!$B:$B,'Customized Process Factors'!J:J,"No C Content",0)="","Factor error",_xlfn.XLOOKUP($F148,'Customized Process Factors'!$B:$B,'Customized Process Factors'!J:J,"No C Content",0)),_xlfn.XLOOKUP($F148,'Customized Process Factors'!$B:$B,'Customized Process Factors'!$D:$D,"No C Content",0))*44/12,"Factor error")),"Factor error") -> 0
D149: A3.1.1.2.1 | E149: .4 | F149: =IF(F72="","",F72) ->  | J149: [t CO2e/reporting period] | K149: 0 | M149: =IFERROR(IF($H149="",0,IF(OR($F149='Customized Process Factors'!$B:$B),(SUMIFS(M:M,$D:$D,$D$69,$F:$F,$F149))*IF($H149="Customized", IF(_xlfn.XLOOKUP($F149,'Customized Process Factors'!$B:$B,'Customized Process Factors'!E:E,"No C Content",0)="","Factor error",_xlfn.XLOOKUP($F149,'Customized Process Factors'!$B:$B,'Customized Process Factors'!E:E,"No C Content",0)),_xlfn.XLOOKUP($F149,'Customized Process Factors'!$B:$B,'Customized Process Factors'!$D:$D,"No C Content",0))*44/12,"Factor error")),"Factor error") -> 0 | N149: =IFERROR(IF($H149="",0,IF(OR($F149='Customized Process Factors'!$B:$B),(SUMIFS(N:N,$D:$D,$D$69,$F:$F,$F149))*IF($H149="Customized", IF(_xlfn.XLOOKUP($F149,'Customized Process Factors'!$B:$B,'Customized Process Factors'!F:F,"No C Content",0)="","Factor error",_xlfn.XLOOKUP($F149,'Customized Process Factors'!$B:$B,'Customized Process Factors'!F:F,"No C Content",0)),_xlfn.XLOOKUP($F149,'Customized Process Factors'!$B:$B,'Customized Process Factors'!$D:$D,"No C Content",0))*44/12,"Factor error")),"Factor error") -> 0 | O149: =IFERROR(IF($H149="",0,IF(OR($F149='Customized Process Factors'!$B:$B),(SUMIFS(O:O,$D:$D,$D$69,$F:$F,$F149))*IF($H149="Customized", IF(_xlfn.XLOOKUP($F149,'Customized Process Factors'!$B:$B,'Customized Process Factors'!G:G,"No C Content",0)="","Factor error",_xlfn.XLOOKUP($F149,'Customized Process Factors'!$B:$B,'Customized Process Factors'!G:G,"No C Content",0)),_xlfn.XLOOKUP($F149,'Customized Process Factors'!$B:$B,'Customized Process Factors'!$D:$D,"No C Content",0))*44/12,"Factor error")),"Factor error") -> 0 | P149: =IFERROR(IF($H149="",0,IF(OR($F149='Customized Process Factors'!$B:$B),(SUMIFS(P:P,$D:$D,$D$69,$F:$F,$F149))*IF($H149="Customized", IF(_xlfn.XLOOKUP($F149,'Customized Process Factors'!$B:$B,'Customized Process Factors'!H:H,"No C Content",0)="","Factor error",_xlfn.XLOOKUP($F149,'Customized Process Factors'!$B:$B,'Customized Process Factors'!H:H,"No C Content",0)),_xlfn.XLOOKUP($F149,'Customized Process Factors'!$B:$B,'Customized Process Factors'!$D:$D,"No C Content",0))*44/12,"Factor error")),"Factor error") -> 0 | Q149: =IFERROR(IF($H149="",0,IF(OR($F149='Customized Process Factors'!$B:$B),(SUMIFS(Q:Q,$D:$D,$D$69,$F:$F,$F149))*IF($H149="Customized", IF(_xlfn.XLOOKUP($F149,'Customized Process Factors'!$B:$B,'Customized Process Factors'!I:I,"No C Content",0)="","Factor error",_xlfn.XLOOKUP($F149,'Customized Process Factors'!$B:$B,'Customized Process Factors'!I:I,"No C Content",0)),_xlfn.XLOOKUP($F149,'Customized Process Factors'!$B:$B,'Customized Process Factors'!$D:$D,"No C Content",0))*44/12,"Factor error")),"Factor error") -> 0 | R149: =IFERROR(IF($H149="",0,IF(OR($F149='Customized Process Factors'!$B:$B),(SUMIFS(R:R,$D:$D,$D$69,$F:$F,$F149))*IF($H149="Customized", IF(_xlfn.XLOOKUP($F149,'Customized Process Factors'!$B:$B,'Customized Process Factors'!J:J,"No C Content",0)="","Factor error",_xlfn.XLOOKUP($F149,'Customized Process Factors'!$B:$B,'Customized Process Factors'!J:J,"No C Content",0)),_xlfn.XLOOKUP($F149,'Customized Process Factors'!$B:$B,'Customized Process Factors'!$D:$D,"No C Content",0))*44/12,"Factor error")),"Factor error") -> 0
D150: =D145 -> A3.1.1.2 | E150: .2 | F150: Outputs | H150: Adopting C Content | I150: Adopting CH4 Emission Factor
D151: =D150&E150 -> A3.1.1.2.2 | E151: .1 | F151: =F74 -> Sinter | G151: =G74 -> produced | J151: [t CO2e/reporting period] | K151: 0 | M151: =IFERROR(+IF($I151="",0,IF(OR($F151='Customized Process Factors'!$A:$A),(SUMIFS(M:M,$D:$D,$D$74,$F:$F,$F151))*IF($I151="Customized", IF(_xlfn.XLOOKUP($F151,'Customized Process Factors'!$A:$A,'Customized Process Factors'!E:E,"No CH4 Content",0)="","Factor error",_xlfn.XLOOKUP($F151,'Customized Process Factors'!$A:$A,'Customized Process Factors'!E:E,"No CH4 Content",0)), _xlfn.XLOOKUP($F151,'Customized Process Factors'!$A:$A,'Customized Process Factors'!$D:$D,"No CH4 Content",0))*'Customized Process Factors'!$D$109,"Factor error")),"Factor error") -> 0 | N151: =IFERROR(+IF($I151="",0,IF(OR($F151='Customized Process Factors'!$A:$A),(SUMIFS(N:N,$D:$D,$D$74,$F:$F,$F151))*IF($I151="Customized", IF(_xlfn.XLOOKUP($F151,'Customized Process Factors'!$A:$A,'Customized Process Factors'!F:F,"No CH4 Content",0)="","Factor error",_xlfn.XLOOKUP($F151,'Customized Process Factors'!$A:$A,'Customized Process Factors'!F:F,"No CH4 Content",0)), _xlfn.XLOOKUP($F151,'Customized Process Factors'!$A:$A,'Customized Process Factors'!$D:$D,"No CH4 Content",0))*'Customized Process Factors'!$D$109,"Factor error")),"Factor error") -> 0 | O151: =IFERROR(+IF($I151="",0,IF(OR($F151='Customized Process Factors'!$A:$A),(SUMIFS(O:O,$D:$D,$D$74,$F:$F,$F151))*IF($I151="Customized", IF(_xlfn.XLOOKUP($F151,'Customized Process Factors'!$A:$A,'Customized Process Factors'!G:G,"No CH4 Content",0)="","Factor error",_xlfn.XLOOKUP($F151,'Customized Process Factors'!$A:$A,'Customized Process Factors'!G:G,"No CH4 Content",0)), _xlfn.XLOOKUP($F151,'Customized Process Factors'!$A:$A,'Customized Process Factors'!$D:$D,"No CH4 Content",0))*'Customized Process Factors'!$D$109,"Factor error")),"Factor error") -> 0 | P151: =IFERROR(+IF($I151="",0,IF(OR($F151='Customized Process Factors'!$A:$A),(SUMIFS(P:P,$D:$D,$D$74,$F:$F,$F151))*IF($I151="Customized", IF(_xlfn.XLOOKUP($F151,'Customized Process Factors'!$A:$A,'Customized Process Factors'!H:H,"No CH4 Content",0)="","Factor error",_xlfn.XLOOKUP($F151,'Customized Process Factors'!$A:$A,'Customized Process Factors'!H:H,"No CH4 Content",0)), _xlfn.XLOOKUP($F151,'Customized Process Factors'!$A:$A,'Customized Process Factors'!$D:$D,"No CH4 Content",0))*'Customized Process Factors'!$D$109,"Factor error")),"Factor error") -> 0 | Q151: =IFERROR(+IF($I151="",0,IF(OR($F151='Customized Process Factors'!$A:$A),(SUMIFS(Q:Q,$D:$D,$D$74,$F:$F,$F151))*IF($I151="Customized", IF(_xlfn.XLOOKUP($F151,'Customized Process Factors'!$A:$A,'Customized Process Factors'!I:I,"No CH4 Content",0)="","Factor error",_xlfn.XLOOKUP($F151,'Customized Process Factors'!$A:$A,'Customized Process Factors'!I:I,"No CH4 Content",0)), _xlfn.XLOOKUP($F151,'Customized Process Factors'!$A:$A,'Customized Process Factors'!$D:$D,"No CH4 Content",0))*'Customized Process Factors'!$D$109,"Factor error")),"Factor error") -> 0 | R151: =IFERROR(+IF($I151="",0,IF(OR($F151='Customized Process Factors'!$A:$A),(SUMIFS(R:R,$D:$D,$D$74,$F:$F,$F151))*IF($I151="Customized", IF(_xlfn.XLOOKUP($F151,'Customized Process Factors'!$A:$A,'Customized Process Factors'!J:J,"No CH4 Content",0)="","Factor error",_xlfn.XLOOKUP($F151,'Customized Process Factors'!$A:$A,'Customized Process Factors'!J:J,"No CH4 Content",0)), _xlfn.XLOOKUP($F151,'Customized Process Factors'!$A:$A,'Customized Process Factors'!$D:$D,"No CH4 Content",0))*'Customized Process Factors'!$D$109,"Factor error")),"Factor error") -> 0
D152: =D151 -> A3.1.1.2.2 | E152: .2 | F152: =F75 -> Sinter off gas | G152: =G75 -> transferred offsite | J152: [t CO2e/reporting period] | K152: 0 | M152: =IFERROR(-IF($H152="",0,IF(OR($F152='Customized Process Factors'!$B:$B),(SUMIFS(M:M,$D:$D,$D$74,$F:$F,$F152))*IF($H152="Customized", IF(_xlfn.XLOOKUP($F152,'Customized Process Factors'!$B:$B,'Customized Process Factors'!E:E,"No C Content",0)="","Factor error",_xlfn.XLOOKUP($F152,'Customized Process Factors'!$B:$B,'Customized Process Factors'!E:E,"No C Content",0)), _xlfn.XLOOKUP($F152,'Customized Process Factors'!$B:$B,'Customized Process Factors'!$D:$D,"No C Content",0))*44/12,"Factor error")),"Factor error") -> 0 | N152: =IFERROR(-IF($H152="",0,IF(OR($F152='Customized Process Factors'!$B:$B),(SUMIFS(N:N,$D:$D,$D$74,$F:$F,$F152))*IF($H152="Customized", IF(_xlfn.XLOOKUP($F152,'Customized Process Factors'!$B:$B,'Customized Process Factors'!F:F,"No C Content",0)="","Factor error",_xlfn.XLOOKUP($F152,'Customized Process Factors'!$B:$B,'Customized Process Factors'!F:F,"No C Content",0)), _xlfn.XLOOKUP($F152,'Customized Process Factors'!$B:$B,'Customized Process Factors'!$D:$D,"No C Content",0))*44/12,"Factor error")),"Factor error") -> 0 | O152: =IFERROR(-IF($H152="",0,IF(OR($F152='Customized Process Factors'!$B:$B),(SUMIFS(O:O,$D:$D,$D$74,$F:$F,$F152))*IF($H152="Customized", IF(_xlfn.XLOOKUP($F152,'Customized Process Factors'!$B:$B,'Customized Process Factors'!G:G,"No C Content",0)="","Factor error",_xlfn.XLOOKUP($F152,'Customized Process Factors'!$B:$B,'Customized Process Factors'!G:G,"No C Content",0)), _xlfn.XLOOKUP($F152,'Customized Process Factors'!$B:$B,'Customized Process Factors'!$D:$D,"No C Content",0))*44/12,"Factor error")),"Factor error") -> 0 | P152: =IFERROR(-IF($H152="",0,IF(OR($F152='Customized Process Factors'!$B:$B),(SUMIFS(P:P,$D:$D,$D$74,$F:$F,$F152))*IF($H152="Customized", IF(_xlfn.XLOOKUP($F152,'Customized Process Factors'!$B:$B,'Customized Process Factors'!H:H,"No C Content",0)="","Factor error",_xlfn.XLOOKUP($F152,'Customized Process Factors'!$B:$B,'Customized Process Factors'!H:H,"No C Content",0)), _xlfn.XLOOKUP($F152,'Customized Process Factors'!$B:$B,'Customized Process Factors'!$D:$D,"No C Content",0))*44/12,"Factor error")),"Factor error") -> 0 | Q152: =IFERROR(-IF($H152="",0,IF(OR($F152='Customized Process Factors'!$B:$B),(SUMIFS(Q:Q,$D:$D,$D$74,$F:$F,$F152))*IF($H152="Customized", IF(_xlfn.XLOOKUP($F152,'Customized Process Factors'!$B:$B,'Customized Process Factors'!I:I,"No C Content",0)="","Factor error",_xlfn.XLOOKUP($F152,'Customized Process Factors'!$B:$B,'Customized Process Factors'!I:I,"No C Content",0)), _xlfn.XLOOKUP($F152,'Customized Process Factors'!$B:$B,'Customized Process Factors'!$D:$D,"No C Content",0))*44/12,"Factor error")),"Factor error") -> 0 | R152: =IFERROR(-IF($H152="",0,IF(OR($F152='Customized Process Factors'!$B:$B),(SUMIFS(R:R,$D:$D,$D$74,$F:$F,$F152))*IF($H152="Customized", IF(_xlfn.XLOOKUP($F152,'Customized Process Factors'!$B:$B,'Customized Process Factors'!J:J,"No C Content",0)="","Factor error",_xlfn.XLOOKUP($F152,'Customized Process Factors'!$B:$B,'Customized Process Factors'!J:J,"No C Content",0)), _xlfn.XLOOKUP($F152,'Customized Process Factors'!$B:$B,'Customized Process Factors'!$D:$D,"No C Content",0))*44/12,"Factor error")),"Factor error") -> 0
D153: =D143 -> A3.1.1 | E153: .3 | F153: CO2e from iron and steel production | K153: =SUM(M153:R153) -> 0 | M153: =SUMIF($D:$D,$D156,M:M)+SUMIF($D:$D,$D165,M:M) -> 0 | N153: 0 | O153: 0 | P153: 0 | Q153: 0 | R153: 0
F154: [Please insert additional rows if more materials are included]
D155: =D153&E153 -> A3.1.1.3 | E155: .1 | F155: Inputs | H155: Adopting C Content
D156: =D155&E155 -> A3.1.1.3.1 | E156: .1 | F156: =IF(F78="","",F78) ->  | J156: [t CO2e/reporting period] | K156: 0 | M156: =IFERROR(IF($H156="",0,IF(OR($F156='Customized Process Factors'!$B:$B),(SUMIFS(M:M,$D:$D,$D$78,$F:$F,$F156))*IF($H156="Customized", IF(_xlfn.XLOOKUP($F156,'Customized Process Factors'!$B:$B,'Customized Process Factors'!E:E,"No C Content",0)="","Factor error",_xlfn.XLOOKUP($F156,'Customized Process Factors'!$B:$B,'Customized Process Factors'!E:E,"No C Content",0)), _xlfn.XLOOKUP($F156,'Customized Process Factors'!$B:$B,'Customized Process Factors'!$D:$D,"No C Content",0))*44/12,"Factor error")),"Factor error") -> 0 | N156: =IFERROR(IF($H156="",0,IF(OR($F156='Customized Process Factors'!$B:$B),(SUMIFS(N:N,$D:$D,$D$78,$F:$F,$F156))*IF($H156="Customized", IF(_xlfn.XLOOKUP($F156,'Customized Process Factors'!$B:$B,'Customized Process Factors'!F:F,"No C Content",0)="","Factor error",_xlfn.XLOOKUP($F156,'Customized Process Factors'!$B:$B,'Customized Process Factors'!F:F,"No C Content",0)), _xlfn.XLOOKUP($F156,'Customized Process Factors'!$B:$B,'Customized Process Factors'!$D:$D,"No C Content",0))*44/12,"Factor error")),"Factor error") -> 0 | O156: =IFERROR(IF($H156="",0,IF(OR($F156='Customized Process Factors'!$B:$B),(SUMIFS(O:O,$D:$D,$D$78,$F:$F,$F156))*IF($H156="Customized", IF(_xlfn.XLOOKUP($F156,'Customized Process Factors'!$B:$B,'Customized Process Factors'!G:G,"No C Content",0)="","Factor error",_xlfn.XLOOKUP($F156,'Customized Process Factors'!$B:$B,'Customized Process Factors'!G:G,"No C Content",0)), _xlfn.XLOOKUP($F156,'Customized Process Factors'!$B:$B,'Customized Process Factors'!$D:$D,"No C Content",0))*44/12,"Factor error")),"Factor error") -> 0 | P156: =IFERROR(IF($H156="",0,IF(OR($F156='Customized Process Factors'!$B:$B),(SUMIFS(P:P,$D:$D,$D$78,$F:$F,$F156))*IF($H156="Customized", IF(_xlfn.XLOOKUP($F156,'Customized Process Factors'!$B:$B,'Customized Process Factors'!H:H,"No C Content",0)="","Factor error",_xlfn.XLOOKUP($F156,'Customized Process Factors'!$B:$B,'Customized Process Factors'!H:H,"No C Content",0)), _xlfn.XLOOKUP($F156,'Customized Process Factors'!$B:$B,'Customized Process Factors'!$D:$D,"No C Content",0))*44/12,"Factor error")),"Factor error") -> 0 | Q156: =IFERROR(IF($H156="",0,IF(OR($F156='Customized Process Factors'!$B:$B),(SUMIFS(Q:Q,$D:$D,$D$78,$F:$F,$F156))*IF($H156="Customized", IF(_xlfn.XLOOKUP($F156,'Customized Process Factors'!$B:$B,'Customized Process Factors'!I:I,"No C Content",0)="","Factor error",_xlfn.XLOOKUP($F156,'Customized Process Factors'!$B:$B,'Customized Process Factors'!I:I,"No C Content",0)), _xlfn.XLOOKUP($F156,'Customized Process Factors'!$B:$B,'Customized Process Factors'!$D:$D,"No C Content",0))*44/12,"Factor error")),"Factor error") -> 0 | R156: =IFERROR(IF($H156="",0,IF(OR($F156='Customized Process Factors'!$B:$B),(SUMIFS(R:R,$D:$D,$D$78,$F:$F,$F156))*IF($H156="Customized", IF(_xlfn.XLOOKUP($F156,'Customized Process Factors'!$B:$B,'Customized Process Factors'!J:J,"No C Content",0)="","Factor error",_xlfn.XLOOKUP($F156,'Customized Process Factors'!$B:$B,'Customized Process Factors'!J:J,"No C Content",0)), _xlfn.XLOOKUP($F156,'Customized Process Factors'!$B:$B,'Customized Process Factors'!$D:$D,"No C Content",0))*44/12,"Factor error")),"Factor error") -> 0
D157: =D156 -> A3.1.1.3.1 | E157: .2 | J157: [t CO2e/reporting period] | K157: 0 | M157: =IFERROR(IF($H157="",0,IF(OR($F157='Customized Process Factors'!$B:$B),(SUMIFS(M:M,$D:$D,$D$78,$F:$F,$F157))*IF($H157="Customized", IF(_xlfn.XLOOKUP($F157,'Customized Process Factors'!$B:$B,'Customized Process Factors'!E:E,"No C Content",0)="","Factor error",_xlfn.XLOOKUP($F157,'Customized Process Factors'!$B:$B,'Customized Process Factors'!E:E,"No C Content",0)), _xlfn.XLOOKUP($F157,'Customized Process Factors'!$B:$B,'Customized Process Factors'!$D:$D,"No C Content",0))*44/12,"Factor error")),"Factor error") -> 0 | N157: =IFERROR(IF($H157="",0,IF(OR($F157='Customized Process Factors'!$B:$B),(SUMIFS(N:N,$D:$D,$D$78,$F:$F,$F157))*IF($H157="Customized", IF(_xlfn.XLOOKUP($F157,'Customized Process Factors'!$B:$B,'Customized Process Factors'!F:F,"No C Content",0)="","Factor error",_xlfn.XLOOKUP($F157,'Customized Process Factors'!$B:$B,'Customized Process Factors'!F:F,"No C Content",0)), _xlfn.XLOOKUP($F157,'Customized Process Factors'!$B:$B,'Customized Process Factors'!$D:$D,"No C Content",0))*44/12,"Factor error")),"Factor error") -> 0 | O157: =IFERROR(IF($H157="",0,IF(OR($F157='Customized Process Factors'!$B:$B),(SUMIFS(O:O,$D:$D,$D$78,$F:$F,$F157))*IF($H157="Customized", IF(_xlfn.XLOOKUP($F157,'Customized Process Factors'!$B:$B,'Customized Process Factors'!G:G,"No C Content",0)="","Factor error",_xlfn.XLOOKUP($F157,'Customized Process Factors'!$B:$B,'Customized Process Factors'!G:G,"No C Content",0)), _xlfn.XLOOKUP($F157,'Customized Process Factors'!$B:$B,'Customized Process Factors'!$D:$D,"No C Content",0))*44/12,"Factor error")),"Factor error") -> 0 | P157: =IFERROR(IF($H157="",0,IF(OR($F157='Customized Process Factors'!$B:$B),(SUMIFS(P:P,$D:$D,$D$78,$F:$F,$F157))*IF($H157="Customized", IF(_xlfn.XLOOKUP($F157,'Customized Process Factors'!$B:$B,'Customized Process Factors'!H:H,"No C Content",0)="","Factor error",_xlfn.XLOOKUP($F157,'Customized Process Factors'!$B:$B,'Customized Process Factors'!H:H,"No C Content",0)), _xlfn.XLOOKUP($F157,'Customized Process Factors'!$B:$B,'Customized Process Factors'!$D:$D,"No C Content",0))*44/12,"Factor error")),"Factor error") -> 0 | Q157: =IFERROR(IF($H157="",0,IF(OR($F157='Customized Process Factors'!$B:$B),(SUMIFS(Q:Q,$D:$D,$D$78,$F:$F,$F157))*IF($H157="Customized", IF(_xlfn.XLOOKUP($F157,'Customized Process Factors'!$B:$B,'Customized Process Factors'!I:I,"No C Content",0)="","Factor error",_xlfn.XLOOKUP($F157,'Customized Process Factors'!$B:$B,'Customized Process Factors'!I:I,"No C Content",0)), _xlfn.XLOOKUP($F157,'Customized Process Factors'!$B:$B,'Customized Process Factors'!$D:$D,"No C Content",0))*44/12,"Factor error")),"Factor error") -> 0 | R157: =IFERROR(IF($H157="",0,IF(OR($F157='Customized Process Factors'!$B:$B),(SUMIFS(R:R,$D:$D,$D$78,$F:$F,$F157))*IF($H157="Customized", IF(_xlfn.XLOOKUP($F157,'Customized Process Factors'!$B:$B,'Customized Process Factors'!J:J,"No C Content",0)="","Factor error",_xlfn.XLOOKUP($F157,'Customized Process Factors'!$B:$B,'Customized Process Factors'!J:J,"No C Content",0)), _xlfn.XLOOKUP($F157,'Customized Process Factors'!$B:$B,'Customized Process Factors'!$D:$D,"No C Content",0))*44/12,"Factor error")),"Factor error") -> 0
D158: =D157 -> A3.1.1.3.1 | E158: .3 | J158: [t CO2e/reporting period] | K158: 0 | M158: =IFERROR(IF($H158="",0,IF(OR($F158='Customized Process Factors'!$B:$B),(SUMIFS(M:M,$D:$D,$D$78,$F:$F,$F158))*IF($H158="Customized", IF(_xlfn.XLOOKUP($F158,'Customized Process Factors'!$B:$B,'Customized Process Factors'!E:E,"No C Content",0)="","Factor error",_xlfn.XLOOKUP($F158,'Customized Process Factors'!$B:$B,'Customized Process Factors'!E:E,"No C Content",0)), _xlfn.XLOOKUP($F158,'Customized Process Factors'!$B:$B,'Customized Process Factors'!$D:$D,"No C Content",0))*44/12,"Factor error")),"Factor error") -> 0 | N158: =IFERROR(IF($H158="",0,IF(OR($F158='Customized Process Factors'!$B:$B),(SUMIFS(N:N,$D:$D,$D$78,$F:$F,$F158))*IF($H158="Customized", IF(_xlfn.XLOOKUP($F158,'Customized Process Factors'!$B:$B,'Customized Process Factors'!F:F,"No C Content",0)="","Factor error",_xlfn.XLOOKUP($F158,'Customized Process Factors'!$B:$B,'Customized Process Factors'!F:F,"No C Content",0)), _xlfn.XLOOKUP($F158,'Customized Process Factors'!$B:$B,'Customized Process Factors'!$D:$D,"No C Content",0))*44/12,"Factor error")),"Factor error") -> 0 | O158: =IFERROR(IF($H158="",0,IF(OR($F158='Customized Process Factors'!$B:$B),(SUMIFS(O:O,$D:$D,$D$78,$F:$F,$F158))*IF($H158="Customized", IF(_xlfn.XLOOKUP($F158,'Customized Process Factors'!$B:$B,'Customized Process Factors'!G:G,"No C Content",0)="","Factor error",_xlfn.XLOOKUP($F158,'Customized Process Factors'!$B:$B,'Customized Process Factors'!G:G,"No C Content",0)), _xlfn.XLOOKUP($F158,'Customized Process Factors'!$B:$B,'Customized Process Factors'!$D:$D,"No C Content",0))*44/12,"Factor error")),"Factor error") -> 0 | P158: =IFERROR(IF($H158="",0,IF(OR($F158='Customized Process Factors'!$B:$B),(SUMIFS(P:P,$D:$D,$D$78,$F:$F,$F158))*IF($H158="Customized", IF(_xlfn.XLOOKUP($F158,'Customized Process Factors'!$B:$B,'Customized Process Factors'!H:H,"No C Content",0)="","Factor error",_xlfn.XLOOKUP($F158,'Customized Process Factors'!$B:$B,'Customized Process Factors'!H:H,"No C Content",0)), _xlfn.XLOOKUP($F158,'Customized Process Factors'!$B:$B,'Customized Process Factors'!$D:$D,"No C Content",0))*44/12,"Factor error")),"Factor error") -> 0 | Q158: =IFERROR(IF($H158="",0,IF(OR($F158='Customized Process Factors'!$B:$B),(SUMIFS(Q:Q,$D:$D,$D$78,$F:$F,$F158))*IF($H158="Customized", IF(_xlfn.XLOOKUP($F158,'Customized Process Factors'!$B:$B,'Customized Process Factors'!I:I,"No C Content",0)="","Factor error",_xlfn.XLOOKUP($F158,'Customized Process Factors'!$B:$B,'Customized Process Factors'!I:I,"No C Content",0)), _xlfn.XLOOKUP($F158,'Customized Process Factors'!$B:$B,'Customized Process Factors'!$D:$D,"No C Content",0))*44/12,"Factor error")),"Factor error") -> 0 | R158: =IFERROR(IF($H158="",0,IF(OR($F158='Customized Process Factors'!$B:$B),(SUMIFS(R:R,$D:$D,$D$78,$F:$F,$F158))*IF($H158="Customized", IF(_xlfn.XLOOKUP($F158,'Customized Process Factors'!$B:$B,'Customized Process Factors'!J:J,"No C Content",0)="","Factor error",_xlfn.XLOOKUP($F158,'Customized Process Factors'!$B:$B,'Customized Process Factors'!J:J,"No C Content",0)), _xlfn.XLOOKUP($F158,'Customized Process Factors'!$B:$B,'Customized Process Factors'!$D:$D,"No C Content",0))*44/12,"Factor error")),"Factor error") -> 0
D159: A3.1.1.3.1 | E159: .4 | J159: [t CO2e/reporting period] | K159: 0 | M159: =IFERROR(IF($H159="",0,IF(OR($F159='Customized Process Factors'!$B:$B),(SUMIFS(M:M,$D:$D,$D$78,$F:$F,$F159))*IF($H159="Customized", IF(_xlfn.XLOOKUP($F159,'Customized Process Factors'!$B:$B,'Customized Process Factors'!E:E,"No C Content",0)="","Factor error",_xlfn.XLOOKUP($F159,'Customized Process Factors'!$B:$B,'Customized Process Factors'!E:E,"No C Content",0)), _xlfn.XLOOKUP($F159,'Customized Process Factors'!$B:$B,'Customized Process Factors'!$D:$D,"No C Content",0))*44/12,"Factor error")),"Factor error") -> 0 | N159: =IFERROR(IF($H159="",0,IF(OR($F159='Customized Process Factors'!$B:$B),(SUMIFS(N:N,$D:$D,$D$78,$F:$F,$F159))*IF($H159="Customized", IF(_xlfn.XLOOKUP($F159,'Customized Process Factors'!$B:$B,'Customized Process Factors'!F:F,"No C Content",0)="","Factor error",_xlfn.XLOOKUP($F159,'Customized Process Factors'!$B:$B,'Customized Process Factors'!F:F,"No C Content",0)), _xlfn.XLOOKUP($F159,'Customized Process Factors'!$B:$B,'Customized Process Factors'!$D:$D,"No C Content",0))*44/12,"Factor error")),"Factor error") -> 0 | O159: =IFERROR(IF($H159="",0,IF(OR($F159='Customized Process Factors'!$B:$B),(SUMIFS(O:O,$D:$D,$D$78,$F:$F,$F159))*IF($H159="Customized", IF(_xlfn.XLOOKUP($F159,'Customized Process Factors'!$B:$B,'Customized Process Factors'!G:G,"No C Content",0)="","Factor error",_xlfn.XLOOKUP($F159,'Customized Process Factors'!$B:$B,'Customized Process Factors'!G:G,"No C Content",0)), _xlfn.XLOOKUP($F159,'Customized Process Factors'!$B:$B,'Customized Process Factors'!$D:$D,"No C Content",0))*44/12,"Factor error")),"Factor error") -> 0 | P159: =IFERROR(IF($H159="",0,IF(OR($F159='Customized Process Factors'!$B:$B),(SUMIFS(P:P,$D:$D,$D$78,$F:$F,$F159))*IF($H159="Customized", IF(_xlfn.XLOOKUP($F159,'Customized Process Factors'!$B:$B,'Customized Process Factors'!H:H,"No C Content",0)="","Factor error",_xlfn.XLOOKUP($F159,'Customized Process Factors'!$B:$B,'Customized Process Factors'!H:H,"No C Content",0)), _xlfn.XLOOKUP($F159,'Customized Process Factors'!$B:$B,'Customized Process Factors'!$D:$D,"No C Content",0))*44/12,"Factor error")),"Factor error") -> 0 | Q159: =IFERROR(IF($H159="",0,IF(OR($F159='Customized Process Factors'!$B:$B),(SUMIFS(Q:Q,$D:$D,$D$78,$F:$F,$F159))*IF($H159="Customized", IF(_xlfn.XLOOKUP($F159,'Customized Process Factors'!$B:$B,'Customized Process Factors'!I:I,"No C Content",0)="","Factor error",_xlfn.XLOOKUP($F159,'Customized Process Factors'!$B:$B,'Customized Process Factors'!I:I,"No C Content",0)), _xlfn.XLOOKUP($F159,'Customized Process Factors'!$B:$B,'Customized Process Factors'!$D:$D,"No C Content",0))*44/12,"Factor error")),"Factor error") -> 0 | R159: =IFERROR(IF($H159="",0,IF(OR($F159='Customized Process Factors'!$B:$B),(SUMIFS(R:R,$D:$D,$D$78,$F:$F,$F159))*IF($H159="Customized", IF(_xlfn.XLOOKUP($F159,'Customized Process Factors'!$B:$B,'Customized Process Factors'!J:J,"No C Content",0)="","Factor error",_xlfn.XLOOKUP($F159,'Customized Process Factors'!$B:$B,'Customized Process Factors'!J:J,"No C Content",0)), _xlfn.XLOOKUP($F159,'Customized Process Factors'!$B:$B,'Customized Process Factors'!$D:$D,"No C Content",0))*44/12,"Factor error")),"Factor error") -> 0
D160: A3.1.1.3.1 | E160: .5 | J160: [t CO2e/reporting period] | K160: 0 | M160: =IFERROR(IF($H160="",0,IF(OR($F160='Customized Process Factors'!$B:$B),(SUMIFS(M:M,$D:$D,$D$78,$F:$F,$F160))*IF($H160="Customized", IF(_xlfn.XLOOKUP($F160,'Customized Process Factors'!$B:$B,'Customized Process Factors'!E:E,"No C Content",0)="","Factor error",_xlfn.XLOOKUP($F160,'Customized Process Factors'!$B:$B,'Customized Process Factors'!E:E,"No C Content",0)), _xlfn.XLOOKUP($F160,'Customized Process Factors'!$B:$B,'Customized Process Factors'!$D:$D,"No C Content",0))*44/12,"Factor error")),"Factor error") -> 0 | N160: =IFERROR(IF($H160="",0,IF(OR($F160='Customized Process Factors'!$B:$B),(SUMIFS(N:N,$D:$D,$D$78,$F:$F,$F160))*IF($H160="Customized", IF(_xlfn.XLOOKUP($F160,'Customized Process Factors'!$B:$B,'Customized Process Factors'!F:F,"No C Content",0)="","Factor error",_xlfn.XLOOKUP($F160,'Customized Process Factors'!$B:$B,'Customized Process Factors'!F:F,"No C Content",0)), _xlfn.XLOOKUP($F160,'Customized Process Factors'!$B:$B,'Customized Process Factors'!$D:$D,"No C Content",0))*44/12,"Factor error")),"Factor error") -> 0 | O160: =IFERROR(IF($H160="",0,IF(OR($F160='Customized Process Factors'!$B:$B),(SUMIFS(O:O,$D:$D,$D$78,$F:$F,$F160))*IF($H160="Customized", IF(_xlfn.XLOOKUP($F160,'Customized Process Factors'!$B:$B,'Customized Process Factors'!G:G,"No C Content",0)="","Factor error",_xlfn.XLOOKUP($F160,'Customized Process Factors'!$B:$B,'Customized Process Factors'!G:G,"No C Content",0)), _xlfn.XLOOKUP($F160,'Customized Process Factors'!$B:$B,'Customized Process Factors'!$D:$D,"No C Content",0))*44/12,"Factor error")),"Factor error") -> 0 | P160: =IFERROR(IF($H160="",0,IF(OR($F160='Customized Process Factors'!$B:$B),(SUMIFS(P:P,$D:$D,$D$78,$F:$F,$F160))*IF($H160="Customized", IF(_xlfn.XLOOKUP($F160,'Customized Process Factors'!$B:$B,'Customized Process Factors'!H:H,"No C Content",0)="","Factor error",_xlfn.XLOOKUP($F160,'Customized Process Factors'!$B:$B,'Customized Process Factors'!H:H,"No C Content",0)), _xlfn.XLOOKUP($F160,'Customized Process Factors'!$B:$B,'Customized Process Factors'!$D:$D,"No C Content",0))*44/12,"Factor error")),"Factor error") -> 0 | Q160: =IFERROR(IF($H160="",0,IF(OR($F160='Customized Process Factors'!$B:$B),(SUMIFS(Q:Q,$D:$D,$D$78,$F:$F,$F160))*IF($H160="Customized", IF(_xlfn.XLOOKUP($F160,'Customized Process Factors'!$B:$B,'Customized Process Factors'!I:I,"No C Content",0)="","Factor error",_xlfn.XLOOKUP($F160,'Customized Process Factors'!$B:$B,'Customized Process Factors'!I:I,"No C Content",0)), _xlfn.XLOOKUP($F160,'Customized Process Factors'!$B:$B,'Customized Process Factors'!$D:$D,"No C Content",0))*44/12,"Factor error")),"Factor error") -> 0 | R160: =IFERROR(IF($H160="",0,IF(OR($F160='Customized Process Factors'!$B:$B),(SUMIFS(R:R,$D:$D,$D$78,$F:$F,$F160))*IF($H160="Customized", IF(_xlfn.XLOOKUP($F160,'Customized Process Factors'!$B:$B,'Customized Process Factors'!J:J,"No C Content",0)="","Factor error",_xlfn.XLOOKUP($F160,'Customized Process Factors'!$B:$B,'Customized Process Factors'!J:J,"No C Content",0)), _xlfn.XLOOKUP($F160,'Customized Process Factors'!$B:$B,'Customized Process Factors'!$D:$D,"No C Content",0))*44/12,"Factor error")),"Factor error") -> 0
D161: A3.1.1.3.1 | E161: .6 | J161: [t CO2e/reporting period] | K161: 0 | M161: =IFERROR(IF($H161="",0,IF(OR($F161='Customized Process Factors'!$B:$B),(SUMIFS(M:M,$D:$D,$D$78,$F:$F,$F161))*IF($H161="Customized", IF(_xlfn.XLOOKUP($F161,'Customized Process Factors'!$B:$B,'Customized Process Factors'!E:E,"No C Content",0)="","Factor error",_xlfn.XLOOKUP($F161,'Customized Process Factors'!$B:$B,'Customized Process Factors'!E:E,"No C Content",0)), _xlfn.XLOOKUP($F161,'Customized Process Factors'!$B:$B,'Customized Process Factors'!$D:$D,"No C Content",0))*44/12,"Factor error")),"Factor error") -> 0 | N161: =IFERROR(IF($H161="",0,IF(OR($F161='Customized Process Factors'!$B:$B),(SUMIFS(N:N,$D:$D,$D$78,$F:$F,$F161))*IF($H161="Customized", IF(_xlfn.XLOOKUP($F161,'Customized Process Factors'!$B:$B,'Customized Process Factors'!F:F,"No C Content",0)="","Factor error",_xlfn.XLOOKUP($F161,'Customized Process Factors'!$B:$B,'Customized Process Factors'!F:F,"No C Content",0)), _xlfn.XLOOKUP($F161,'Customized Process Factors'!$B:$B,'Customized Process Factors'!$D:$D,"No C Content",0))*44/12,"Factor error")),"Factor error") -> 0 | O161: =IFERROR(IF($H161="",0,IF(OR($F161='Customized Process Factors'!$B:$B),(SUMIFS(O:O,$D:$D,$D$78,$F:$F,$F161))*IF($H161="Customized", IF(_xlfn.XLOOKUP($F161,'Customized Process Factors'!$B:$B,'Customized Process Factors'!G:G,"No C Content",0)="","Factor error",_xlfn.XLOOKUP($F161,'Customized Process Factors'!$B:$B,'Customized Process Factors'!G:G,"No C Content",0)), _xlfn.XLOOKUP($F161,'Customized Process Factors'!$B:$B,'Customized Process Factors'!$D:$D,"No C Content",0))*44/12,"Factor error")),"Factor error") -> 0 | P161: =IFERROR(IF($H161="",0,IF(OR($F161='Customized Process Factors'!$B:$B),(SUMIFS(P:P,$D:$D,$D$78,$F:$F,$F161))*IF($H161="Customized", IF(_xlfn.XLOOKUP($F161,'Customized Process Factors'!$B:$B,'Customized Process Factors'!H:H,"No C Content",0)="","Factor error",_xlfn.XLOOKUP($F161,'Customized Process Factors'!$B:$B,'Customized Process Factors'!H:H,"No C Content",0)), _xlfn.XLOOKUP($F161,'Customized Process Factors'!$B:$B,'Customized Process Factors'!$D:$D,"No C Content",0))*44/12,"Factor error")),"Factor error") -> 0 | Q161: =IFERROR(IF($H161="",0,IF(OR($F161='Customized Process Factors'!$B:$B),(SUMIFS(Q:Q,$D:$D,$D$78,$F:$F,$F161))*IF($H161="Customized", IF(_xlfn.XLOOKUP($F161,'Customized Process Factors'!$B:$B,'Customized Process Factors'!I:I,"No C Content",0)="","Factor error",_xlfn.XLOOKUP($F161,'Customized Process Factors'!$B:$B,'Customized Process Factors'!I:I,"No C Content",0)), _xlfn.XLOOKUP($F161,'Customized Process Factors'!$B:$B,'Customized Process Factors'!$D:$D,"No C Content",0))*44/12,"Factor error")),"Factor error") -> 0 | R161: =IFERROR(IF($H161="",0,IF(OR($F161='Customized Process Factors'!$B:$B),(SUMIFS(R:R,$D:$D,$D$78,$F:$F,$F161))*IF($H161="Customized", IF(_xlfn.XLOOKUP($F161,'Customized Process Factors'!$B:$B,'Customized Process Factors'!J:J,"No C Content",0)="","Factor error",_xlfn.XLOOKUP($F161,'Customized Process Factors'!$B:$B,'Customized Process Factors'!J:J,"No C Content",0)), _xlfn.XLOOKUP($F161,'Customized Process Factors'!$B:$B,'Customized Process Factors'!$D:$D,"No C Content",0))*44/12,"Factor error")),"Factor error") -> 0
D162: A3.1.1.3.1 | E162: .7 | J162: [t CO2e/reporting period] | K162: 0 | M162: =IFERROR(IF($H162="",0,IF(OR($F162='Customized Process Factors'!$B:$B),(SUMIFS(M:M,$D:$D,$D$78,$F:$F,$F162))*IF($H162="Customized", IF(_xlfn.XLOOKUP($F162,'Customized Process Factors'!$B:$B,'Customized Process Factors'!E:E,"No C Content",0)="","Factor error",_xlfn.XLOOKUP($F162,'Customized Process Factors'!$B:$B,'Customized Process Factors'!E:E,"No C Content",0)), _xlfn.XLOOKUP($F162,'Customized Process Factors'!$B:$B,'Customized Process Factors'!$D:$D,"No C Content",0))*44/12,"Factor error")),"Factor error") -> 0 | N162: =IFERROR(IF($H162="",0,IF(OR($F162='Customized Process Factors'!$B:$B),(SUMIFS(N:N,$D:$D,$D$78,$F:$F,$F162))*IF($H162="Customized", IF(_xlfn.XLOOKUP($F162,'Customized Process Factors'!$B:$B,'Customized Process Factors'!F:F,"No C Content",0)="","Factor error",_xlfn.XLOOKUP($F162,'Customized Process Factors'!$B:$B,'Customized Process Factors'!F:F,"No C Content",0)), _xlfn.XLOOKUP($F162,'Customized Process Factors'!$B:$B,'Customized Process Factors'!$D:$D,"No C Content",0))*44/12,"Factor error")),"Factor error") -> 0 | O162: =IFERROR(IF($H162="",0,IF(OR($F162='Customized Process Factors'!$B:$B),(SUMIFS(O:O,$D:$D,$D$78,$F:$F,$F162))*IF($H162="Customized", IF(_xlfn.XLOOKUP($F162,'Customized Process Factors'!$B:$B,'Customized Process Factors'!G:G,"No C Content",0)="","Factor error",_xlfn.XLOOKUP($F162,'Customized Process Factors'!$B:$B,'Customized Process Factors'!G:G,"No C Content",0)), _xlfn.XLOOKUP($F162,'Customized Process Factors'!$B:$B,'Customized Process Factors'!$D:$D,"No C Content",0))*44/12,"Factor error")),"Factor error") -> 0 | P162: =IFERROR(IF($H162="",0,IF(OR($F162='Customized Process Factors'!$B:$B),(SUMIFS(P:P,$D:$D,$D$78,$F:$F,$F162))*IF($H162="Customized", IF(_xlfn.XLOOKUP($F162,'Customized Process Factors'!$B:$B,'Customized Process Factors'!H:H,"No C Content",0)="","Factor error",_xlfn.XLOOKUP($F162,'Customized Process Factors'!$B:$B,'Customized Process Factors'!H:H,"No C Content",0)), _xlfn.XLOOKUP($F162,'Customized Process Factors'!$B:$B,'Customized Process Factors'!$D:$D,"No C Content",0))*44/12,"Factor error")),"Factor error") -> 0 | Q162: =IFERROR(IF($H162="",0,IF(OR($F162='Customized Process Factors'!$B:$B),(SUMIFS(Q:Q,$D:$D,$D$78,$F:$F,$F162))*IF($H162="Customized", IF(_xlfn.XLOOKUP($F162,'Customized Process Factors'!$B:$B,'Customized Process Factors'!I:I,"No C Content",0)="","Factor error",_xlfn.XLOOKUP($F162,'Customized Process Factors'!$B:$B,'Customized Process Factors'!I:I,"No C Content",0)), _xlfn.XLOOKUP($F162,'Customized Process Factors'!$B:$B,'Customized Process Factors'!$D:$D,"No C Content",0))*44/12,"Factor error")),"Factor error") -> 0 | R162: =IFERROR(IF($H162="",0,IF(OR($F162='Customized Process Factors'!$B:$B),(SUMIFS(R:R,$D:$D,$D$78,$F:$F,$F162))*IF($H162="Customized", IF(_xlfn.XLOOKUP($F162,'Customized Process Factors'!$B:$B,'Customized Process Factors'!J:J,"No C Content",0)="","Factor error",_xlfn.XLOOKUP($F162,'Customized Process Factors'!$B:$B,'Customized Process Factors'!J:J,"No C Content",0)), _xlfn.XLOOKUP($F162,'Customized Process Factors'!$B:$B,'Customized Process Factors'!$D:$D,"No C Content",0))*44/12,"Factor error")),"Factor error") -> 0
D163: A3.1.1.3.1 | E163: .8 | J163: [t CO2e/reporting period] | K163: 0 | M163: =IFERROR(IF($H163="",0,IF(OR($F163='Customized Process Factors'!$B:$B),(SUMIFS(M:M,$D:$D,$D$78,$F:$F,$F163))*IF($H163="Customized", IF(_xlfn.XLOOKUP($F163,'Customized Process Factors'!$B:$B,'Customized Process Factors'!E:E,"No C Content",0)="","Factor error",_xlfn.XLOOKUP($F163,'Customized Process Factors'!$B:$B,'Customized Process Factors'!E:E,"No C Content",0)), _xlfn.XLOOKUP($F163,'Customized Process Factors'!$B:$B,'Customized Process Factors'!$D:$D,"No C Content",0))*44/12,"Factor error")),"Factor error") -> 0 | N163: =IFERROR(IF($H163="",0,IF(OR($F163='Customized Process Factors'!$B:$B),(SUMIFS(N:N,$D:$D,$D$78,$F:$F,$F163))*IF($H163="Customized", IF(_xlfn.XLOOKUP($F163,'Customized Process Factors'!$B:$B,'Customized Process Factors'!F:F,"No C Content",0)="","Factor error",_xlfn.XLOOKUP($F163,'Customized Process Factors'!$B:$B,'Customized Process Factors'!F:F,"No C Content",0)), _xlfn.XLOOKUP($F163,'Customized Process Factors'!$B:$B,'Customized Process Factors'!$D:$D,"No C Content",0))*44/12,"Factor error")),"Factor error") -> 0 | O163: =IFERROR(IF($H163="",0,IF(OR($F163='Customized Process Factors'!$B:$B),(SUMIFS(O:O,$D:$D,$D$78,$F:$F,$F163))*IF($H163="Customized", IF(_xlfn.XLOOKUP($F163,'Customized Process Factors'!$B:$B,'Customized Process Factors'!G:G,"No C Content",0)="","Factor error",_xlfn.XLOOKUP($F163,'Customized Process Factors'!$B:$B,'Customized Process Factors'!G:G,"No C Content",0)), _xlfn.XLOOKUP($F163,'Customized Process Factors'!$B:$B,'Customized Process Factors'!$D:$D,"No C Content",0))*44/12,"Factor error")),"Factor error") -> 0 | P163: =IFERROR(IF($H163="",0,IF(OR($F163='Customized Process Factors'!$B:$B),(SUMIFS(P:P,$D:$D,$D$78,$F:$F,$F163))*IF($H163="Customized", IF(_xlfn.XLOOKUP($F163,'Customized Process Factors'!$B:$B,'Customized Process Factors'!H:H,"No C Content",0)="","Factor error",_xlfn.XLOOKUP($F163,'Customized Process Factors'!$B:$B,'Customized Process Factors'!H:H,"No C Content",0)), _xlfn.XLOOKUP($F163,'Customized Process Factors'!$B:$B,'Customized Process Factors'!$D:$D,"No C Content",0))*44/12,"Factor error")),"Factor error") -> 0 | Q163: =IFERROR(IF($H163="",0,IF(OR($F163='Customized Process Factors'!$B:$B),(SUMIFS(Q:Q,$D:$D,$D$78,$F:$F,$F163))*IF($H163="Customized", IF(_xlfn.XLOOKUP($F163,'Customized Process Factors'!$B:$B,'Customized Process Factors'!I:I,"No C Content",0)="","Factor error",_xlfn.XLOOKUP($F163,'Customized Process Factors'!$B:$B,'Customized Process Factors'!I:I,"No C Content",0)), _xlfn.XLOOKUP($F163,'Customized Process Factors'!$B:$B,'Customized Process Factors'!$D:$D,"No C Content",0))*44/12,"Factor error")),"Factor error") -> 0 | R163: =IFERROR(IF($H163="",0,IF(OR($F163='Customized Process Factors'!$B:$B),(SUMIFS(R:R,$D:$D,$D$78,$F:$F,$F163))*IF($H163="Customized", IF(_xlfn.XLOOKUP($F163,'Customized Process Factors'!$B:$B,'Customized Process Factors'!J:J,"No C Content",0)="","Factor error",_xlfn.XLOOKUP($F163,'Customized Process Factors'!$B:$B,'Customized Process Factors'!J:J,"No C Content",0)), _xlfn.XLOOKUP($F163,'Customized Process Factors'!$B:$B,'Customized Process Factors'!$D:$D,"No C Content",0))*44/12,"Factor error")),"Factor error") -> 0
D164: =D155 -> A3.1.1.3 | E164: .2 | F164: Outputs | H164: Adopting C Content
D165: =D164&E164 -> A3.1.1.3.2 | E165: .1 | F165: Steel | G165: =G87 -> produced at facility | J165: [t CO2e/reporting period] | K165: 0 | M165: =IFERROR(-IF($H165="",0,IF(OR($F165='Customized Process Factors'!$B:$B),(SUMIFS(M:M,$D:$D,$D$87,$F:$F,$F165))*IF($H165="Customized", IF(_xlfn.XLOOKUP($F165,'Customized Process Factors'!$B:$B,'Customized Process Factors'!E:E,"No C Content",0)="","Factor error",_xlfn.XLOOKUP($F165,'Customized Process Factors'!$B:$B,'Customized Process Factors'!E:E,"No C Content",0)), _xlfn.XLOOKUP($F165,'Customized Process Factors'!$B:$B,'Customized Process Factors'!$D:$D,"No C Content",0))*44/12,"Factor error")),"Factor error") -> 0 | N165: =IFERROR(-IF($H165="",0,IF(OR($F165='Customized Process Factors'!$B:$B),(SUMIFS(N:N,$D:$D,$D$87,$F:$F,$F165))*IF($H165="Customized", IF(_xlfn.XLOOKUP($F165,'Customized Process Factors'!$B:$B,'Customized Process Factors'!F:F,"No C Content",0)="","Factor error",_xlfn.XLOOKUP($F165,'Customized Process Factors'!$B:$B,'Customized Process Factors'!F:F,"No C Content",0)), _xlfn.XLOOKUP($F165,'Customized Process Factors'!$B:$B,'Customized Process Factors'!$D:$D,"No C Content",0))*44/12,"Factor error")),"Factor error") -> 0 | O165: =IFERROR(-IF($H165="",0,IF(OR($F165='Customized Process Factors'!$B:$B),(SUMIFS(O:O,$D:$D,$D$87,$F:$F,$F165))*IF($H165="Customized", IF(_xlfn.XLOOKUP($F165,'Customized Process Factors'!$B:$B,'Customized Process Factors'!G:G,"No C Content",0)="","Factor error",_xlfn.XLOOKUP($F165,'Customized Process Factors'!$B:$B,'Customized Process Factors'!G:G,"No C Content",0)), _xlfn.XLOOKUP($F165,'Customized Process Factors'!$B:$B,'Customized Process Factors'!$D:$D,"No C Content",0))*44/12,"Factor error")),"Factor error") -> 0 | P165: =IFERROR(-IF($H165="",0,IF(OR($F165='Customized Process Factors'!$B:$B),(SUMIFS(P:P,$D:$D,$D$87,$F:$F,$F165))*IF($H165="Customized", IF(_xlfn.XLOOKUP($F165,'Customized Process Factors'!$B:$B,'Customized Process Factors'!H:H,"No C Content",0)="","Factor error",_xlfn.XLOOKUP($F165,'Customized Process Factors'!$B:$B,'Customized Process Factors'!H:H,"No C Content",0)), _xlfn.XLOOKUP($F165,'Customized Process Factors'!$B:$B,'Customized Process Factors'!$D:$D,"No C Content",0))*44/12,"Factor error")),"Factor error") -> 0 | Q165: =IFERROR(-IF($H165="",0,IF(OR($F165='Customized Process Factors'!$B:$B),(SUMIFS(Q:Q,$D:$D,$D$87,$F:$F,$F165))*IF($H165="Customized", IF(_xlfn.XLOOKUP($F165,'Customized Process Factors'!$B:$B,'Customized Process Factors'!I:I,"No C Content",0)="","Factor error",_xlfn.XLOOKUP($F165,'Customized Process Factors'!$B:$B,'Customized Process Factors'!I:I,"No C Content",0)), _xlfn.XLOOKUP($F165,'Customized Process Factors'!$B:$B,'Customized Process Factors'!$D:$D,"No C Content",0))*44/12,"Factor error")),"Factor error") -> 0 | R165: =IFERROR(-IF($H165="",0,IF(OR($F165='Customized Process Factors'!$B:$B),(SUMIFS(R:R,$D:$D,$D$87,$F:$F,$F165))*IF($H165="Customized", IF(_xlfn.XLOOKUP($F165,'Customized Process Factors'!$B:$B,'Customized Process Factors'!J:J,"No C Content",0)="","Factor error",_xlfn.XLOOKUP($F165,'Customized Process Factors'!$B:$B,'Customized Process Factors'!J:J,"No C Content",0)), _xlfn.XLOOKUP($F165,'Customized Process Factors'!$B:$B,'Customized Process Factors'!$D:$D,"No C Content",0))*44/12,"Factor error")),"Factor error") -> 0
D166: =D165 -> A3.1.1.3.2 | E166: .2 | F166: Iron | G166: =G88 -> produced and not converted into steel | J166: [t CO2e/reporting period] | K166: 0 | M166: =IFERROR(-IF($H166="",0,IF(OR($F166='Customized Process Factors'!$B:$B),(SUMIFS(M:M,$D:$D,$D$87,$F:$F,$F166))*IF($H166="Customized", IF(_xlfn.XLOOKUP($F166,'Customized Process Factors'!$B:$B,'Customized Process Factors'!E:E,"No C Content",0)="","Factor error",_xlfn.XLOOKUP($F166,'Customized Process Factors'!$B:$B,'Customized Process Factors'!E:E,"No C Content",0)), _xlfn.XLOOKUP($F166,'Customized Process Factors'!$B:$B,'Customized Process Factors'!$D:$D,"No C Content",0))*44/12,"Factor error")),"Factor error") -> 0 | N166: =IFERROR(-IF($H166="",0,IF(OR($F166='Customized Process Factors'!$B:$B),(SUMIFS(N:N,$D:$D,$D$87,$F:$F,$F166))*IF($H166="Customized", IF(_xlfn.XLOOKUP($F166,'Customized Process Factors'!$B:$B,'Customized Process Factors'!F:F,"No C Content",0)="","Factor error",_xlfn.XLOOKUP($F166,'Customized Process Factors'!$B:$B,'Customized Process Factors'!F:F,"No C Content",0)), _xlfn.XLOOKUP($F166,'Customized Process Factors'!$B:$B,'Customized Process Factors'!$D:$D,"No C Content",0))*44/12,"Factor error")),"Factor error") -> 0 | O166: =IFERROR(-IF($H166="",0,IF(OR($F166='Customized Process Factors'!$B:$B),(SUMIFS(O:O,$D:$D,$D$87,$F:$F,$F166))*IF($H166="Customized", IF(_xlfn.XLOOKUP($F166,'Customized Process Factors'!$B:$B,'Customized Process Factors'!G:G,"No C Content",0)="","Factor error",_xlfn.XLOOKUP($F166,'Customized Process Factors'!$B:$B,'Customized Process Factors'!G:G,"No C Content",0)), _xlfn.XLOOKUP($F166,'Customized Process Factors'!$B:$B,'Customized Process Factors'!$D:$D,"No C Content",0))*44/12,"Factor error")),"Factor error") -> 0 | P166: =IFERROR(-IF($H166="",0,IF(OR($F166='Customized Process Factors'!$B:$B),(SUMIFS(P:P,$D:$D,$D$87,$F:$F,$F166))*IF($H166="Customized", IF(_xlfn.XLOOKUP($F166,'Customized Process Factors'!$B:$B,'Customized Process Factors'!H:H,"No C Content",0)="","Factor error",_xlfn.XLOOKUP($F166,'Customized Process Factors'!$B:$B,'Customized Process Factors'!H:H,"No C Content",0)), _xlfn.XLOOKUP($F166,'Customized Process Factors'!$B:$B,'Customized Process Factors'!$D:$D,"No C Content",0))*44/12,"Factor error")),"Factor error") -> 0 | Q166: =IFERROR(-IF($H166="",0,IF(OR($F166='Customized Process Factors'!$B:$B),(SUMIFS(Q:Q,$D:$D,$D$87,$F:$F,$F166))*IF($H166="Customized", IF(_xlfn.XLOOKUP($F166,'Customized Process Factors'!$B:$B,'Customized Process Factors'!I:I,"No C Content",0)="","Factor error",_xlfn.XLOOKUP($F166,'Customized Process Factors'!$B:$B,'Customized Process Factors'!I:I,"No C Content",0)), _xlfn.XLOOKUP($F166,'Customized Process Factors'!$B:$B,'Customized Process Factors'!$D:$D,"No C Content",0))*44/12,"Factor error")),"Factor error") -> 0 | R166: =IFERROR(-IF($H166="",0,IF(OR($F166='Customized Process Factors'!$B:$B),(SUMIFS(R:R,$D:$D,$D$87,$F:$F,$F166))*IF($H166="Customized", IF(_xlfn.XLOOKUP($F166,'Customized Process Factors'!$B:$B,'Customized Process Factors'!J:J,"No C Content",0)="","Factor error",_xlfn.XLOOKUP($F166,'Customized Process Factors'!$B:$B,'Customized Process Factors'!J:J,"No C Content",0)), _xlfn.XLOOKUP($F166,'Customized Process Factors'!$B:$B,'Customized Process Factors'!$D:$D,"No C Content",0))*44/12,"Factor error")),"Factor error") -> 0
D167: =D166 -> A3.1.1.3.2 | E167: .3 | F167: Blast furnace gas | G167: =G89 -> transferred offsite | J167: [t CO2e/reporting period] | K167: 0 | M167: =IFERROR(-IF($H167="",0,IF(OR($F167='Customized Process Factors'!$B:$B),(SUMIFS(M:M,$D:$D,$D$87,$F:$F,$F167))*IF($H167="Customized", IF(_xlfn.XLOOKUP($F167,'Customized Process Factors'!$B:$B,'Customized Process Factors'!E:E,"No C Content",0)="","Factor error",_xlfn.XLOOKUP($F167,'Customized Process Factors'!$B:$B,'Customized Process Factors'!E:E,"No C Content",0)), _xlfn.XLOOKUP($F167,'Customized Process Factors'!$B:$B,'Customized Process Factors'!$D:$D,"No C Content",0))*44/12,"Factor error")),"Factor error") -> 0 | N167: =IFERROR(-IF($H167="",0,IF(OR($F167='Customized Process Factors'!$B:$B),(SUMIFS(N:N,$D:$D,$D$87,$F:$F,$F167))*IF($H167="Customized", IF(_xlfn.XLOOKUP($F167,'Customized Process Factors'!$B:$B,'Customized Process Factors'!F:F,"No C Content",0)="","Factor error",_xlfn.XLOOKUP($F167,'Customized Process Factors'!$B:$B,'Customized Process Factors'!F:F,"No C Content",0)), _xlfn.XLOOKUP($F167,'Customized Process Factors'!$B:$B,'Customized Process Factors'!$D:$D,"No C Content",0))*44/12,"Factor error")),"Factor error") -> 0 | O167: =IFERROR(-IF($H167="",0,IF(OR($F167='Customized Process Factors'!$B:$B),(SUMIFS(O:O,$D:$D,$D$87,$F:$F,$F167))*IF($H167="Customized", IF(_xlfn.XLOOKUP($F167,'Customized Process Factors'!$B:$B,'Customized Process Factors'!G:G,"No C Content",0)="","Factor error",_xlfn.XLOOKUP($F167,'Customized Process Factors'!$B:$B,'Customized Process Factors'!G:G,"No C Content",0)), _xlfn.XLOOKUP($F167,'Customized Process Factors'!$B:$B,'Customized Process Factors'!$D:$D,"No C Content",0))*44/12,"Factor error")),"Factor error") -> 0 | P167: =IFERROR(-IF($H167="",0,IF(OR($F167='Customized Process Factors'!$B:$B),(SUMIFS(P:P,$D:$D,$D$87,$F:$F,$F167))*IF($H167="Customized", IF(_xlfn.XLOOKUP($F167,'Customized Process Factors'!$B:$B,'Customized Process Factors'!H:H,"No C Content",0)="","Factor error",_xlfn.XLOOKUP($F167,'Customized Process Factors'!$B:$B,'Customized Process Factors'!H:H,"No C Content",0)), _xlfn.XLOOKUP($F167,'Customized Process Factors'!$B:$B,'Customized Process Factors'!$D:$D,"No C Content",0))*44/12,"Factor error")),"Factor error") -> 0 | Q167: =IFERROR(-IF($H167="",0,IF(OR($F167='Customized Process Factors'!$B:$B),(SUMIFS(Q:Q,$D:$D,$D$87,$F:$F,$F167))*IF($H167="Customized", IF(_xlfn.XLOOKUP($F167,'Customized Process Factors'!$B:$B,'Customized Process Factors'!I:I,"No C Content",0)="","Factor error",_xlfn.XLOOKUP($F167,'Customized Process Factors'!$B:$B,'Customized Process Factors'!I:I,"No C Content",0)), _xlfn.XLOOKUP($F167,'Customized Process Factors'!$B:$B,'Customized Process Factors'!$D:$D,"No C Content",0))*44/12,"Factor error")),"Factor error") -> 0 | R167: =IFERROR(-IF($H167="",0,IF(OR($F167='Customized Process Factors'!$B:$B),(SUMIFS(R:R,$D:$D,$D$87,$F:$F,$F167))*IF($H167="Customized", IF(_xlfn.XLOOKUP($F167,'Customized Process Factors'!$B:$B,'Customized Process Factors'!J:J,"No C Content",0)="","Factor error",_xlfn.XLOOKUP($F167,'Customized Process Factors'!$B:$B,'Customized Process Factors'!J:J,"No C Content",0)), _xlfn.XLOOKUP($F167,'Customized Process Factors'!$B:$B,'Customized Process Factors'!$D:$D,"No C Content",0))*44/12,"Factor error")),"Factor error") -> 0
D168: =C$129 -> A3.1.1 | E168: .4 | F168: CO2e from DRI production | J168: [t CO2e/reporting period] | K168: =SUM(M168:R168) -> 0 | M168: =SUMIF($D:$D,$D171,M:M)+SUMIF($D:$D,$D176,M:M) -> 0 | N168: 0 | O168: 0 | P168: 0 | Q168: 0 | R168: 0
F169: [Please insert additional rows if more materials are included]
D170: =D168&E168 -> A3.1.1.4 | E170: .1 | F170: Inputs | H170: Adopting C Content
D171: =D170&E170 -> A3.1.1.4.1 | E171: .1 | F171: =F92 -> Natural gas | J171: [t CO2e/reporting period] | K171: 0 | M171: =IFERROR(IF($H171="",0,IF(OR($F171='Customized Process Factors'!$B:$B),(SUMIFS(M:M,$D:$D,$D$92,$F:$F,$F171))*IF($H171="Customized", IF(_xlfn.XLOOKUP($F171,'Customized Process Factors'!$B:$B,'Customized Process Factors'!E:E,"No C Content",0)="","Factor error",_xlfn.XLOOKUP($F171,'Customized Process Factors'!$B:$B,'Customized Process Factors'!E:E,"No C Content",0)), _xlfn.XLOOKUP($F171,'Customized Process Factors'!$B:$B,'Customized Process Factors'!$D:$D,"No C Content",0))*44/12,"Factor error")),"Factor error") -> 0 | N171: =IFERROR(IF($H171="",0,IF(OR($F171='Customized Process Factors'!$B:$B),(SUMIFS(N:N,$D:$D,$D$92,$F:$F,$F171))*IF($H171="Customized", IF(_xlfn.XLOOKUP($F171,'Customized Process Factors'!$B:$B,'Customized Process Factors'!F:F,"No C Content",0)="","Factor error",_xlfn.XLOOKUP($F171,'Customized Process Factors'!$B:$B,'Customized Process Factors'!F:F,"No C Content",0)), _xlfn.XLOOKUP($F171,'Customized Process Factors'!$B:$B,'Customized Process Factors'!$D:$D,"No C Content",0))*44/12,"Factor error")),"Factor error") -> 0 | O171: =IFERROR(IF($H171="",0,IF(OR($F171='Customized Process Factors'!$B:$B),(SUMIFS(O:O,$D:$D,$D$92,$F:$F,$F171))*IF($H171="Customized", IF(_xlfn.XLOOKUP($F171,'Customized Process Factors'!$B:$B,'Customized Process Factors'!G:G,"No C Content",0)="","Factor error",_xlfn.XLOOKUP($F171,'Customized Process Factors'!$B:$B,'Customized Process Factors'!G:G,"No C Content",0)), _xlfn.XLOOKUP($F171,'Customized Process Factors'!$B:$B,'Customized Process Factors'!$D:$D,"No C Content",0))*44/12,"Factor error")),"Factor error") -> 0 | P171: =IFERROR(IF($H171="",0,IF(OR($F171='Customized Process Factors'!$B:$B),(SUMIFS(P:P,$D:$D,$D$92,$F:$F,$F171))*IF($H171="Customized", IF(_xlfn.XLOOKUP($F171,'Customized Process Factors'!$B:$B,'Customized Process Factors'!H:H,"No C Content",0)="","Factor error",_xlfn.XLOOKUP($F171,'Customized Process Factors'!$B:$B,'Customized Process Factors'!H:H,"No C Content",0)), _xlfn.XLOOKUP($F171,'Customized Process Factors'!$B:$B,'Customized Process Factors'!$D:$D,"No C Content",0))*44/12,"Factor error")),"Factor error") -> 0 | Q171: =IFERROR(IF($H171="",0,IF(OR($F171='Customized Process Factors'!$B:$B),(SUMIFS(Q:Q,$D:$D,$D$92,$F:$F,$F171))*IF($H171="Customized", IF(_xlfn.XLOOKUP($F171,'Customized Process Factors'!$B:$B,'Customized Process Factors'!I:I,"No C Content",0)="","Factor error",_xlfn.XLOOKUP($F171,'Customized Process Factors'!$B:$B,'Customized Process Factors'!I:I,"No C Content",0)), _xlfn.XLOOKUP($F171,'Customized Process Factors'!$B:$B,'Customized Process Factors'!$D:$D,"No C Content",0))*44/12,"Factor error")),"Factor error") -> 0 | R171: =IFERROR(IF($H171="",0,IF(OR($F171='Customized Process Factors'!$B:$B),(SUMIFS(R:R,$D:$D,$D$92,$F:$F,$F171))*IF($H171="Customized", IF(_xlfn.XLOOKUP($F171,'Customized Process Factors'!$B:$B,'Customized Process Factors'!J:J,"No C Content",0)="","Factor error",_xlfn.XLOOKUP($F171,'Customized Process Factors'!$B:$B,'Customized Process Factors'!J:J,"No C Content",0)), _xlfn.XLOOKUP($F171,'Customized Process Factors'!$B:$B,'Customized Process Factors'!$D:$D,"No C Content",0))*44/12,"Factor error")),"Factor error") -> 0
D172: =D171 -> A3.1.1.4.1 | E172: .2 | F172: =F93 -> Coke breeze | J172: [t CO2e/reporting period] | K172: 0 | M172: =IFERROR(IF($H172="",0,IF(OR($F172='Customized Process Factors'!$B:$B),(SUMIFS(M:M,$D:$D,$D$92,$F:$F,$F172))*IF($H172="Customized", IF(_xlfn.XLOOKUP($F172,'Customized Process Factors'!$B:$B,'Customized Process Factors'!E:E,"No C Content",0)="","Factor error",_xlfn.XLOOKUP($F172,'Customized Process Factors'!$B:$B,'Customized Process Factors'!E:E,"No C Content",0)), _xlfn.XLOOKUP($F172,'Customized Process Factors'!$B:$B,'Customized Process Factors'!$D:$D,"No C Content",0))*44/12,"Factor error")),"Factor error") -> 0 | N172: =IFERROR(IF($H172="",0,IF(OR($F172='Customized Process Factors'!$B:$B),(SUMIFS(N:N,$D:$D,$D$92,$F:$F,$F172))*IF($H172="Customized", IF(_xlfn.XLOOKUP($F172,'Customized Process Factors'!$B:$B,'Customized Process Factors'!F:F,"No C Content",0)="","Factor error",_xlfn.XLOOKUP($F172,'Customized Process Factors'!$B:$B,'Customized Process Factors'!F:F,"No C Content",0)), _xlfn.XLOOKUP($F172,'Customized Process Factors'!$B:$B,'Customized Process Factors'!$D:$D,"No C Content",0))*44/12,"Factor error")),"Factor error") -> 0 | O172: =IFERROR(IF($H172="",0,IF(OR($F172='Customized Process Factors'!$B:$B),(SUMIFS(O:O,$D:$D,$D$92,$F:$F,$F172))*IF($H172="Customized", IF(_xlfn.XLOOKUP($F172,'Customized Process Factors'!$B:$B,'Customized Process Factors'!G:G,"No C Content",0)="","Factor error",_xlfn.XLOOKUP($F172,'Customized Process Factors'!$B:$B,'Customized Process Factors'!G:G,"No C Content",0)), _xlfn.XLOOKUP($F172,'Customized Process Factors'!$B:$B,'Customized Process Factors'!$D:$D,"No C Content",0))*44/12,"Factor error")),"Factor error") -> 0 | P172: =IFERROR(IF($H172="",0,IF(OR($F172='Customized Process Factors'!$B:$B),(SUMIFS(P:P,$D:$D,$D$92,$F:$F,$F172))*IF($H172="Customized", IF(_xlfn.XLOOKUP($F172,'Customized Process Factors'!$B:$B,'Customized Process Factors'!H:H,"No C Content",0)="","Factor error",_xlfn.XLOOKUP($F172,'Customized Process Factors'!$B:$B,'Customized Process Factors'!H:H,"No C Content",0)), _xlfn.XLOOKUP($F172,'Customized Process Factors'!$B:$B,'Customized Process Factors'!$D:$D,"No C Content",0))*44/12,"Factor error")),"Factor error") -> 0 | Q172: =IFERROR(IF($H172="",0,IF(OR($F172='Customized Process Factors'!$B:$B),(SUMIFS(Q:Q,$D:$D,$D$92,$F:$F,$F172))*IF($H172="Customized", IF(_xlfn.XLOOKUP($F172,'Customized Process Factors'!$B:$B,'Customized Process Factors'!I:I,"No C Content",0)="","Factor error",_xlfn.XLOOKUP($F172,'Customized Process Factors'!$B:$B,'Customized Process Factors'!I:I,"No C Content",0)), _xlfn.XLOOKUP($F172,'Customized Process Factors'!$B:$B,'Customized Process Factors'!$D:$D,"No C Content",0))*44/12,"Factor error")),"Factor error") -> 0 | R172: =IFERROR(IF($H172="",0,IF(OR($F172='Customized Process Factors'!$B:$B),(SUMIFS(R:R,$D:$D,$D$92,$F:$F,$F172))*IF($H172="Customized", IF(_xlfn.XLOOKUP($F172,'Customized Process Factors'!$B:$B,'Customized Process Factors'!J:J,"No C Content",0)="","Factor error",_xlfn.XLOOKUP($F172,'Customized Process Factors'!$B:$B,'Customized Process Factors'!J:J,"No C Content",0)), _xlfn.XLOOKUP($F172,'Customized Process Factors'!$B:$B,'Customized Process Factors'!$D:$D,"No C Content",0))*44/12,"Factor error")),"Factor error") -> 0
D173: A3.1.1.4.1 | E173: .3 | F173: =F94 -> Coke | J173: [t CO2e/reporting period] | K173: 0 | M173: =IFERROR(IF($H173="",0,IF(OR($F173='Customized Process Factors'!$B:$B),(SUMIFS(M:M,$D:$D,$D$92,$F:$F,$F173))*IF($H173="Customized", IF(_xlfn.XLOOKUP($F173,'Customized Process Factors'!$B:$B,'Customized Process Factors'!E:E,"No C Content",0)="","Factor error",_xlfn.XLOOKUP($F173,'Customized Process Factors'!$B:$B,'Customized Process Factors'!E:E,"No C Content",0)), _xlfn.XLOOKUP($F173,'Customized Process Factors'!$B:$B,'Customized Process Factors'!$D:$D,"No C Content",0))*44/12,"Factor error")),"Factor error") -> 0 | N173: =IFERROR(IF($H173="",0,IF(OR($F173='Customized Process Factors'!$B:$B),(SUMIFS(N:N,$D:$D,$D$92,$F:$F,$F173))*IF($H173="Customized", IF(_xlfn.XLOOKUP($F173,'Customized Process Factors'!$B:$B,'Customized Process Factors'!F:F,"No C Content",0)="","Factor error",_xlfn.XLOOKUP($F173,'Customized Process Factors'!$B:$B,'Customized Process Factors'!F:F,"No C Content",0)), _xlfn.XLOOKUP($F173,'Customized Process Factors'!$B:$B,'Customized Process Factors'!$D:$D,"No C Content",0))*44/12,"Factor error")),"Factor error") -> 0 | O173: =IFERROR(IF($H173="",0,IF(OR($F173='Customized Process Factors'!$B:$B),(SUMIFS(O:O,$D:$D,$D$92,$F:$F,$F173))*IF($H173="Customized", IF(_xlfn.XLOOKUP($F173,'Customized Process Factors'!$B:$B,'Customized Process Factors'!G:G,"No C Content",0)="","Factor error",_xlfn.XLOOKUP($F173,'Customized Process Factors'!$B:$B,'Customized Process Factors'!G:G,"No C Content",0)), _xlfn.XLOOKUP($F173,'Customized Process Factors'!$B:$B,'Customized Process Factors'!$D:$D,"No C Content",0))*44/12,"Factor error")),"Factor error") -> 0 | P173: =IFERROR(IF($H173="",0,IF(OR($F173='Customized Process Factors'!$B:$B),(SUMIFS(P:P,$D:$D,$D$92,$F:$F,$F173))*IF($H173="Customized", IF(_xlfn.XLOOKUP($F173,'Customized Process Factors'!$B:$B,'Customized Process Factors'!H:H,"No C Content",0)="","Factor error",_xlfn.XLOOKUP($F173,'Customized Process Factors'!$B:$B,'Customized Process Factors'!H:H,"No C Content",0)), _xlfn.XLOOKUP($F173,'Customized Process Factors'!$B:$B,'Customized Process Factors'!$D:$D,"No C Content",0))*44/12,"Factor error")),"Factor error") -> 0 | Q173: =IFERROR(IF($H173="",0,IF(OR($F173='Customized Process Factors'!$B:$B),(SUMIFS(Q:Q,$D:$D,$D$92,$F:$F,$F173))*IF($H173="Customized", IF(_xlfn.XLOOKUP($F173,'Customized Process Factors'!$B:$B,'Customized Process Factors'!I:I,"No C Content",0)="","Factor error",_xlfn.XLOOKUP($F173,'Customized Process Factors'!$B:$B,'Customized Process Factors'!I:I,"No C Content",0)), _xlfn.XLOOKUP($F173,'Customized Process Factors'!$B:$B,'Customized Process Factors'!$D:$D,"No C Content",0))*44/12,"Factor error")),"Factor error") -> 0 | R173: =IFERROR(IF($H173="",0,IF(OR($F173='Customized Process Factors'!$B:$B),(SUMIFS(R:R,$D:$D,$D$92,$F:$F,$F173))*IF($H173="Customized", IF(_xlfn.XLOOKUP($F173,'Customized Process Factors'!$B:$B,'Customized Process Factors'!J:J,"No C Content",0)="","Factor error",_xlfn.XLOOKUP($F173,'Customized Process Factors'!$B:$B,'Customized Process Factors'!J:J,"No C Content",0)), _xlfn.XLOOKUP($F173,'Customized Process Factors'!$B:$B,'Customized Process Factors'!$D:$D,"No C Content",0))*44/12,"Factor error")),"Factor error") -> 0
D174: A3.1.1.4.1 | E174: .4 | F174: =IF(F95="","",F95) ->  | J174: [t CO2e/reporting period] | K174: 0 | M174: =IFERROR(IF($H174="",0,IF(OR($F174='Customized Process Factors'!$B:$B),(SUMIFS(M:M,$D:$D,$D$92,$F:$F,$F174))*IF($H174="Customized", IF(_xlfn.XLOOKUP($F174,'Customized Process Factors'!$B:$B,'Customized Process Factors'!E:E,"No C Content",0)="","Factor error",_xlfn.XLOOKUP($F174,'Customized Process Factors'!$B:$B,'Customized Process Factors'!E:E,"No C Content",0)), _xlfn.XLOOKUP($F174,'Customized Process Factors'!$B:$B,'Customized Process Factors'!$D:$D,"No C Content",0))*44/12,"Factor error")),"Factor error") -> 0 | N174: =IFERROR(IF($H174="",0,IF(OR($F174='Customized Process Factors'!$B:$B),(SUMIFS(N:N,$D:$D,$D$92,$F:$F,$F174))*IF($H174="Customized", IF(_xlfn.XLOOKUP($F174,'Customized Process Factors'!$B:$B,'Customized Process Factors'!F:F,"No C Content",0)="","Factor error",_xlfn.XLOOKUP($F174,'Customized Process Factors'!$B:$B,'Customized Process Factors'!F:F,"No C Content",0)), _xlfn.XLOOKUP($F174,'Customized Process Factors'!$B:$B,'Customized Process Factors'!$D:$D,"No C Content",0))*44/12,"Factor error")),"Factor error") -> 0 | O174: =IFERROR(IF($H174="",0,IF(OR($F174='Customized Process Factors'!$B:$B),(SUMIFS(O:O,$D:$D,$D$92,$F:$F,$F174))*IF($H174="Customized", IF(_xlfn.XLOOKUP($F174,'Customized Process Factors'!$B:$B,'Customized Process Factors'!G:G,"No C Content",0)="","Factor error",_xlfn.XLOOKUP($F174,'Customized Process Factors'!$B:$B,'Customized Process Factors'!G:G,"No C Content",0)), _xlfn.XLOOKUP($F174,'Customized Process Factors'!$B:$B,'Customized Process Factors'!$D:$D,"No C Content",0))*44/12,"Factor error")),"Factor error") -> 0 | P174: =IFERROR(IF($H174="",0,IF(OR($F174='Customized Process Factors'!$B:$B),(SUMIFS(P:P,$D:$D,$D$92,$F:$F,$F174))*IF($H174="Customized", IF(_xlfn.XLOOKUP($F174,'Customized Process Factors'!$B:$B,'Customized Process Factors'!H:H,"No C Content",0)="","Factor error",_xlfn.XLOOKUP($F174,'Customized Process Factors'!$B:$B,'Customized Process Factors'!H:H,"No C Content",0)), _xlfn.XLOOKUP($F174,'Customized Process Factors'!$B:$B,'Customized Process Factors'!$D:$D,"No C Content",0))*44/12,"Factor error")),"Factor error") -> 0 | Q174: =IFERROR(IF($H174="",0,IF(OR($F174='Customized Process Factors'!$B:$B),(SUMIFS(Q:Q,$D:$D,$D$92,$F:$F,$F174))*IF($H174="Customized", IF(_xlfn.XLOOKUP($F174,'Customized Process Factors'!$B:$B,'Customized Process Factors'!I:I,"No C Content",0)="","Factor error",_xlfn.XLOOKUP($F174,'Customized Process Factors'!$B:$B,'Customized Process Factors'!I:I,"No C Content",0)), _xlfn.XLOOKUP($F174,'Customized Process Factors'!$B:$B,'Customized Process Factors'!$D:$D,"No C Content",0))*44/12,"Factor error")),"Factor error") -> 0 | R174: =IFERROR(IF($H174="",0,IF(OR($F174='Customized Process Factors'!$B:$B),(SUMIFS(R:R,$D:$D,$D$92,$F:$F,$F174))*IF($H174="Customized", IF(_xlfn.XLOOKUP($F174,'Customized Process Factors'!$B:$B,'Customized Process Factors'!J:J,"No C Content",0)="","Factor error",_xlfn.XLOOKUP($F174,'Customized Process Factors'!$B:$B,'Customized Process Factors'!J:J,"No C Content",0)), _xlfn.XLOOKUP($F174,'Customized Process Factors'!$B:$B,'Customized Process Factors'!$D:$D,"No C Content",0))*44/12,"Factor error")),"Factor error") -> 0
D175: =D170 -> A3.1.1.4 | E175: .2 | F175: Outputs | I175: Adopting CH4 Emission Factor
D176: =D175&E175 -> A3.1.1.4.2 | E176: .1 | F176: DRI | G176: produced at facility | K176: 0 | M176: =IFERROR(+IF($I176="",0,IF(OR($F176='Customized Process Factors'!$A:$A),(SUMIFS(M:M,$D:$D,$D$97,$F:$F,$F176))*IF($I176="Customized", IF(_xlfn.XLOOKUP($F176,'Customized Process Factors'!$A:$A,'Customized Process Factors'!E:E,"No CH4 Content",0)="","Factor error",_xlfn.XLOOKUP($F176,'Customized Process Factors'!$A:$A,'Customized Process Factors'!E:E,"No CH4 Content",0)), _xlfn.XLOOKUP($F176,'Customized Process Factors'!$A:$A,'Customized Process Factors'!$D:$D,"No CH4 Content",0))*'Customized Process Factors'!$D$109,"Factor error")),"Factor error") -> 0 | N176: =IFERROR(+IF($I176="",0,IF(OR($F176='Customized Process Factors'!$A:$A),(SUMIFS(N:N,$D:$D,$D$97,$F:$F,$F176))*IF($I176="Customized", IF(_xlfn.XLOOKUP($F176,'Customized Process Factors'!$A:$A,'Customized Process Factors'!F:F,"No CH4 Content",0)="","Factor error",_xlfn.XLOOKUP($F176,'Customized Process Factors'!$A:$A,'Customized Process Factors'!F:F,"No CH4 Content",0)), _xlfn.XLOOKUP($F176,'Customized Process Factors'!$A:$A,'Customized Process Factors'!$D:$D,"No CH4 Content",0))*'Customized Process Factors'!$D$109,"Factor error")),"Factor error") -> 0 | O176: =IFERROR(+IF($I176="",0,IF(OR($F176='Customized Process Factors'!$A:$A),(SUMIFS(O:O,$D:$D,$D$97,$F:$F,$F176))*IF($I176="Customized", IF(_xlfn.XLOOKUP($F176,'Customized Process Factors'!$A:$A,'Customized Process Factors'!G:G,"No CH4 Content",0)="","Factor error",_xlfn.XLOOKUP($F176,'Customized Process Factors'!$A:$A,'Customized Process Factors'!G:G,"No CH4 Content",0)), _xlfn.XLOOKUP($F176,'Customized Process Factors'!$A:$A,'Customized Process Factors'!$D:$D,"No CH4 Content",0))*'Customized Process Factors'!$D$109,"Factor error")),"Factor error") -> 0 | P176: =IFERROR(+IF($I176="",0,IF(OR($F176='Customized Process Factors'!$A:$A),(SUMIFS(P:P,$D:$D,$D$97,$F:$F,$F176))*IF($I176="Customized", IF(_xlfn.XLOOKUP($F176,'Customized Process Factors'!$A:$A,'Customized Process Factors'!H:H,"No CH4 Content",0)="","Factor error",_xlfn.XLOOKUP($F176,'Customized Process Factors'!$A:$A,'Customized Process Factors'!H:H,"No CH4 Content",0)), _xlfn.XLOOKUP($F176,'Customized Process Factors'!$A:$A,'Customized Process Factors'!$D:$D,"No CH4 Content",0))*'Customized Process Factors'!$D$109,"Factor error")),"Factor error") -> 0 | Q176: =IFERROR(+IF($I176="",0,IF(OR($F176='Customized Process Factors'!$A:$A),(SUMIFS(Q:Q,$D:$D,$D$97,$F:$F,$F176))*IF($I176="Customized", IF(_xlfn.XLOOKUP($F176,'Customized Process Factors'!$A:$A,'Customized Process Factors'!I:I,"No CH4 Content",0)="","Factor error",_xlfn.XLOOKUP($F176,'Customized Process Factors'!$A:$A,'Customized Process Factors'!I:I,"No CH4 Content",0)), _xlfn.XLOOKUP($F176,'Customized Process Factors'!$A:$A,'Customized Process Factors'!$D:$D,"No CH4 Content",0))*'Customized Process Factors'!$D$109,"Factor error")),"Factor error") -> 0 | R176: =IFERROR(+IF($I176="",0,IF(OR($F176='Customized Process Factors'!$A:$A),(SUMIFS(R:R,$D:$D,$D$97,$F:$F,$F176))*IF($I176="Customized", IF(_xlfn.XLOOKUP($F176,'Customized Process Factors'!$A:$A,'Customized Process Factors'!J:J,"No CH4 Content",0)="","Factor error",_xlfn.XLOOKUP($F176,'Customized Process Factors'!$A:$A,'Customized Process Factors'!J:J,"No CH4 Content",0)), _xlfn.XLOOKUP($F176,'Customized Process Factors'!$A:$A,'Customized Process Factors'!$D:$D,"No CH4 Content",0))*'Customized Process Factors'!$D$109,"Factor error")),"Factor error") -> 0
D177: =C$129 -> A3.1.1 | E177: .5 | F177: CO2e from onsite lime production | H177: [please refer to worksheet "3.1.1 Lime Production & Flaring"] | J177: [t CO2e/reporting period] | K177: =(SUMIFS('3.1.1 Lime Production & Flaring'!$O:$O,'3.1.1 Lime Production & Flaring'!$B:$B,'3.1.1 Lime Production & Flaring'!B6,'3.1.1 Lime Production & Flaring'!$D:$D,"Total")) -> 0 | M177: =IFERROR(IF($K177="","",$K177*(SUM(M$104:M$105)/SUM($K$104:$L$105)))," ") ->  | N177: =IFERROR(IF($K177="","",$K177*(SUM(N$104:N$105)/SUM($K$104:$L$105)))," ") -> 
D178: =C$129 -> A3.1.1 | E178: .6 | F178: CO2e from offsite lime production | H178: [please refer to worksheet "3.1.1 Lime Production & Flaring"] | J178: [t CO2e/reporting period] | K178: =(SUMIFS('3.1.1 Lime Production & Flaring'!$O:$O,'3.1.1 Lime Production & Flaring'!$B:$B,'3.1.1 Lime Production & Flaring'!B14,'3.1.1 Lime Production & Flaring'!$D:$D,"Total")) -> 0
D179: =C$129 -> A3.1.1 | E179: .7 | F179: CO2e from flaring | H179: [please refer to worksheet "3.1.1 Lime Production & Flaring"] | J179: [t CO2e/reporting period] | K179: =(SUMIFS('3.1.1 Lime Production & Flaring'!$O:$O,'3.1.1 Lime Production & Flaring'!$B:$B,'3.1.1 Lime Production & Flaring'!B22,'3.1.1 Lime Production & Flaring'!$D:$D,"Total")) -> 0 | M179: =IFERROR(IF($K179="","",$K179*M$30),"") -> 
C180: A3.1.3 | F180: CO2e from product manufacturing (other stationary combustion sources NOT covered in industrial processes) | J180: [t CO2e/reporting period] | K180: 0 | M180: =SUMIF($D:$D,$C180,M:M) -> 0 | N180: 0 | O180: 0 | P180: 0 | Q180: 0 | R180: 0
F181: Adopting CO2e Factors | G181: Adopting LHV Factors | H181: [Please insert additional rows if more energy commodities are included]
D182: =C180 -> A3.1.3 | E182: .1 | J182: [t CO2e/reporting period] | K182: =SUM(M182:R182) -> 0 | M182: =IFERROR(IF(OR($H182='Customized Fuel EF'!$B:$B),(SUMIFS(M:M,$D:$D,$D46,$I:$I,$H182)*IF($G182="Customized", IF(_xlfn.XLOOKUP($H182,'Customized Fuel LHV'!$B:$B,'Customized Fuel LHV'!E:E,"No LHV",0)="","Factor error",_xlfn.XLOOKUP($H182,'Customized Fuel LHV'!$B:$B,'Customized Fuel LHV'!E:E,"No LHV",0)),_xlfn.XLOOKUP($H182,'Customized Fuel LHV'!$B:$B,'Customized Fuel LHV'!$D:$D,"No LHV",0))) *IF($F182="Customized",IF(_xlfn.XLOOKUP($H182,'Customized Fuel EF'!$B:$B,'Customized Fuel EF'!E:E,"No EF",0)="","Factor error",_xlfn.XLOOKUP($H182,'Customized Fuel EF'!$B:$B,'Customized Fuel EF'!E:E,"No EF",0)), _xlfn.XLOOKUP($H182,'Customized Fuel EF'!$B:$B,'Customized Fuel EF'!$D:$D,"No EF",0))/1000,"Factor error"),"Factor error") -> Factor error | N182: =IFERROR(IF(OR($H182='Customized Fuel EF'!$B:$B),(SUMIFS(N:N,$D:$D,$D46,$I:$I,$H182)*IF($G182="Customized", IF(_xlfn.XLOOKUP($H182,'Customized Fuel LHV'!$B:$B,'Customized Fuel LHV'!F:F,"No LHV",0)="","Factor error",_xlfn.XLOOKUP($H182,'Customized Fuel LHV'!$B:$B,'Customized Fuel LHV'!F:F,"No LHV",0)),_xlfn.XLOOKUP($H182,'Customized Fuel LHV'!$B:$B,'Customized Fuel LHV'!$D:$D,"No LHV",0))) *IF($F182="Customized",IF(_xlfn.XLOOKUP($H182,'Customized Fuel EF'!$B:$B,'Customized Fuel EF'!F:F,"No EF",0)="","Factor error",_xlfn.XLOOKUP($H182,'Customized Fuel EF'!$B:$B,'Customized Fuel EF'!F:F,"No EF",0)), _xlfn.XLOOKUP($H182,'Customized Fuel EF'!$B:$B,'Customized Fuel EF'!$D:$D,"No EF",0))/1000,"Factor error"),"Factor error") -> Factor error | O182: =IFERROR(IF(OR($H182='Customized Fuel EF'!$B:$B),(SUMIFS(O:O,$D:$D,$D46,$I:$I,$H182)*IF($G182="Customized", IF(_xlfn.XLOOKUP($H182,'Customized Fuel LHV'!$B:$B,'Customized Fuel LHV'!G:G,"No LHV",0)="","Factor error",_xlfn.XLOOKUP($H182,'Customized Fuel LHV'!$B:$B,'Customized Fuel LHV'!G:G,"No LHV",0)),_xlfn.XLOOKUP($H182,'Customized Fuel LHV'!$B:$B,'Customized Fuel LHV'!$D:$D,"No LHV",0))) *IF($F182="Customized",IF(_xlfn.XLOOKUP($H182,'Customized Fuel EF'!$B:$B,'Customized Fuel EF'!G:G,"No EF",0)="","Factor error",_xlfn.XLOOKUP($H182,'Customized Fuel EF'!$B:$B,'Customized Fuel EF'!G:G,"No EF",0)), _xlfn.XLOOKUP($H182,'Customized Fuel EF'!$B:$B,'Customized Fuel EF'!$D:$D,"No EF",0))/1000,"Factor error"),"Factor error") -> Factor error | P182: =IFERROR(IF(OR($H182='Customized Fuel EF'!$B:$B),(SUMIFS(P:P,$D:$D,$D46,$I:$I,$H182)*IF($G182="Customized", IF(_xlfn.XLOOKUP($H182,'Customized Fuel LHV'!$B:$B,'Customized Fuel LHV'!H:H,"No LHV",0)="","Factor error",_xlfn.XLOOKUP($H182,'Customized Fuel LHV'!$B:$B,'Customized Fuel LHV'!H:H,"No LHV",0)),_xlfn.XLOOKUP($H182,'Customized Fuel LHV'!$B:$B,'Customized Fuel LHV'!$D:$D,"No LHV",0))) *IF($F182="Customized",IF(_xlfn.XLOOKUP($H182,'Customized Fuel EF'!$B:$B,'Customized Fuel EF'!H:H,"No EF",0)="","Factor error",_xlfn.XLOOKUP($H182,'Customized Fuel EF'!$B:$B,'Customized Fuel EF'!H:H,"No EF",0)), _xlfn.XLOOKUP($H182,'Customized Fuel EF'!$B:$B,'Customized Fuel EF'!$D:$D,"No EF",0))/1000,"Factor error"),"Factor error") -> Factor error | Q182: =IFERROR(IF(OR($H182='Customized Fuel EF'!$B:$B),(SUMIFS(Q:Q,$D:$D,$D46,$I:$I,$H182)*IF($G182="Customized", IF(_xlfn.XLOOKUP($H182,'Customized Fuel LHV'!$B:$B,'Customized Fuel LHV'!I:I,"No LHV",0)="","Factor error",_xlfn.XLOOKUP($H182,'Customized Fuel LHV'!$B:$B,'Customized Fuel LHV'!I:I,"No LHV",0)),_xlfn.XLOOKUP($H182,'Customized Fuel LHV'!$B:$B,'Customized Fuel LHV'!$D:$D,"No LHV",0))) *IF($F182="Customized",IF(_xlfn.XLOOKUP($H182,'Customized Fuel EF'!$B:$B,'Customized Fuel EF'!I:I,"No EF",0)="","Factor error",_xlfn.XLOOKUP($H182,'Customized Fuel EF'!$B:$B,'Customized Fuel EF'!I:I,"No EF",0)), _xlfn.XLOOKUP($H182,'Customized Fuel EF'!$B:$B,'Customized Fuel EF'!$D:$D,"No EF",0))/1000,"Factor error"),"Factor error") -> Factor error | R182: =IFERROR(IF(OR($H182='Customized Fuel EF'!$B:$B),(SUMIFS(R:R,$D:$D,$D46,$I:$I,$H182)*IF($G182="Customized", IF(_xlfn.XLOOKUP($H182,'Customized Fuel LHV'!$B:$B,'Customized Fuel LHV'!J:J,"No LHV",0)="","Factor error",_xlfn.XLOOKUP($H182,'Customized Fuel LHV'!$B:$B,'Customized Fuel LHV'!J:J,"No LHV",0)),_xlfn.XLOOKUP($H182,'Customized Fuel LHV'!$B:$B,'Customized Fuel LHV'!$D:$D,"No LHV",0))) *IF($F182="Customized",IF(_xlfn.XLOOKUP($H182,'Customized Fuel EF'!$B:$B,'Customized Fuel EF'!J:J,"No EF",0)="","Factor error",_xlfn.XLOOKUP($H182,'Customized Fuel EF'!$B:$B,'Customized Fuel EF'!J:J,"No EF",0)), _xlfn.XLOOKUP($H182,'Customized Fuel EF'!$B:$B,'Customized Fuel EF'!$D:$D,"No EF",0))/1000,"Factor error"),"Factor error") -> Factor error
D183: =C180 -> A3.1.3 | E183: .2 | J183: [t CO2e/reporting period] | K183: =SUM(M183:R183) -> 0 | M183: =IFERROR(IF(OR($H183='Customized Fuel EF'!$B:$B),(SUMIFS(M:M,$D:$D,$D47,$I:$I,$H183)*IF($G183="Customized", IF(_xlfn.XLOOKUP($H183,'Customized Fuel LHV'!$B:$B,'Customized Fuel LHV'!E:E,"No LHV",0)="","Factor error",_xlfn.XLOOKUP($H183,'Customized Fuel LHV'!$B:$B,'Customized Fuel LHV'!E:E,"No LHV",0)),_xlfn.XLOOKUP($H183,'Customized Fuel LHV'!$B:$B,'Customized Fuel LHV'!$D:$D,"No LHV",0))) *IF($F183="Customized",IF(_xlfn.XLOOKUP($H183,'Customized Fuel EF'!$B:$B,'Customized Fuel EF'!E:E,"No EF",0)="","Factor error",_xlfn.XLOOKUP($H183,'Customized Fuel EF'!$B:$B,'Customized Fuel EF'!E:E,"No EF",0)), _xlfn.XLOOKUP($H183,'Customized Fuel EF'!$B:$B,'Customized Fuel EF'!$D:$D,"No EF",0))/1000,"Factor error"),"Factor error") -> Factor error | N183: =IFERROR(IF(OR($H183='Customized Fuel EF'!$B:$B),(SUMIFS(N:N,$D:$D,$D47,$I:$I,$H183)*IF($G183="Customized", IF(_xlfn.XLOOKUP($H183,'Customized Fuel LHV'!$B:$B,'Customized Fuel LHV'!F:F,"No LHV",0)="","Factor error",_xlfn.XLOOKUP($H183,'Customized Fuel LHV'!$B:$B,'Customized Fuel LHV'!F:F,"No LHV",0)),_xlfn.XLOOKUP($H183,'Customized Fuel LHV'!$B:$B,'Customized Fuel LHV'!$D:$D,"No LHV",0))) *IF($F183="Customized",IF(_xlfn.XLOOKUP($H183,'Customized Fuel EF'!$B:$B,'Customized Fuel EF'!F:F,"No EF",0)="","Factor error",_xlfn.XLOOKUP($H183,'Customized Fuel EF'!$B:$B,'Customized Fuel EF'!F:F,"No EF",0)), _xlfn.XLOOKUP($H183,'Customized Fuel EF'!$B:$B,'Customized Fuel EF'!$D:$D,"No EF",0))/1000,"Factor error"),"Factor error") -> Factor error | O183: =IFERROR(IF(OR($H183='Customized Fuel EF'!$B:$B),(SUMIFS(O:O,$D:$D,$D47,$I:$I,$H183)*IF($G183="Customized", IF(_xlfn.XLOOKUP($H183,'Customized Fuel LHV'!$B:$B,'Customized Fuel LHV'!G:G,"No LHV",0)="","Factor error",_xlfn.XLOOKUP($H183,'Customized Fuel LHV'!$B:$B,'Customized Fuel LHV'!G:G,"No LHV",0)),_xlfn.XLOOKUP($H183,'Customized Fuel LHV'!$B:$B,'Customized Fuel LHV'!$D:$D,"No LHV",0))) *IF($F183="Customized",IF(_xlfn.XLOOKUP($H183,'Customized Fuel EF'!$B:$B,'Customized Fuel EF'!G:G,"No EF",0)="","Factor error",_xlfn.XLOOKUP($H183,'Customized Fuel EF'!$B:$B,'Customized Fuel EF'!G:G,"No EF",0)), _xlfn.XLOOKUP($H183,'Customized Fuel EF'!$B:$B,'Customized Fuel EF'!$D:$D,"No EF",0))/1000,"Factor error"),"Factor error") -> Factor error | P183: =IFERROR(IF(OR($H183='Customized Fuel EF'!$B:$B),(SUMIFS(P:P,$D:$D,$D47,$I:$I,$H183)*IF($G183="Customized", IF(_xlfn.XLOOKUP($H183,'Customized Fuel LHV'!$B:$B,'Customized Fuel LHV'!H:H,"No LHV",0)="","Factor error",_xlfn.XLOOKUP($H183,'Customized Fuel LHV'!$B:$B,'Customized Fuel LHV'!H:H,"No LHV",0)),_xlfn.XLOOKUP($H183,'Customized Fuel LHV'!$B:$B,'Customized Fuel LHV'!$D:$D,"No LHV",0))) *IF($F183="Customized",IF(_xlfn.XLOOKUP($H183,'Customized Fuel EF'!$B:$B,'Customized Fuel EF'!H:H,"No EF",0)="","Factor error",_xlfn.XLOOKUP($H183,'Customized Fuel EF'!$B:$B,'Customized Fuel EF'!H:H,"No EF",0)), _xlfn.XLOOKUP($H183,'Customized Fuel EF'!$B:$B,'Customized Fuel EF'!$D:$D,"No EF",0))/1000,"Factor error"),"Factor error") -> Factor error | Q183: =IFERROR(IF(OR($H183='Customized Fuel EF'!$B:$B),(SUMIFS(Q:Q,$D:$D,$D47,$I:$I,$H183)*IF($G183="Customized", IF(_xlfn.XLOOKUP($H183,'Customized Fuel LHV'!$B:$B,'Customized Fuel LHV'!I:I,"No LHV",0)="","Factor error",_xlfn.XLOOKUP($H183,'Customized Fuel LHV'!$B:$B,'Customized Fuel LHV'!I:I,"No LHV",0)),_xlfn.XLOOKUP($H183,'Customized Fuel LHV'!$B:$B,'Customized Fuel LHV'!$D:$D,"No LHV",0))) *IF($F183="Customized",IF(_xlfn.XLOOKUP($H183,'Customized Fuel EF'!$B:$B,'Customized Fuel EF'!I:I,"No EF",0)="","Factor error",_xlfn.XLOOKUP($H183,'Customized Fuel EF'!$B:$B,'Customized Fuel EF'!I:I,"No EF",0)), _xlfn.XLOOKUP($H183,'Customized Fuel EF'!$B:$B,'Customized Fuel EF'!$D:$D,"No EF",0))/1000,"Factor error"),"Factor error") -> Factor error | R183: =IFERROR(IF(OR($H183='Customized Fuel EF'!$B:$B),(SUMIFS(R:R,$D:$D,$D47,$I:$I,$H183)*IF($G183="Customized", IF(_xlfn.XLOOKUP($H183,'Customized Fuel LHV'!$B:$B,'Customized Fuel LHV'!J:J,"No LHV",0)="","Factor error",_xlfn.XLOOKUP($H183,'Customized Fuel LHV'!$B:$B,'Customized Fuel LHV'!J:J,"No LHV",0)),_xlfn.XLOOKUP($H183,'Customized Fuel LHV'!$B:$B,'Customized Fuel LHV'!$D:$D,"No LHV",0))) *IF($F183="Customized",IF(_xlfn.XLOOKUP($H183,'Customized Fuel EF'!$B:$B,'Customized Fuel EF'!J:J,"No EF",0)="","Factor error",_xlfn.XLOOKUP($H183,'Customized Fuel EF'!$B:$B,'Customized Fuel EF'!J:J,"No EF",0)), _xlfn.XLOOKUP($H183,'Customized Fuel EF'!$B:$B,'Customized Fuel EF'!$D:$D,"No EF",0))/1000,"Factor error"),"Factor error") -> Factor error
C184: A3.1.4 | F184: CO2e from on-site transportation (mobile combustion sources) | H184: CO2e from on-site power generation | I184: CO2e from on-site power generation | J184: [t CO2e/reporting period] | K184: =SUM(M184:R184) -> 0 | M184: =SUMIF($D:$D,$C184,M:M) -> 0 | N184: =SUMIF($D:$D,$C184,N:N) -> 0 | O184: =SUMIF($D:$D,$C184,O:O) -> 0 | P184: =SUMIF($D:$D,$C184,P:P) -> 0 | Q184: =SUMIF($D:$D,$C184,Q:Q) -> 0 | R184: =SUMIF($D:$D,$C184,R:R) -> 0
F185: Adopting CO2e Factors | G185: Adopting LHV Factors | H185: [Please insert additional rows if more energy commodities are included]
D186: =C184 -> A3.1.4 | E186: .1 | J186: [t CO2e/reporting period] | K186: =SUM(M186:R186) -> 0 | M186: =IFERROR(IF(OR($H186='Customized Fuel EF'!$B:$B),(SUMIFS(M:M,$D:$D,$D49,$I:$I,$H186)*IF($G186="Customized", IF(_xlfn.XLOOKUP($H186,'Customized Fuel LHV'!$B:$B,'Customized Fuel LHV'!E:E,"No LHV",0)="","Factor error",_xlfn.XLOOKUP($H186,'Customized Fuel LHV'!$B:$B,'Customized Fuel LHV'!E:E,"No LHV",0)),_xlfn.XLOOKUP($H186,'Customized Fuel LHV'!$B:$B,'Customized Fuel LHV'!$D:$D,"No LHV",0))) *IF($F186="Customized",IF(_xlfn.XLOOKUP($H186,'Customized Fuel EF'!$B:$B,'Customized Fuel EF'!E:E,"No EF",0)="","Factor error",_xlfn.XLOOKUP($H186,'Customized Fuel EF'!$B:$B,'Customized Fuel EF'!E:E,"No EF",0)),_xlfn.XLOOKUP($H186,'Customized Fuel EF'!$B:$B,'Customized Fuel EF'!$D:$D,"No EF",0))/1000,"Factor error"),"Factor error") -> Factor error | N186: =IFERROR(IF(OR($H186='Customized Fuel EF'!$B:$B),(SUMIFS(N:N,$D:$D,$D49,$I:$I,$H186)*IF($G186="Customized", IF(_xlfn.XLOOKUP($H186,'Customized Fuel LHV'!$B:$B,'Customized Fuel LHV'!F:F,"No LHV",0)="","Factor error",_xlfn.XLOOKUP($H186,'Customized Fuel LHV'!$B:$B,'Customized Fuel LHV'!F:F,"No LHV",0)),_xlfn.XLOOKUP($H186,'Customized Fuel LHV'!$B:$B,'Customized Fuel LHV'!$D:$D,"No LHV",0))) *IF($F186="Customized",IF(_xlfn.XLOOKUP($H186,'Customized Fuel EF'!$B:$B,'Customized Fuel EF'!F:F,"No EF",0)="","Factor error",_xlfn.XLOOKUP($H186,'Customized Fuel EF'!$B:$B,'Customized Fuel EF'!F:F,"No EF",0)),_xlfn.XLOOKUP($H186,'Customized Fuel EF'!$B:$B,'Customized Fuel EF'!$D:$D,"No EF",0))/1000,"Factor error"),"Factor error") -> Factor error | O186: =IFERROR(IF(OR($H186='Customized Fuel EF'!$B:$B),(SUMIFS(O:O,$D:$D,$D49,$I:$I,$H186)*IF($G186="Customized", IF(_xlfn.XLOOKUP($H186,'Customized Fuel LHV'!$B:$B,'Customized Fuel LHV'!G:G,"No LHV",0)="","Factor error",_xlfn.XLOOKUP($H186,'Customized Fuel LHV'!$B:$B,'Customized Fuel LHV'!G:G,"No LHV",0)),_xlfn.XLOOKUP($H186,'Customized Fuel LHV'!$B:$B,'Customized Fuel LHV'!$D:$D,"No LHV",0))) *IF($F186="Customized",IF(_xlfn.XLOOKUP($H186,'Customized Fuel EF'!$B:$B,'Customized Fuel EF'!G:G,"No EF",0)="","Factor error",_xlfn.XLOOKUP($H186,'Customized Fuel EF'!$B:$B,'Customized Fuel EF'!G:G,"No EF",0)),_xlfn.XLOOKUP($H186,'Customized Fuel EF'!$B:$B,'Customized Fuel EF'!$D:$D,"No EF",0))/1000,"Factor error"),"Factor error") -> Factor error | P186: =IFERROR(IF(OR($H186='Customized Fuel EF'!$B:$B),(SUMIFS(P:P,$D:$D,$D49,$I:$I,$H186)*IF($G186="Customized", IF(_xlfn.XLOOKUP($H186,'Customized Fuel LHV'!$B:$B,'Customized Fuel LHV'!H:H,"No LHV",0)="","Factor error",_xlfn.XLOOKUP($H186,'Customized Fuel LHV'!$B:$B,'Customized Fuel LHV'!H:H,"No LHV",0)),_xlfn.XLOOKUP($H186,'Customized Fuel LHV'!$B:$B,'Customized Fuel LHV'!$D:$D,"No LHV",0))) *IF($F186="Customized",IF(_xlfn.XLOOKUP($H186,'Customized Fuel EF'!$B:$B,'Customized Fuel EF'!H:H,"No EF",0)="","Factor error",_xlfn.XLOOKUP($H186,'Customized Fuel EF'!$B:$B,'Customized Fuel EF'!H:H,"No EF",0)),_xlfn.XLOOKUP($H186,'Customized Fuel EF'!$B:$B,'Customized Fuel EF'!$D:$D,"No EF",0))/1000,"Factor error"),"Factor error") -> Factor error | Q186: =IFERROR(IF(OR($H186='Customized Fuel EF'!$B:$B),(SUMIFS(Q:Q,$D:$D,$D49,$I:$I,$H186)*IF($G186="Customized", IF(_xlfn.XLOOKUP($H186,'Customized Fuel LHV'!$B:$B,'Customized Fuel LHV'!I:I,"No LHV",0)="","Factor error",_xlfn.XLOOKUP($H186,'Customized Fuel LHV'!$B:$B,'Customized Fuel LHV'!I:I,"No LHV",0)),_xlfn.XLOOKUP($H186,'Customized Fuel LHV'!$B:$B,'Customized Fuel LHV'!$D:$D,"No LHV",0))) *IF($F186="Customized",IF(_xlfn.XLOOKUP($H186,'Customized Fuel EF'!$B:$B,'Customized Fuel EF'!I:I,"No EF",0)="","Factor error",_xlfn.XLOOKUP($H186,'Customized Fuel EF'!$B:$B,'Customized Fuel EF'!I:I,"No EF",0)),_xlfn.XLOOKUP($H186,'Customized Fuel EF'!$B:$B,'Customized Fuel EF'!$D:$D,"No EF",0))/1000,"Factor error"),"Factor error") -> Factor error | R186: =IFERROR(IF(OR($H186='Customized Fuel EF'!$B:$B),(SUMIFS(R:R,$D:$D,$D49,$I:$I,$H186)*IF($G186="Customized", IF(_xlfn.XLOOKUP($H186,'Customized Fuel LHV'!$B:$B,'Customized Fuel LHV'!J:J,"No LHV",0)="","Factor error",_xlfn.XLOOKUP($H186,'Customized Fuel LHV'!$B:$B,'Customized Fuel LHV'!J:J,"No LHV",0)),_xlfn.XLOOKUP($H186,'Customized Fuel LHV'!$B:$B,'Customized Fuel LHV'!$D:$D,"No LHV",0))) *IF($F186="Customized",IF(_xlfn.XLOOKUP($H186,'Customized Fuel EF'!$B:$B,'Customized Fuel EF'!J:J,"No EF",0)="","Factor error",_xlfn.XLOOKUP($H186,'Customized Fuel EF'!$B:$B,'Customized Fuel EF'!J:J,"No EF",0)),_xlfn.XLOOKUP($H186,'Customized Fuel EF'!$B:$B,'Customized Fuel EF'!$D:$D,"No EF",0))/1000,"Factor error"),"Factor error") -> Factor error
D187: =C184 -> A3.1.4 | E187: .2 | J187: [t CO2e/reporting period] | K187: =SUM(M187:R187) -> 0 | M187: =IFERROR(IF(OR($H187='Customized Fuel EF'!$B:$B),(SUMIFS(M:M,$D:$D,$D50,$I:$I,$H187)*IF($G187="Customized", IF(_xlfn.XLOOKUP($H187,'Customized Fuel LHV'!$B:$B,'Customized Fuel LHV'!E:E,"No LHV",0)="","Factor error",_xlfn.XLOOKUP($H187,'Customized Fuel LHV'!$B:$B,'Customized Fuel LHV'!E:E,"No LHV",0)),_xlfn.XLOOKUP($H187,'Customized Fuel LHV'!$B:$B,'Customized Fuel LHV'!$D:$D,"No LHV",0))) *IF($F187="Customized",IF(_xlfn.XLOOKUP($H187,'Customized Fuel EF'!$B:$B,'Customized Fuel EF'!E:E,"No EF",0)="","Factor error",_xlfn.XLOOKUP($H187,'Customized Fuel EF'!$B:$B,'Customized Fuel EF'!E:E,"No EF",0)),_xlfn.XLOOKUP($H187,'Customized Fuel EF'!$B:$B,'Customized Fuel EF'!$D:$D,"No EF",0))/1000,"Factor error"),"Factor error") -> Factor error | N187: =IFERROR(IF(OR($H187='Customized Fuel EF'!$B:$B),(SUMIFS(N:N,$D:$D,$D50,$I:$I,$H187)*IF($G187="Customized", IF(_xlfn.XLOOKUP($H187,'Customized Fuel LHV'!$B:$B,'Customized Fuel LHV'!F:F,"No LHV",0)="","Factor error",_xlfn.XLOOKUP($H187,'Customized Fuel LHV'!$B:$B,'Customized Fuel LHV'!F:F,"No LHV",0)),_xlfn.XLOOKUP($H187,'Customized Fuel LHV'!$B:$B,'Customized Fuel LHV'!$D:$D,"No LHV",0))) *IF($F187="Customized",IF(_xlfn.XLOOKUP($H187,'Customized Fuel EF'!$B:$B,'Customized Fuel EF'!F:F,"No EF",0)="","Factor error",_xlfn.XLOOKUP($H187,'Customized Fuel EF'!$B:$B,'Customized Fuel EF'!F:F,"No EF",0)),_xlfn.XLOOKUP($H187,'Customized Fuel EF'!$B:$B,'Customized Fuel EF'!$D:$D,"No EF",0))/1000,"Factor error"),"Factor error") -> Factor error | O187: =IFERROR(IF(OR($H187='Customized Fuel EF'!$B:$B),(SUMIFS(O:O,$D:$D,$D50,$I:$I,$H187)*IF($G187="Customized", IF(_xlfn.XLOOKUP($H187,'Customized Fuel LHV'!$B:$B,'Customized Fuel LHV'!G:G,"No LHV",0)="","Factor error",_xlfn.XLOOKUP($H187,'Customized Fuel LHV'!$B:$B,'Customized Fuel LHV'!G:G,"No LHV",0)),_xlfn.XLOOKUP($H187,'Customized Fuel LHV'!$B:$B,'Customized Fuel LHV'!$D:$D,"No LHV",0))) *IF($F187="Customized",IF(_xlfn.XLOOKUP($H187,'Customized Fuel EF'!$B:$B,'Customized Fuel EF'!G:G,"No EF",0)="","Factor error",_xlfn.XLOOKUP($H187,'Customized Fuel EF'!$B:$B,'Customized Fuel EF'!G:G,"No EF",0)),_xlfn.XLOOKUP($H187,'Customized Fuel EF'!$B:$B,'Customized Fuel EF'!$D:$D,"No EF",0))/1000,"Factor error"),"Factor error") -> Factor error | P187: =IFERROR(IF(OR($H187='Customized Fuel EF'!$B:$B),(SUMIFS(P:P,$D:$D,$D50,$I:$I,$H187)*IF($G187="Customized", IF(_xlfn.XLOOKUP($H187,'Customized Fuel LHV'!$B:$B,'Customized Fuel LHV'!H:H,"No LHV",0)="","Factor error",_xlfn.XLOOKUP($H187,'Customized Fuel LHV'!$B:$B,'Customized Fuel LHV'!H:H,"No LHV",0)),_xlfn.XLOOKUP($H187,'Customized Fuel LHV'!$B:$B,'Customized Fuel LHV'!$D:$D,"No LHV",0))) *IF($F187="Customized",IF(_xlfn.XLOOKUP($H187,'Customized Fuel EF'!$B:$B,'Customized Fuel EF'!H:H,"No EF",0)="","Factor error",_xlfn.XLOOKUP($H187,'Customized Fuel EF'!$B:$B,'Customized Fuel EF'!H:H,"No EF",0)),_xlfn.XLOOKUP($H187,'Customized Fuel EF'!$B:$B,'Customized Fuel EF'!$D:$D,"No EF",0))/1000,"Factor error"),"Factor error") -> Factor error | Q187: =IFERROR(IF(OR($H187='Customized Fuel EF'!$B:$B),(SUMIFS(Q:Q,$D:$D,$D50,$I:$I,$H187)*IF($G187="Customized", IF(_xlfn.XLOOKUP($H187,'Customized Fuel LHV'!$B:$B,'Customized Fuel LHV'!I:I,"No LHV",0)="","Factor error",_xlfn.XLOOKUP($H187,'Customized Fuel LHV'!$B:$B,'Customized Fuel LHV'!I:I,"No LHV",0)),_xlfn.XLOOKUP($H187,'Customized Fuel LHV'!$B:$B,'Customized Fuel LHV'!$D:$D,"No LHV",0))) *IF($F187="Customized",IF(_xlfn.XLOOKUP($H187,'Customized Fuel EF'!$B:$B,'Customized Fuel EF'!I:I,"No EF",0)="","Factor error",_xlfn.XLOOKUP($H187,'Customized Fuel EF'!$B:$B,'Customized Fuel EF'!I:I,"No EF",0)),_xlfn.XLOOKUP($H187,'Customized Fuel EF'!$B:$B,'Customized Fuel EF'!$D:$D,"No EF",0))/1000,"Factor error"),"Factor error") -> Factor error | R187: =IFERROR(IF(OR($H187='Customized Fuel EF'!$B:$B),(SUMIFS(R:R,$D:$D,$D50,$I:$I,$H187)*IF($G187="Customized", IF(_xlfn.XLOOKUP($H187,'Customized Fuel LHV'!$B:$B,'Customized Fuel LHV'!J:J,"No LHV",0)="","Factor error",_xlfn.XLOOKUP($H187,'Customized Fuel LHV'!$B:$B,'Customized Fuel LHV'!J:J,"No LHV",0)),_xlfn.XLOOKUP($H187,'Customized Fuel LHV'!$B:$B,'Customized Fuel LHV'!$D:$D,"No LHV",0))) *IF($F187="Customized",IF(_xlfn.XLOOKUP($H187,'Customized Fuel EF'!$B:$B,'Customized Fuel EF'!J:J,"No EF",0)="","Factor error",_xlfn.XLOOKUP($H187,'Customized Fuel EF'!$B:$B,'Customized Fuel EF'!J:J,"No EF",0)),_xlfn.XLOOKUP($H187,'Customized Fuel EF'!$B:$B,'Customized Fuel EF'!$D:$D,"No EF",0))/1000,"Factor error"),"Factor error") -> Factor error
C188: A3.1.5 | F188: Total CO2e from fuels combustion | J188: [t CO2e/reporting period] | K188: =SUM(M188:R188) -> 0 | M188: =IF(AND(M180="",M184=""),"",M180+M184+M129) -> 0 | N188: 0 | O188: 0 | P188: =IF(AND(P180="",P184=""),"",P180+P184+P129) -> 0 | Q188: 0 | R188: 0
C189: A3.1.6 | F189: CO2e from external electricity production | J189: [t CO2e/reporting period] | K189: =SUM(M189:R189) -> 0 | M189: =IFERROR(M52*$K$53/1000,"") -> 
C190: A3.1.8 | I190: Total CO2e in Stage A3 | J190: [t CO2e/reporting period] | K190: =SUM(M190:R190) -> 0 | M190: =IFERROR(IF(M188="","",M188)+IF(M189="","",M189),"") ->  | N190: =IFERROR(IF(N188="","",N188)+IF(N189="","",N189),"") -> 
B191: A4 | C191: PROJECT LIFE CYCLE STAGE: A4 OFF-SITE TRANSPORTATION OF PRODUCT TO BORDER OF HK
C192: A4.1 CO2e EMISSIONS | J192: unit | K192: Total | M192: Product 1 | N192: Product 2 | O192: Product 3 | P192: Product 4 | Q192: Product 5 | R192: Product 6
C193: A4.1.1 | F193: CO2e from off-site transportation of product to border of HK
D194: =C193 -> A4.1.1 | E194: .1 | F194: CO2e calculated using either 1) WRI & WBCSD's protocol OR 2) EPD & EMSD's carbon audit tool) | J194: [t CO2e/reporting period] | K194: =SUM(M194:R194) -> 0
C195: A4.1.2 | I195: Total CO2e in Stage A4 | J195: [t CO2e/reporting period] | K195: =SUM(M195:R195) -> 0 | M195: =IFERROR(IF(M194="","",M194),"") -> 
B197: P | C197: PERFORMANCE INDICATORS | J197: unit | K197: Total | M197: Product 1 | N197: Product 2 | O197: Product 3 | P197: Product 4 | Q197: Product 5 | R197: Product 6
B198: P | C198: =LEFT($B$197,2) -> P | D198: 1 | F198: Gross CO2e (A1-A4) | J198: [t CO2e/reporting period] | K198: =IF(AND(M198:R198=""),"",SUM(M198:R198)) -> 0 | M198: =SUM(M199:M202) -> 0 | N198: =SUM(N199:N202) -> 0 | O198: =SUM(O199:O202) -> 0 | P198: 0 | Q198: 0 | R198: 0
C199: P | D199: =D198 -> 1 | E199: .1 | F199: A1 Raw material extraction and upstream production | J199: [t CO2e/reporting period] | K199: =IF(AND(M199:R199=""),"",SUM(M199:R199)) -> 0 | M199: =SUMIF($I:$I,"Total CO2e in Stage A1",M:M) -> 0 | N199: 0 | O199: 0 | P199: 0 | Q199: 0 | R199: 0
C200: P | D200: =D199 -> 1 | E200: .2 | F200: A2 Off-site transportation of raw materials to manufacturing plant | J200: [t CO2e/reporting period] | K200: =IF(AND(M200:R200=""),"",SUM(M200:R200)) -> 0 | M200: =SUMIF($I:$I,"Total CO2e in Stage A2",M:M) -> 0 | N200: 0 | O200: 0 | P200: 0 | Q200: 0 | R200: 0
C201: P | D201: =D200 -> 1 | E201: .3 | F201: A3 Product manufacturing and fabrication (without wastage) | J201: [t CO2e/reporting period] | K201: =IF(AND(M201:R201=""),"",SUM(M201:R201)) -> 0 | M201: =SUMIF($I:$I,"Total CO2e in Stage A3",M:M) -> 0 | N201: 0 | O201: =SUMIF($I:$I,"Total CO2e in Stage A3",O:O) -> 0 | P201: 0 | Q201: 0 | R201: 0
C202: P | D202: =D201 -> 1 | E202: .4 | F202: A4 Off-site transportation of product to border of HK | J202: [t CO2e/reporting period] | K202: =IF(AND(M202:R202=""),"",SUM(M202:R202)) -> 0 | M202: =SUMIF($I:$I,"Total CO2e in Stage A4",M:M) -> 0 | N202: 0 | O202: 0 | P202: 0 | Q202: 0 | R202: 0
C203: P | D203: 2 | F203: Specific gross CO2e per t of rebar / steel produced (A1-A4) | J203: [t CO2e/t steel prod] | K203: =IF(K198="","",(K198/$K$29)) ->  | M203: =IF(M$29=0,"n.a.",IF(M198="","",(M198/M$29))) -> n.a. | N203: =IF(N$29=0,"n.a.",IF(N198="","",(N198/N$29))) -> n.a. | O203: n.a. | P203: n.a. | Q203: n.a. | R203: n.a.
C204: P | D204: =D203 -> 2 | E204: .1 | F204: A1 Raw material extraction and upstream production | J204: [t CO2e/t steel prod] | K204: =IF(K199="","",(K199/$K$29)) ->  | M204: =IF(M$29=0,"n.a.",IF(M199="","",(M199/M$29))) -> n.a. | N204: =IF(N$29=0,"n.a.",IF(N199="","",(N199/N$29))) -> n.a. | O204: n.a. | P204: n.a. | Q204: n.a. | R204: n.a.
... 3 more rows

Sheet 3.1.1 Lime Production & Flaring
A1: CFP Quantification - Reinforcing Bar & Structural Steel - Industrial Processes Emissions
B3: Date of latest update | F3: 2025-03-24
B4: Reporting period | F4: =IF('CFP Quantification'!I4=0,"",'CFP Quantification'!I4) -> 
B6: ='CFP Quantification'!D177&'CFP Quantification'!E177 -> A3.1.1.5 | C6: CO2e from onsite lime production
B7: Item no. | E7: Facility | F7: Carbonate Properties | L7: Lime Kiln Dust (LKD) Properties | O7: CO2e emissions (t CO2e)
F8: Carbonate | G8: Amount of carbonate used (t /reporting period) | H8: Carbonate CO2 Factor | J8: Fraction calcination achieved for carbonate (fraction) | L8: Amount of LKD (tonnes/reporting period) | M8: Weight fraction of original carbonate in the LKD (fraction) | N8: Adopted Fraction calcination achieved for LKD
B9: Example | E9: Facility A | F9: CaCO3 | G9: 100 | H9: Default | I9: =IF(H9="Customized",_xlfn.XLOOKUP($F9,$B:$B,$J:$J),_xlfn.XLOOKUP($F9,$B:$B,$H:$H)) -> 0.43971 | J9: Default | K9: =IF(J9="Customized",_xlfn.XLOOKUP($F9,$B:$B,$K:$K),_xlfn.XLOOKUP($F9,$B:$B,$I:$I)) -> 1 | L9: 80 | M9: 0.9 | N9: 1 | O9: =G9*I9*K9-L9*M9*(1-N9)*I9 -> 43.971
C10: =B6 -> A3.1.1.5 | D10: .1 | I10: =IF(H10="Customized",_xlfn.XLOOKUP($F10,$B:$B,$J:$J),_xlfn.XLOOKUP($F10,$B:$B,$H:$H)) -> 0 | K10: =IF(J10="Customized",_xlfn.XLOOKUP($F10,$B:$B,$K:$K),_xlfn.XLOOKUP($F10,$B:$B,$I:$I)) -> 0 | O10: =G10*I10*K10-L10*M10*(1-N10)*I10 -> 0
C11: =C10 -> A3.1.1.5 | D11: .2 | I11: 0 | K11: 0 | O11: =G11*I11*K11-L11*M11*(1-N11)*I11 -> 0
C12: =C11 -> A3.1.1.5 | D12: .3 | I12: 0 | K12: 0 | O12: =G12*I12*K12-L12*M12*(1-N12)*I12 -> 0
B13: =C12 -> A3.1.1.5 | D13: Total | O13: =SUMIF($C:$C,C10,$O:$O) -> 0
B14: ='CFP Quantification'!D178&'CFP Quantification'!E178 -> A3.1.1.6 | C14: CO2e from offsite lime production
B15: Item no. | E15: Facility | F15: Lime Properties | J15: Correction for hydrated lime | O15: CO2e emissions (t CO2e)
F16: Lime type | G16: Amount produced (t /reporting period) | H16: Lime CO2 Factor | J16: Proportion of hydrated lime produced (fraction) | L16: Water content of hydrated lime (fraction) | N16: Correction for LKD
B17: Example | E17: Facility A | F17: High calcium lime | G17: 1200 | H17: Default | I17: =IF(H17="Customized",_xlfn.XLOOKUP($F17,$B:$B,$K:$K),_xlfn.XLOOKUP($F17,$B:$B,$J:$J)) -> 0.74575 | J17: 0.1 | L17: 0.28 | N17: 1.02 | O17: =G17*I17*(1-(J17*L17))*N17 -> 887.239656
C18: =B14 -> A3.1.1.6 | D18: .1 | I18: =IF(H18="Customized",_xlfn.XLOOKUP($F18,$B:$B,$K:$K),_xlfn.XLOOKUP($F18,$B:$B,$J:$J)) -> 0 | O18: =G18*I18*(1-(J18*L18))*N18 -> 0
C19: =C18 -> A3.1.1.6 | D19: .2 | I19: 0 | O19: 0
C20: =C19 -> A3.1.1.6 | D20: .3 | I20: 0 | O20: =G20*I20*(1-(J20*L20))*N20 -> 0
B21: =C20 -> A3.1.1.6 | D21: Total | O21: =SUMIF($C:$C,C18,$O:$O) -> 0
B22: ='CFP Quantification'!D179&'CFP Quantification'!E179 -> A3.1.1.7 | C22: CO2e from flaring
B23: Item no. | E23: Facility | F23: Volume gas flared (standard cubic feet) | G23: Carbon content of flue gas (lb mole C/lb mole flared gas) | H23: Flaring combustion efficiency for CO2 (fraction) | I23: Amount of CO2 in flared gas | J23: Amount of CH4 in flared gas | K23: Uncombusted flared gas | L23: CO2 emissions (t) | M23: CH4 emissions (t) | O23: CO2e emissions (t CO2e)
I24: Ratio of CO2 to the weight of flared gas (lb mole CO2/lb mole flared gas) | J24: Ratio of CH4 to the weight of flared gas (lb mole CH4/lb mole flared gas) | K24: Fraction of released CH4
B25: Example | E25: Facility A | F25: 20000000 | G25: 0.939 | H25: 0.98 | I25: 0.12 | J25: 0.8 | K25: 0.02 | L25: =F25*(1/379.3)*(G25*H25+I25)*44*(1/2204.62) -> 1094.690341 | M25: =F25*J25*K25*16*(1/379.3)*(1/2204.62) -> 6.12284655 | O25: =L25+M25*'Customized Process Factors'!$D$110 -> 1277.151168
C26: =B22 -> A3.1.1.7 | D26: .1 | L26: =F26*(1/379.3)*(G26*H26+I26)*44*(1/2204.62) -> 0 | M26: =F26*J26*K26*16*(1/379.3)*(1/2204.62) -> 0 | O26: =L26+M26*'Customized Process Factors'!$D$110 -> 0
C27: =C26 -> A3.1.1.7 | D27: .2 | L27: 0 | M27: 0 | O27: =L27+M27*'Customized Process Factors'!$D$110 -> 0
C28: =C27 -> A3.1.1.7 | D28: .3 | L28: 0 | M28: 0 | O28: =L28+M28*'Customized Process Factors'!$D$110 -> 0
B29: =C28 -> A3.1.1.7 | D29: Total | O29: =SUMIF($C:$C,C26,$O:$O) -> 0
B32: Table 1 : Carbonate-specific emission factors used in onsite lime production
B34: Carbonate | D34: Mineral name(s) | F34: Formula weight | H34: Default Emission factor (t CO2/ t carbonate) | I34: Default Fraction calcination achieved for carbonate (fraction) | J34: Customized Emission factor (t CO2/ t carbonate) | K34: Customized Fraction calcination achieved for carbonate (fraction) | L34: Supporting document | N34: Explanation
B35: CaCO3 | D35: Limestone | F35: 100.0869 | H35: 0.43971 | I35: 1 | L35: Default value is used
B36: MgCO3 | D36: Magnesite | F36: 84.3139 | H36: 0.52197 | I36: 1 | L36: Default value is used
B37: Cam(CO3)2 | D37: Dolomite | F37: 184.4008 | H37: 0.47732 | I37: 1 | L37: Default value is used
B38: FeCO3 | D38: Siderite | F38: 115.8539 | H38: 0.37987 | I38: 1 | L38: Default value is used
B39: Ca(Fe,Mg,Mn)(CO3)2 | D39: Ankerite | F39: 185.0225 - 215.6160 | H39: =AVERAGE(0.40822,0.47572) -> 0.44197 | I39: 1 | L39: Default value is used
B40: MnCO3 | D40: Rhodochrosite | F40: 114.947 | H40: 0.38286 | I40: 1 | L40: Default value is used
B41: Na2CO3 | D41: Sodium carbonate or soda ash | F41: 106.0685 | H41: 0.41492 | I41: 1 | L41: Default value is used
B43: Table 2 : Lime specific emission factors used in offsite lime production
B45: Lime type | F45: Stoichiometric ratio (fraction) | G45: Range of CaO content (%) | H45: Range of MgO content (%) | I45: Default Value for CaO / Cao·MgO content (fraction) | J45: Default Lime Emission factor (t CO2/ t lime) | K45: Customized Lime Emission factor (t CO2/ t lime) | L45: Supporting document | N45: Explanation
B46: High calcium lime | F46: 0.785 | G46: 93-98 | H46: 0.3-2.5 | I46: 0.95 | J46: =F46*I46 -> 0.74575 | L46: Default value is used
B47: Dolomitic lime | D47: (developed countries) | F47: 0.913 | G47: 55-57 | H47: 38-41 | I47: 0.95 | J47: =F47*I47 -> 0.86735 | L47: Default value is used
B48: Dolomitic lime | D48: (developing countries) | F48: 0.913 | G48: 55-57 | H48: 38-41 | I48: 0.85 | J48: =F48*I48 -> 0.77605 | L48: Default value is used
B49: Hydraulic lime | F49: 0.785 | G49: 65-92 | H49: NA | I49: 0.75 | J49: =F49*I49 -> 0.58875 | L49: Default value is used

Sheet Customized Embodied EF
E2: Customized CO2e Emission Factors for Raw Materials
D3: Default EF | E3: Product 1 | F3: Product 2 | G3: Product 3 | H3: Product 4 | I3: Product 5 | J3: Product 6 | K3: Supporting document | L3: Explanation
A4: Raw material | B4: Dolomite | C4: [t CO2e/ t ] | D4: 0.005 | K4: Default value is used
B5: Limestone | C5: [t CO2e/ t ] | D5: 0.01577 | K5: Default value is used
B6: Iron ore (lump / fine) | C6: [t CO2e/ t ] | D6: 0.02 | K6: Default value is used
B7: Scrap steel | C7: [t CO2e/ t ] | D7: N/A | K7: Default value is used
B8: Coke | C8: [t CO2e/ t ] | D8: N/A | K8: Default value is used
B9: Coal | C9: [t CO2e/ t ] | D9: 0.294 | K9: Default value is used
B10: Coating material | C10: [t CO2e/ t ] | D10: 3.028 | K10: Default value is used
C11: [t CO2e/ t ] | D11: N/A
C12: [t CO2e/ t ] | D12: N/A
A13: Energy Commodity | B13: Diesel oil | C13: [t CO2e/ t ] | D13: 0.7520276 | K13: Default value is used
B14: Gasoline | C14: [t CO2e/ t ] | D14: 0.81593523 | K14: Default value is used
B15: Petrol coke | C15: [t CO2e/ t ] | D15: 0.40262468 | K15: Default value is used
B16: Natural gas | C16: [t CO2e/ t ] | D16: 0.42316368 | K16: Default value is used
B17: Waste oil | C17: [t CO2e/ t ] | D17: 1.11683712 | K17: Default value is used
C18: [t CO2e/ t ] | D18: N/A
C19: [t CO2e/ t ] | D19: N/A
A21: Factor sheet Guide : 1. Each material with a customized EF has its own specific EF type. Even if the applicant decides that certain products will adopt the default EF value for that material, the value must be copied and displayed in the matrix. 2. The material name must be consistent across all sheets to ensure the Excel file functions as intended. 3. The "Supporting Document" column must be completed by selecting either "Yes" or "No" if a customized factor is utilized. If the customized row is not applicable, the applicant should select "Default value is used". If there is no supporting document , applicant can select “No (Please explain)” and provide explanation for the missing supporting documents.

Sheet Customized Process Factors
A1: Table 3 : Default and Customized C Content on Mass Basis for Process Materials
E3: Customized C Content on Mass Basis for Process Materials
D4: Default Carbon Content | E4: Product 1 | F4: Product 2 | G4: Product 3 | H4: Product 4 | I4: Product 5 | J4: Product 6 | K4: Supporting document | L4: Explaination
A5: Common Process Materials | B5: Dolomite | C5: [kg C/ kg material ] | D5: 0.13 | K5: Default value is used
B6: Limestone | C6: [kg C/ kg material ] | D6: 0.12 | K6: Default value is used
B7: Purchased pig iron | C7: [kg C/ kg material ] | D7: 0.04 | K7: Default value is used
B8: Scrap iron | C8: [kg C/ kg material ] | D8: 0.04 | K8: Default value is used
B9: Iron | C9: [kg C/ kg material ] | D9: 0.04 | K9: Default value is used
B10: DRI | C10: [kg C/ kg material ] | D10: 0.02 | K10: Default value is used
B11: Hot briquetted iron | C11: [kg C/ kg material ] | D11: 0.02 | K11: Default value is used
B12: Steel | C12: [kg C/ kg material ] | D12: 0.01 | K12: Default value is used
B13: EAF carbon electrodes | C13: [kg C/ kg material ] | D13: 0.822 | K13: Default value is used
B14: EAF charge carbon | C14: [kg C/ kg material ] | D14: 0.833 | K14: Default value is used
B15: Natural gas | C15: [kg C/ kg material ] | D15: =_xlfn.XLOOKUP(B15,$B$32:$B$92,$D$32:$D$92) -> 0.7344 | K15: Default value is used
B16: Oxygen steel furnace gas | C16: [kg C/ kg material ] | D16: =_xlfn.XLOOKUP(B16,$B$32:$B$92,$D$32:$D$92) -> 0.350176 | K16: Default value is used
B17: Petro coke | C17: [kg C/ kg material ] | D17: =_xlfn.XLOOKUP(B17,$B$32:$B$92,$D$32:$D$92) -> 0.8645 | K17: Default value is used
B18: Blast furnace gas | C18: [kg C/ kg material ] | D18: =_xlfn.XLOOKUP(B18,$B$32:$B$92,$D$32:$D$92) -> 0.174876 | K18: Default value is used
B19: Charcoal | C19: [kg C/ kg material ] | D19: =_xlfn.XLOOKUP(B19,$B$32:$B$92,$D$32:$D$92) -> 0.89975 | K19: Default value is used
B20: Coal | C20: [kg C/ kg material ] | D20: =D56 -> 0.66564 | K20: Default value is used
B21: Coal tar | C21: [kg C/ kg material ] | D21: =_xlfn.XLOOKUP(B21,$B$32:$B$92,$D$32:$D$92) -> 0.616 | K21: Default value is used
B22: Coke | C22: [kg C/ kg material ] | D22: 0.83 | K22: Default value is used
B23: Coke oven gas | C23: [kg C/ kg material ] | D23: =_xlfn.XLOOKUP(B23,$B$32:$B$92,$D$32:$D$92) -> 0.46827 | K23: Default value is used
B24: Coking coal | C24: [kg C/ kg material ] | D24: =_xlfn.XLOOKUP(B24,$B$32:$B$92,$D$32:$D$92) -> 0.72756 | K24: Default value is used
B25: Coke breeze | C25: =C24 -> [kg C/ kg material ] | D25: =D62 -> 0.82344 | K25: Default value is used
B26: Fuel oil | C26: [kg C/ kg material ] | D26: =D39 -> 0.8686 | K26: Default value is used
B27: Gas coke | C27: [kg C/ kg material ] | D27: =_xlfn.XLOOKUP(B27,$B$32:$B$92,$D$32:$D$92) -> 0.82344 | K27: Default value is used
B28: Sinter off gas | C28: [kg C/ kg material ] | D28: N/A | K28: Default value is used
C29: [kg C/ kg material ] | D29: N/A
C30: [kg C/ kg material ] | D30: N/A
A31: Coke-oven byproducts transferred offsite | B31: Coke-oven byproducts | C31: [kg C/ kg material ] | D31: N/A | K31: Default value is used
A32: Crude oil and derived substances | B32: Crude oil | C32: [kg C/ kg material ] | D32: 0.846 | K32: Default value is used
B33: Orimulsion | C33: [kg C/ kg material ] | D33: 0.5775 | K33: Default value is used
B34: Natural gas liquids | C34: [kg C/ kg material ] | D34: 0.7735 | K34: Default value is used
B35: Gasoline | C35: [kg C/ kg material ] | D35: 0.83727 | K35: Default value is used
B36: Jet kerosene | C36: [kg C/ kg material ] | D36: 0.85995 | K36: Default value is used
B37: Other kerosene | C37: [kg C/ kg material ] | D37: 0.85848 | K37: Default value is used
B38: Shale oil | C38: [kg C/ kg material ] | D38: 0.762 | K38: Default value is used
B39: Diesel oil | C39: [kg C/ kg material ] | D39: 0.8686 | K39: Default value is used
B40: Residual fuel oil | C40: [kg C/ kg material ] | D40: 0.85244 | K40: Default value is used
B41: Liquified petroleum gases | C41: [kg C/ kg material ] | D41: 0.81356 | K41: Default value is used
B42: Ethane | C42: [kg C/ kg material ] | D42: 0.77952 | K42: Default value is used
B43: Naphtha | C43: [kg C/ kg material ] | D43: 0.89 | K43: Default value is used
B44: Bitumen | C44: [kg C/ kg material ] | D44: 0.8844 | K44: Default value is used
B45: Lubricants | C45: [kg C/ kg material ] | D45: 0.804 | K45: Default value is used
B46: Petro coke | C46: [kg C/ kg material ] | D46: 0.8645 | E46: =E17 -> 0 | F46: =F17 -> 0 | G46: 0 | H46: 0 | I46: 0 | J46: 0 | K46: Default value is used | L46: 0
B47: Refinery feedstocks | C47: [kg C/ kg material ] | D47: 0.86 | K47: Default value is used
B48: Refinery gas | C48: [kg C/ kg material ] | D48: 0.77715 | K48: Default value is used
B49: Paraffin waxes | C49: [kg C/ kg material ] | D49: 0.804 | K49: Default value is used
B50: White spirit & SBP | C50: [kg C/ kg material ] | D50: 0.804 | K50: Default value is used
B51: Other petroleum products | C51: [kg C/ kg material ] | D51: 0.804 | K51: Default value is used
C52: [kg C/ kg material ] | D52: N/A
C53: [kg C/ kg material ] | D53: N/A
A54: Coal and derived products | B54: Anthracite | C54: [kg C/ kg material ] | D54: 0.71556 | K54: Default value is used
B55: Coking coal | C55: [kg C/ kg material ] | D55: 0.72756 | E55: =E24 -> 0 | F55: =F24 -> 0 | G55: 0 | H55: 0 | I55: 0 | J55: 0 | K55: Default value is used | L55: 0
B56: Other bituminous coal | C56: [kg C/ kg material ] | D56: 0.66564 | K56: Default value is used
B57: Sub-bituminous coal | C57: [kg C/ kg material ] | D57: 0.49518 | K57: Default value is used
B58: Lignite | C58: [kg C/ kg material ] | D58: 0.32844 | K58: Default value is used
B59: Oil shale and tar sands | C59: [kg C/ kg material ] | D59: 0.25899 | K59: Default value is used
B60: Brown coal briquettes | C60: [kg C/ kg material ] | D60: 0.55062 | K60: Default value is used
B61: Patent fuel | C61: [kg C/ kg material ] | D61: 0.55062 | K61: Default value is used
B62: Coke oven coke / lignite coke / coke breeze | C62: [kg C/ kg material ] | D62: 0.82344 | K62: Default value is used
B63: Gas coke | C63: [kg C/ kg material ] | D63: 0.82344 | E63: =E27 -> 0 | F63: =F27 -> 0 | G63: 0 | H63: 0 | I63: 0 | J63: 0 | K63: Default value is used | L63: 0
B64: Coal tar | C64: [kg C/ kg material ] | D64: 0.616 | E64: =E21 -> 0 | F64: =F21 -> 0 | G64: 0 | H64: 0 | I64: 0 | J64: 0 | K64: Default value is used | L64: 0
B65: Gas works gas | C65: [kg C/ kg material ] | D65: 0.46827 | K65: Default value is used
B66: Coke oven gas | C66: [kg C/ kg material ] | D66: 0.46827 | E66: =E23 -> 0 | F66: =F23 -> 0 | G66: 0 | H66: 0 | I66: 0 | J66: 0 | K66: Default value is used | L66: 0
B67: Blast furnace gas | C67: [kg C/ kg material ] | D67: 0.174876 | E67: =E18 -> 0 | F67: =F18 -> 0 | G67: 0 | H67: 0 | I67: 0 | J67: 0 | K67: Default value is used | L67: 0
B68: Oxygen steel furnace gas | C68: [kg C/ kg material ] | D68: 0.350176 | E68: =E16 -> 0 | F68: =F16 -> 0 | G68: 0 | H68: 0 | I68: 0 | J68: 0 | K68: Default value is used | L68: 0
C69: [kg C/ kg material ] | D69: N/A
C70: [kg C/ kg material ] | D70: N/A
A71: Gas | B71: Natural gas | C71: [kg C/ kg material ] | D71: 0.7344 | E71: =E15 -> 0 | F71: =F15 -> 0 | G71: 0 | H71: 0 | I71: 0 | J71: 0 | K71: =K15 -> Default value is used | L71: =L15 -> 0
C72: [kg C/ kg material ] | D72: N/A
C73: [kg C/ kg material ] | D73: N/A
A74: Non-biomass waste | B74: Municipal wastes (non-biomass fraction) | C74: [kg C/ kg material ] | D74: 0.25 | K74: Default value is used
B75: Industrial wastes | C75: [kg C/ kg material ] | D75: NA | K75: Default value is used
B76: Waste oil | C76: [kg C/ kg material ] | D76: 0.804 | K76: Default value is used
C77: [kg C/ kg material ] | D77: N/A
C78: [kg C/ kg material ] | D78: N/A
A79: Peat | B79: Peat | C79: [kg C/ kg material ] | D79: 0.282064 | K79: Default value is used
A80: Biomass waste | B80: Wood/Wood waste | C80: [kg C/ kg material ] | D80: 0.4758 | K80: Default value is used
B81: Sulphite lyes (Black liqour) | C81: [kg C/ kg material ] | D81: 0.3068 | K81: Default value is used
B82: Other primary solid biomass fuels | C82: [kg C/ kg material ] | D82: 0.31668 | K82: Default value is used
B83: Charcoal | C83: [kg C/ kg material ] | D83: 0.89975 | E83: =E19 -> 0 | F83: =F19 -> 0 | G83: 0 | H83: 0 | I83: 0 | J83: 0 | K83: Default value is used | L83: 0
B84: Biogasoline | C84: [kg C/ kg material ] | D84: 0.5211 | K84: Default value is used
B85: Biodiesel | C85: [kg C/ kg material ] | D85: 0.5211 | K85: Default value is used
B86: Other liquid biofuels | C86: [kg C/ kg material ] | D86: 0.59458 | K86: Default value is used
B87: Landfill gas | C87: [kg C/ kg material ] | D87: 0.75096 | K87: Default value is used
B88: Sludge gas | C88: [kg C/ kg material ] | D88: 0.75096 | K88: Default value is used
B89: Other biogas | C89: [kg C/ kg material ] | D89: 0.75096 | K89: Default value is used
B90: Municipal wastes (biomass fraction) | C90: [kg C/ kg material ] | D90: 0.31668 | K90: Default value is used
C91: [kg C/ kg material ] | D91: N/A
C92: [kg C/ kg material ] | D92: N/A
A94: Factor sheet Guide : 1. Each process material with a customized factors has its own specific factor type. Even if the applicant decides that certain products will adopt the default value for that process materials, the value must be copied and displayed in the matrix. 2. The process material's name must be consistent across all sheets to ensure the Excel file functions as intended. 3. The "Supporting Document" column must be completed by selecting either "Yes" or "No" if a customized factor is utilized. If the customized row is not applicable, the applicant should select "Default value is used". If there is no supporting document , applicant can select “No (Please explain)” and provide explanation for the missing supporting documents.
A96: Table 4 : Default and Customized CH4 Emisison Factor on Mass Basis for Process Materials
E98: Customized CH4 Emission Factor on Mass Basis for Process Materials
A99: End products from the industrial processes | D99: Default CH4 Content | E99: Product 1 | F99: Product 2 | G99: Product 3 | H99: Product 4 | I99: Product 5 | J99: Product 6 | K99: Supporting document | L99: Explaination
A100: Coke | C100: [kg CH4/ kg material ] | D100: =0.089/1000 -> 8.9e-05 | K100: Default value is used
A101: Sinter | C101: [kg CH4/ kg material ] | D101: =0.07/1000 -> 7e-05 | K101: Default value is used
A102: DRI | C102: [kg CH4/ kg material ] | D102: =0.048/1000 -> 4.8e-05 | K102: Default value is used
A104: Factor sheet Guide : 1. Each process material with a customized factors has its own specific factor type. Even if the applicant decides that certain products will adopt the default value for that process materials, the value must be copied and displayed in the matrix. 2. The process material's name must be consistent across all sheets to ensure the Excel file functions as intended. 3. The "Supporting Document" column must be completed by selecting either "Yes" or "No" if a customized factor is utilized. If the customized row is not applicable, the applicant should select "Default value is used". If there is no supporting document , applicant can select “No (Please explain)” and provide explanation for the missing supporting documents.
A107: Table 5 : Global Warming Potential of Greenhouse Gases
A109: Global Warming Potential (100-year horizon), IPCC Sixth Assessment Report, 2021 (AR6) | C109: CH4 (fossil – combustion & non fossil) | D109: 27
C110: CH4 (fossil – fugitive & process) | D110: 29.8
C111: N2O | D111: 273

Sheet Customized Fuel EF
E2: Customized CO2e Direct Emission Factors for Fuel
D3: Default EF | E3: Product 1 | F3: Product 2 | G3: Product 3 | H3: Product 4 | I3: Product 5 | J3: Product 6 | K3: Supporting document | L3: Explanation
A4: Crude oil and derived substances | B4: Crude oil | C4: [kg CO2e/ GJ ] | D4: 73.3036 | K4: Default value is used
B5: Orimulsion | C5: [kg CO2e/ GJ ] | D5: 77.0036 | K5: Default value is used
B6: Natural gas liquids | C6: [kg CO2e/ GJ ] | D6: 64.2036 | K6: Default value is used
B7: Gasoline | C7: [kg CO2e/ GJ ] | D7: 69.3036 | K7: Default value is used
B8: Jet kerosene | C8: [kg CO2e/ GJ ] | D8: 71.5036 | K8: Default value is used
B9: Other kerosene | C9: [kg CO2e/ GJ ] | D9: 71.9036 | K9: Default value is used
B10: Shale oil | C10: [kg CO2e/ GJ ] | D10: 73.3036 | K10: Default value is used
B11: Diesel oil | C11: [kg CO2e/ GJ ] | D11: 74.1036 | K11: Default value is used
B12: Residual fuel oil | C12: [kg CO2e/ GJ ] | D12: 77.4036 | K12: Default value is used
B13: Liquified petroleum gases | C13: [kg CO2e/ GJ ] | D13: 63.1011 | K13: Default value is used
B14: Ethane | C14: [kg CO2e/ GJ ] | D14: 61.6011 | K14: Default value is used
B15: Naphtha | C15: [kg CO2e/ GJ ] | D15: 73.3036 | K15: Default value is used
B16: Bitumen | C16: [kg CO2e/ GJ ] | D16: 80.7036 | K16: Default value is used
B17: Lubricants | C17: [kg CO2e/ GJ ] | D17: 73.3036 | K17: Default value is used
B18: Petrol coke | C18: [kg CO2e/ GJ ] | D18: 97.5036 | K18: Default value is used
B19: Refinery feedstocks | C19: [kg CO2e/ GJ ] | D19: 73.3036 | K19: Default value is used
B20: Refinery gas | C20: [kg CO2e/ GJ ] | D20: 57.6011 | K20: Default value is used
B21: Paraffin waxes | C21: [kg CO2e/ GJ ] | D21: 73.3036 | K21: Default value is used
B22: White spirit & SBP | C22: [kg CO2e/ GJ ] | D22: 73.3036 | K22: Default value is used
B23: Other petroleum products | C23: [kg CO2e/ GJ ] | D23: 73.3036 | K23: Default value is used
C24: [kg CO2e/ GJ ] | D24: N/A
C25: [kg CO2e/ GJ ] | D25: N/A
A26: Coal and derived products | B26: Anthracite | C26: [kg CO2e/ GJ ] | D26: 98.3025 | K26: Default value is used
B27: Coking coal | C27: [kg CO2e/ GJ ] | D27: 94.6115 | K27: Default value is used
B28: Other bituminous coal | C28: [kg CO2e/ GJ ] | D28: 94.6115 | K28: Default value is used
B29: Sub-bituminous coal | C29: [kg CO2e/ GJ ] | D29: 96.1115 | K29: Default value is used
B30: Lignite | C30: [kg CO2e/ GJ ] | D30: 101.0115 | K30: Default value is used
B31: Oil shale and tar sands | C31: [kg CO2e/ GJ ] | D31: 107.0115 | K31: Default value is used
B32: Brown coal briquettes | C32: [kg CO2e/ GJ ] | D32: 97.5115 | K32: Default value is used
B33: Patent fuel | C33: [kg CO2e/ GJ ] | D33: 97.5115 | K33: Default value is used
B34: Coke oven coke / lignite coke / coke breeze | C34: [kg CO2e/ GJ ] | D34: 107.0115 | K34: Default value is used
B35: Gas coke | C35: [kg CO2e/ GJ ] | D35: 107.0011 | K35: Default value is used
B36: Coal tar | C36: [kg CO2e/ GJ ] | D36: 80.7115 | K36: Default value is used
B37: Gas works gas | C37: [kg CO2e/ GJ ] | D37: 44.4011 | K37: Default value is used
B38: Coke oven gas | C38: [kg CO2e/ GJ ] | D38: 44.4011 | K38: Default value is used
B39: Blast furnace gas | C39: [kg CO2e/ GJ ] | D39: 260.0011 | K39: Default value is used
B40: Oxygen steel furnace gas | C40: [kg CO2e/ GJ ] | D40: 182.0011 | K40: Default value is used
C41: [kg CO2e/ GJ ] | D41: N/A
C42: [kg CO2e/ GJ ] | D42: N/A
A43: Gas | B43: Natural gas | C43: [kg CO2e/ GJ ] | D43: 56.1011 | K43: Default value is used
C44: [kg CO2e/ GJ ] | D44: N/A
C45: [kg CO2e/ GJ ] | D45: N/A
A46: Non-biomass waste | B46: Municipal wastes (non-biomass fraction) | C46: [kg CO2e/ GJ ] | D46: 91.734 | K46: Default value is used
B47: Industrial wastes | C47: [kg CO2e/ GJ ] | D47: NA | K47: Default value is used
B48: Waste oil | C48: [kg CO2e/ GJ ] | D48: 73.334 | K48: Default value is used
C49: [kg CO2e/ GJ ] | D49: N/A
C50: [kg CO2e/ GJ ] | D50: N/A
A51: Peat | B51: Peat | C51: [kg CO2e/ GJ ] | D51: 106.0035 | K51: Default value is used
A52: Biomass waste | B52: Wood/Wood waste | C52: [kg CO2e/ GJ ] | D52: 112.034 | K52: Default value is used
B53: Sulphite lyes (Black liquor) | C53: [kg CO2e/ GJ ] | D53: 95.305 | K53: Default value is used
B54: Other primary solid biomass fuels | C54: [kg CO2e/ GJ ] | D54: 100.034 | K54: Default value is used
B55: Charcoal | C55: [kg CO2e/ GJ ] | D55: 112.204 | K55: Default value is used
B56: Biogasoline | C56: [kg CO2e/ GJ ] | D56: 70.8036 | K56: Default value is used
B57: Biodiesel | C57: [kg CO2e/ GJ ] | D57: 70.8036 | K57: Default value is used
B58: Other liquid biofuels | C58: [kg CO2e/ GJ ] | D58: 79.6036 | K58: Default value is used
B59: Landfill gas | C59: [kg CO2e/ GJ ] | D59: 54.6011 | K59: Default value is used
B60: Sludge gas | C60: [kg CO2e/ GJ ] | D60: 54.6011 | K60: Default value is used
B61: Other biogas | C61: [kg CO2e/ GJ ] | D61: 54.6011 | K61: Default value is used
B62: Municipal wastes (biomass fraction) | C62: [kg CO2e/ GJ ] | D62: 100.034 | K62: Default value is used
C63: [kg CO2e/ GJ ] | D63: N/A
C64: [kg CO2e/ GJ ] | D64: N/A
A66: Factor sheet Guide : 1. Each energy commodity with a customized EF has its own specific EF type. Even if the applicant decides that certain products will adopt the default EF value for that energy commodity, the value must be copied and displayed in the matrix. 2. The energy commodity name must be consistent across all sheets to ensure the Excel file functions as intended. 3. The "Supporting Document" column must be completed by selecting either "Yes" or "No" if a customized factor is utilized. If the customized row is not applicable, the applicant should select "Default value is used". If there is no supporting document , applicant can select “No (Please explain)” and provide explanation for the missing supporting documents.

Sheet Customized Fuel LHV
E2: Customized LHVs for Fuel
D3: Default LHV | E3: Product 1 | F3: Product 2 | G3: Product 3 | H3: Product 4 | I3: Product 5 | J3: Product 6 | K3: Supporting document | L3: Explanation
A4: Crude oil and derived substances | B4: Crude oil | C4: MJ/kg | D4: 42.3 | K4: Default value is used
B5: Orimulsion | C5: MJ/kg | D5: 27.5 | K5: Default value is used
B6: Natural gas liquids | C6: MJ/kg | D6: 44.2 | K6: Default value is used
B7: Gasoline | C7: MJ/kg | D7: 44.3 | K7: Default value is used
B8: Jet kerosene | C8: MJ/kg | D8: 44.1 | K8: Default value is used
B9: Other kerosene | C9: MJ/kg | D9: 43.8 | K9: Default value is used
B10: Shale oil | C10: MJ/kg | D10: 38.1 | K10: Default value is used
B11: Diesel oil | C11: MJ/kg | D11: 43 | K11: Default value is used
B12: Residual fuel oil | C12: MJ/kg | D12: 40.4 | K12: Default value is used
B13: Liquified petroleum gases | C13: MJ/kg | D13: 47.3 | K13: Default value is used
B14: Ethane | C14: MJ/kg | D14: 46.4 | K14: Default value is used
B15: Naphtha | C15: MJ/kg | D15: 44.5 | K15: Default value is used
B16: Bitumen | C16: MJ/kg | D16: 40.2 | K16: Default value is used
B17: Lubricants | C17: MJ/kg | D17: 40.2 | K17: Default value is used
B18: Petrol coke | C18: MJ/kg | D18: 32.5 | K18: Default value is used
B19: Refinery feedstocks | C19: MJ/kg | D19: 43 | K19: Default value is used
B20: Refinery gas | C20: MJ/kg | D20: 49.5 | K20: Default value is used
B21: Paraffin waxes | C21: MJ/kg | D21: 40.2 | K21: Default value is used
B22: White spirit & SBP | C22: MJ/kg | D22: 40.2 | K22: Default value is used
B23: Other petroleum products | C23: MJ/kg | D23: 40.2 | K23: Default value is used
B24: ='Customized Fuel EF'!B24 -> 0 | C24: MJ/kg | D24: N/A
B25: ='Customized Fuel EF'!B25 ->  | C25: MJ/kg | D25: N/A
A26: Coal and derived products | B26: Anthracite | C26: MJ/kg | D26: 26.7 | K26: Default value is used
B27: Coking coal | C27: MJ/kg | D27: 28.2 | K27: Default value is used
B28: Other bituminous coal | C28: MJ/kg | D28: 25.8 | K28: Default value is used
B29: Sub-bituminous coal | C29: MJ/kg | D29: 18.9 | K29: Default value is used
B30: Lignite | C30: MJ/kg | D30: 11.9 | K30: Default value is used
B31: Oil shale and tar sands | C31: MJ/kg | D31: 8.9 | K31: Default value is used
B32: Brown coal briquettes | C32: MJ/kg | D32: 20.7 | K32: Default value is used
B33: Patent fuel | C33: MJ/kg | D33: 20.7 | K33: Default value is used
B34: Coke oven coke / lignite coke / coke breeze | C34: MJ/kg | D34: 28.2 | K34: Default value is used
B35: Gas coke | C35: MJ/kg | D35: 28.2 | K35: Default value is used
B36: Coal tar | C36: MJ/kg | D36: 28 | K36: Default value is used
B37: Gas works gas | C37: MJ/kg | D37: 38.7 | K37: Default value is used
B38: Coke oven gas | C38: MJ/kg | D38: 38.7 | K38: Default value is used
B39: Blast furnace gas | C39: MJ/kg | D39: 2.47 | K39: Default value is used
B40: Oxygen steel furnace gas | C40: MJ/kg | D40: 7.06 | K40: Default value is used
B41: ='Customized Fuel EF'!B41 ->  | C41: MJ/kg | D41: N/A
B42: ='Customized Fuel EF'!B42 ->  | C42: MJ/kg | D42: N/A
A43: Gas | B43: Natural gas | C43: MJ/kg | D43: 48 | K43: Default value is used
B44: ='Customized Fuel EF'!B44 ->  | C44: MJ/kg | D44: N/A
B45: ='Customized Fuel EF'!B45 ->  | C45: MJ/kg | D45: N/A
A46: Non-biomass waste | B46: Municipal wastes (non-biomass fraction) | C46: MJ/kg | D46: 10 | K46: Default value is used
B47: Industrial wastes | C47: MJ/kg | D47: NA | K47: Default value is used
B48: Waste oil | C48: MJ/kg | D48: 40.2 | K48: Default value is used
B49: ='Customized Fuel EF'!B49 ->  | C49: MJ/kg | D49: N/A
B50: ='Customized Fuel EF'!B50 ->  | C50: MJ/kg | D50: N/A
A51: Peat | B51: Peat | C51: MJ/kg | D51: 9.76 | K51: Default value is used
A52: Biomass waste | B52: Wood/Wood waste | C52: MJ/kg | D52: 15.6 | K52: Default value is used
B53: Sulphite lyes (Black liquor) | C53: MJ/kg | D53: 11.8 | K53: Default value is used
B54: Other primary solid biomass fuels | C54: MJ/kg | D54: 11.6 | K54: Default value is used
B55: Charcoal | C55: MJ/kg | D55: 29.5 | K55: Default value is used
B56: Biogasoline | C56: MJ/kg | D56: 27 | K56: Default value is used
B57: Biodiesel | C57: MJ/kg | D57: 27 | K57: Default value is used
B58: Other liquid biofuels | C58: MJ/kg | D58: 27.4 | K58: Default value is used
B59: Landfill gas | C59: MJ/kg | D59: 50.4 | K59: Default value is used
B60: Sludge gas | C60: MJ/kg | D60: 50.4 | K60: Default value is used
B61: Other biogas | C61: MJ/kg | D61: 50.4 | K61: Default value is used
B62: Municipal wastes (biomass fraction) | C62: MJ/kg | D62: 11.6 | K62: Default value is used
B63: ='Customized Fuel EF'!B63 ->  | C63: MJ/kg | D63: N/A
B64: ='Customized Fuel EF'!B64 ->  | C64: MJ/kg | D64: N/A
A66: Factor sheet Guide : 1. Each energy commodity with a customized LHV has its own specific LHV type. Even if the applicant decides that certain products will adopt the default LHV value for that energy commodity, the value must be copied and displayed in the matrix. 2. The energy commodity name must be consistent across all sheets to ensure the Excel file functions as intended. 3. The "Supporting Document" column must be completed by selecting either "Yes" or "No" if a customized factor is utilized. If the customized row is not applicable, the applicant should select "Default value is used". If there is no supporting document , applicant can select “No (Please explain)” and provide explanation for the missing supporting documents.

Sheet Default EF&LHV References
A1: Date of latest update | C1: 2025-03-24
A2: Default CO2e Emission Factors for Raw Materials
A3: Item | B3: Category | C3: References
A4: / | B4: Raw materials | C4: various
A5: 1 | B5: Dolomite | C5: World Steel Association (2021). Life cycle inventory (LCI) study 2020 data release. Available from: https://worldsteel.org/wp-content/uploads/Life-cycle-inventory-LCI-study-2020-data-release.pdf
A6: 2 | B6: Limestone | C6: ICE Cement, Mortar and Concrete Model – V1.2 (2024)
A7: 3 | B7: Iron ore (lump / fine) | C7: World Steel Association (2021). Life cycle inventory (LCI) study 2020 data release. Available from: https://worldsteel.org/wp-content/uploads/Life-cycle-inventory-LCI-study-2020-data-release.pdf
A8: 4 | B8: Scrap steel | C8: N/A
A9: 5 | B9: Coke | C9: World Steel Association (2021). Life cycle inventory (LCI) study 2020 data release. Available from: https://worldsteel.org/wp-content/uploads/Life-cycle-inventory-LCI-study-2020-data-release.pdf
A10: 6 | B10: Coal | C10: World Steel Association (2021). Life cycle inventory (LCI) study 2020 data release. Available from: https://worldsteel.org/wp-content/uploads/Life-cycle-inventory-LCI-study-2020-data-release.pdf
A11: 7 | B11: Coating material | C11: World Steel Association (2021). Life cycle inventory (LCI) study 2020 data release. Default of "Paint (PVDF, acrylic)" is used. Available from: https://worldsteel.org/wp-content/uploads/Life-cycle-inventory-LCI-study-2020-data-release.pdf
A12: / | B12: Energy commodity | C12: UK Department for Energy Security and Net Zero (2024). Greenhouse gas reporting: conversion factors 2024.
A14: (Table 1) Carbonate-specific emission factors used in onsite lime production
A15: Item | B15: Category | C15: References
A16: / | B16: Carbonate | C16: Volume 3 Chapter 2, Table 2.1 of IPCC 2006 Guideline for National Greenhous Gas Inventories.
A18: (Table 2) Lime specific emission factors used in offsite lime production
A19: Item | B19: Category | C19: References
A20: / | B20: Lime | C20: Volume 3 Chapter 2, Table 2.4 of IPCC 2006 Guideline for National Greenhous Gas Inventories.
A22: (Table 3) C Content on Mass Basis for Process Materials
A23: Item | B23: Category | C23: References
A24: / | B24: Common Process Materials | C24: WRI & WBCSD (2024). Appendix C of "Calculating Greenhouse Gas Emissions from Iron and Steel Production".
A25: / | B25: Coke-oven byproducts transferred offsite | C25: WRI & WBCSD (2024). Appendix A of "Calculating Greenhouse Gas Emissions from Iron and Steel Production".
A26: / | B26: Crude oil and derived substances | C26: WRI & WBCSD (2024). Appendix A of "Calculating Greenhouse Gas Emissions from Iron and Steel Production".
A27: / | B27: Coal and derived products | C27: WRI & WBCSD (2024). Appendix A of "Calculating Greenhouse Gas Emissions from Iron and Steel Production".
A28: / | B28: Gas | C28: WRI & WBCSD (2024). Appendix A of "Calculating Greenhouse Gas Emissions from Iron and Steel Production".
A29: / | B29: Non-biomass waste | C29: WRI & WBCSD (2024). Appendix A of "Calculating Greenhouse Gas Emissions from Iron and Steel Production".
A30: / | B30: Peat | C30: WRI & WBCSD (2024). Appendix A of "Calculating Greenhouse Gas Emissions from Iron and Steel Production".
A31: / | B31: Biomass waste | C31: WRI & WBCSD (2024). Appendix A of "Calculating Greenhouse Gas Emissions from Iron and Steel Production".
A33: (Table 4) CH4 Emission Factor on Mass Basis for Process Materials
A34: Item | B34: Category | C34: References
A35: / | B35: End products from the industrial processes | C35: Volume 3 Chapter 4, Table 4.2 of 2019 Refinement of IPCC 2006 Guideline for National Greenhous Gas Inventories.
A37: (Table 5) Global Warming Potential of Greenhouse Gases
A38: Item | B38: Category | C38: References
A39: / | B39: Greenhouse gases | C39: Table 7.15 Global Warming Potential (100-year horizon), IPCC Sixth Assessment Report, 2021 (AR6). Available from: https://www.ipcc.ch/report/ar6/wg1/chapter/chapter-7/
A41: Default CO2e Emission Factors for Fuel
A42: Item | B42: Category | C42: References
A43: / | B43: Common Process Materials | C43: Volume 2 Chapter 2, Table 2.3 of IPCC 2006 Guideline for National Greenhous Gas Inventories.
A44: / | B44: Coke-oven byproducts transferred offsite | C44: Volume 2 Chapter 2, Table 2.3 of IPCC 2006 Guideline for National Greenhous Gas Inventories.
A45: / | B45: Crude oil and derived substances | C45: Volume 2 Chapter 2, Table 2.3 of IPCC 2006 Guideline for National Greenhous Gas Inventories.
A46: / | B46: Coal and derived products | C46: Volume 2 Chapter 2, Table 2.3 of IPCC 2006 Guideline for National Greenhous Gas Inventories.
A47: / | B47: Gas | C47: Volume 2 Chapter 2, Table 2.3 of IPCC 2006 Guideline for National Greenhous Gas Inventories.
A48: / | B48: Non-biomass waste | C48: Volume 2 Chapter 2, Table 2.3 of IPCC 2006 Guideline for National Greenhous Gas Inventories.
A49: / | B49: Peat | C49: Volume 2 Chapter 2, Table 2.3 of IPCC 2006 Guideline for National Greenhous Gas Inventories.
A50: / | B50: Biomass waste | C50: Volume 2 Chapter 2, Table 2.3 of IPCC 2006 Guideline for National Greenhous Gas Inventories.
A52: Default LHVs for Fuel
A53: Item | B53: Category | C53: References
A54: / | B54: Common Process Materials | C54: Volume 2 Chapter 1, Tables 1.2 of IPCC 2006 Guideline for National Greenhous Gas Inventories.
A55: / | B55: Coke-oven byproducts transferred offsite | C55: Volume 2 Chapter 1, Tables 1.2 of IPCC 2006 Guideline for National Greenhous Gas Inventories.
A56: / | B56: Crude oil and derived substances | C56: Volume 2 Chapter 1, Tables 1.2 of IPCC 2006 Guideline for National Greenhous Gas Inventories.
A57: / | B57: Coal and derived products | C57: Volume 2 Chapter 1, Tables 1.2 of IPCC 2006 Guideline for National Greenhous Gas Inventories.
A58: / | B58: Gas | C58: Volume 2 Chapter 1, Tables 1.2 of IPCC 2006 Guideline for National Greenhous Gas Inventories.
A59: / | B59: Non-biomass waste | C59: Volume 2 Chapter 1, Tables 1.2 of IPCC 2006 Guideline for National Greenhous Gas Inventories.
A60: / | B60: Peat | C60: Volume 2 Chapter 1, Tables 1.2 of IPCC 2006 Guideline for National Greenhous Gas Inventories.
A61: / | B61: Biomass waste | C61: Volume 2 Chapter 1, Tables 1.2 of IPCC 2006 Guideline for National Greenhous Gas Inventories.
